{"text_format":"1","workbook":"xlsx","n_sheets":10,"sheets":["Fin","P","C1","C1 A1","C1 A2","C2","C2 A1","C2 A2","Catálogo","Hoja2"],"not_rendered":{"charts":0,"images":1,"macros":0,"external_links":4,"defined_names":1599,"comments":0,"pivot_tables":0},"unopened":[],"bounds":{"document_bytes":16777216,"sheet_cells":100000,"rows_first":2000,"rows_last":500,"rows_between":2000,"halvings":0,"cell_chars":16384,"cell_head_chars":4096},"cells_cut":0,"cells_raw":0,"read":"whole","date_system":"1900"}

{"sheet":"Fin","index":0,"n_rows":248,"n_cols":8,"rows_kept":248,"cut":false,"hidden":false,"merged":[[5,1,5,7],[6,1,6,7],[7,1,7,7],[9,1,9,2],[9,3,9,7],[10,1,10,2],[10,3,10,7],[18,1,18,3],[18,4,18,7],[20,1,20,7],[22,4,22,7],[23,1,23,2],[23,3,23,7],[11,1,11,2],[11,3,11,7],[12,1,12,2],[12,3,12,7],[14,1,14,7],[16,1,16,7],[38,1,38,7],[40,1,40,2],[40,3,40,7],[41,1,41,2],[41,4,41,6],[42,1,42,3],[42,4,42,7],[25,1,25,7],[27,1,27,3],[27,4,27,7],[29,1,29,7],[31,1,31,7],[33,1,36,1],[33,2,36,5],[33,6,36,6],[33,7,36,7],[46,1,46,3],[46,4,46,7],[47,1,47,3],[47,4,47,7],[49,1,49,7],[51,1,51,7],[43,1,43,3],[43,4,43,7],[44,1,44,3],[44,4,44,7],[45,1,45,3],[45,4,45,7],[59,3,59,7],[60,3,60,7],[61,3,61,7],[62,3,62,7],[63,1,63,7],[64,1,64,7],[52,1,52,7],[54,1,54,7],[55,1,55,7],[56,3,56,7],[57,3,57,7],[58,3,58,7],[69,1,69,2],[69,3,69,7],[70,4,70,5],[71,1,71,7],[72,1,72,7],[73,1,73,7],[65,1,65,7],[66,4,66,5],[67,1,67,2],[67,3,67,7],[68,1,68,2],[68,3,68,7],[82,4,82,5],[82,6,82,7],[84,1,84,7],[85,1,85,7],[87,1,87,7],[89,2,89,7],[74,4,74,5],[75,1,75,7],[76,1,76,7],[78,1,78,7],[80,1,81,1],[80,2,80,5],[80,6,81,7],[81,4,81,5],[94,9,94,13],[95,4,95,5],[95,6,95,7],[96,4,96,5],[96,6,96,7],[97,4,97,5],[97,6,97,7],[90,6,90,7],[92,1,92,7],[93,1,94,1],[93,2,93,5],[93,6,94,7],[94,4,94,5],[104,1,104,3],[104,5,104,7],[105,1,105,3],[105,5,105,7],[106,1,106,3],[106,5,106,7],[98,4,98,5],[98,6,98,7],[100,1,100,7],[102,1,102,3],[102,5,102,7],[103,1,103,3],[103,5,103,7],[110,1,110,3],[110,5,110,7],[111,1,111,3],[111,5,111,7],[112,1,112,3],[112,5,112,7],[107,1,107,3],[107,5,107,7],[108,1,108,3],[108,5,108,7],[109,1,109,3],[109,5,109,7],[116,1,116,3],[116,5,116,7],[117,1,117,3],[117,5,117,7],[118,1,118,3],[118,5,118,7],[113,1,113,3],[113,5,113,7],[114,1,114,3],[114,5,114,7],[115,1,115,3],[115,5,115,7],[124,1,124,2],[124,3,124,4],[124,5,124,7],[125,1,125,2],[125,3,125,4],[125,5,125,7],[120,1,120,7],[122,1,122,2],[122,3,122,4],[122,5,122,7],[123,1,123,2],[123,3,123,4],[123,5,123,7],[128,1,128,2],[128,3,128,4],[128,5,128,7],[137,1,137,7],[138,1,138,7],[139,1,139,7],[126,1,126,2],[126,3,126,4],[126,5,126,7],[127,1,127,2],[127,3,127,4],[127,5,127,7],[147,1,147,7],[148,1,148,7],[150,1,150,7],[151,1,151,7],[153,1,153,7],[154,1,154,7],[140,1,140,7],[141,1,141,7],[142,1,142,7],[144,1,144,7],[145,1,145,7],[146,1,146,7],[162,1,162,7],[163,1,163,7],[164,1,164,7],[165,1,165,7],[166,1,166,7],[167,1,167,7],[155,1,155,7],[157,1,157,7],[158,1,158,7],[159,1,159,7],[160,1,160,7],[161,1,161,7],[174,1,174,7],[175,1,175,7],[176,1,176,7],[178,1,178,7],[179,1,179,7],[181,1,181,7],[168,1,168,7],[169,1,169,7],[170,1,170,7],[171,1,171,7],[172,1,172,7],[173,1,173,7],[189,1,189,7],[190,1,190,7],[191,1,191,7],[192,1,192,7],[193,1,193,7],[194,1,194,7],[182,1,182,7],[183,1,183,7],[184,1,184,7],[185,1,185,7],[186,1,186,7],[187,1,187,7],[202,1,202,7],[203,1,203,7],[204,1,204,7],[205,1,205,7],[208,1,208,7],[210,1,210,7],[195,1,195,7],[196,1,196,7],[198,1,198,7],[199,1,199,7],[200,1,200,7],[201,1,201,7],[218,1,218,7],[219,1,219,7],[220,1,220,7],[221,1,221,7],[222,1,222,7],[224,1,224,7],[211,1,211,7],[212,1,212,7],[213,1,213,7],[214,1,214,7],[215,1,215,7],[216,1,216,7],[232,1,232,7],[233,1,233,7],[234,1,234,7],[235,1,235,7],[236,1,236,7],[237,1,237,7],[225,1,225,7],[226,1,226,7],[227,1,227,7],[228,1,228,7],[229,1,229,7],[231,1,231,7],[245,1,245,7],[246,6,246,7],[248,1,248,7],[249,1,249,7],[250,1,250,7],[251,1,251,7],[238,1,238,7],[239,1,239,7],[241,1,241,7],[242,1,242,7],[243,1,243,7],[244,1,244,7],[258,1,258,7],[259,1,259,7],[260,1,260,7],[261,1,261,7],[262,1,262,7],[263,1,263,7],[252,1,252,7],[253,1,253,7],[254,1,254,7],[255,1,255,7],[256,1,256,7],[257,1,257,7],[270,1,270,7],[271,1,271,7],[272,1,272,7],[273,1,273,7],[274,1,274,7],[275,1,275,7],[264,1,264,7],[265,1,265,7],[266,1,266,7],[267,1,267,7],[268,1,268,7],[269,1,269,7],[282,1,282,7],[283,1,283,7],[284,1,284,7],[285,1,285,7],[286,1,286,7],[287,1,287,7],[276,1,276,7],[277,1,277,7],[278,1,278,7],[279,1,279,7],[280,1,280,7],[281,1,281,7],[294,1,294,7],[295,1,295,7],[296,1,296,7],[297,1,297,7],[298,1,298,7],[299,1,299,7],[288,1,288,7],[289,1,289,7],[290,1,290,7],[291,1,291,7],[292,1,292,7],[293,1,293,7],[306,1,306,7],[307,1,307,7],[308,1,308,7],[309,1,309,7],[310,1,310,7],[311,1,311,7],[300,1,300,7],[301,1,301,7],[302,1,302,7],[303,1,303,7],[304,1,304,7],[305,1,305,7],[318,1,318,7],[319,1,319,7],[320,1,320,7],[321,1,321,7],[322,1,322,7],[323,1,323,7],[312,1,312,7],[313,1,313,7],[314,1,314,7],[315,1,315,7],[316,1,316,7],[317,1,317,7],[330,1,330,7],[331,1,331,7],[332,1,332,7],[333,1,333,7],[334,1,334,7],[335,1,335,7],[324,1,324,7],[325,1,325,7],[326,1,326,7],[327,1,327,7],[328,1,328,7],[329,1,329,7],[342,1,342,7],[343,1,343,7],[344,1,344,7],[345,1,345,7],[346,1,346,7],[347,1,347,7],[336,1,336,7],[337,1,337,7],[338,1,338,7],[339,1,339,7],[340,1,340,7],[341,1,341,7],[354,1,354,7],[355,1,355,7],[356,1,356,7],[357,1,357,7],[358,1,358,7],[359,1,359,7],[348,1,348,7],[349,1,349,7],[350,1,350,7],[351,1,351,7],[352,1,352,7],[353,1,353,7],[366,1,366,7],[367,1,367,7],[368,1,368,7],[369,1,369,7],[370,1,370,7],[371,1,371,7],[360,1,360,7],[361,1,361,7],[362,1,362,7],[363,1,363,7],[364,1,364,7],[365,1,365,7],[378,1,378,7],[379,1,379,7],[380,1,380,7],[381,1,381,7],[382,1,382,7],[383,1,383,7],[372,1,372,7],[373,1,373,7],[374,1,374,7],[375,1,375,7],[376,1,376,7],[377,1,377,7],[390,1,390,7],[391,1,391,7],[392,1,392,7],[393,1,393,7],[394,1,394,7],[395,1,395,7],[384,1,384,7],[385,1,385,7],[386,1,386,7],[387,1,387,7],[388,1,388,7],[389,1,389,7],[402,1,402,7],[403,1,403,7],[404,1,404,7],[405,1,405,7],[406,1,406,7],[407,1,407,7],[396,1,396,7],[397,1,397,7],[398,1,398,7],[399,1,399,7],[400,1,400,7],[401,1,401,7],[414,1,414,7],[415,1,415,7],[416,1,416,7],[417,1,417,7],[418,1,418,7],[419,1,419,7],[408,1,408,7],[409,1,409,7],[410,1,410,7],[411,1,411,7],[412,1,412,7],[413,1,413,7],[426,1,426,7],[427,1,427,7],[428,1,428,7],[429,1,429,7],[430,1,430,7],[431,1,431,7],[420,1,420,7],[421,1,421,7],[422,1,422,7],[423,1,423,7],[424,1,424,7],[425,1,425,7],[438,1,438,7],[439,1,439,7],[440,1,440,7],[441,1,441,7],[442,1,442,7],[443,1,443,7],[432,1,432,7],[433,1,433,7],[434,1,434,7],[435,1,435,7],[436,1,436,7],[437,1,437,7],[450,1,450,7],[451,1,451,7],[452,1,452,7],[453,1,453,7],[454,1,454,7],[455,1,455,7],[444,1,444,7],[445,1,445,7],[446,1,446,7],[447,1,447,7],[448,1,448,7],[449,1,449,7],[462,1,462,7],[463,1,463,7],[464,1,464,7],[465,1,465,7],[466,1,466,7],[467,1,467,7],[456,1,456,7],[457,1,457,7],[458,1,458,7],[459,1,459,7],[460,1,460,7],[461,1,461,7],[474,1,474,7],[475,1,475,7],[476,1,476,7],[477,1,477,7],[478,1,478,7],[479,1,479,7],[468,1,468,7],[469,1,469,7],[470,1,470,7],[471,1,471,7],[472,1,472,7],[473,1,473,7],[486,1,486,7],[487,1,487,7],[488,1,488,7],[489,1,489,7],[490,1,490,7],[491,1,491,7],[480,1,480,7],[481,1,481,7],[482,1,482,7],[483,1,483,7],[484,1,484,7],[485,1,485,7],[498,1,498,7],[499,1,499,7],[500,1,500,7],[501,1,501,7],[502,1,502,7],[503,1,503,7],[492,1,492,7],[493,1,493,7],[494,1,494,7],[495,1,495,7],[496,1,496,7],[497,1,497,7],[510,1,510,7],[511,1,511,7],[512,1,512,7],[513,1,513,7],[514,1,514,7],[515,1,515,7],[504,1,504,7],[505,1,505,7],[506,1,506,7],[507,1,507,7],[508,1,508,7],[509,1,509,7],[522,1,522,7],[523,1,523,7],[524,1,524,7],[525,1,525,7],[526,1,526,7],[527,1,527,7],[516,1,516,7],[517,1,517,7],[518,1,518,7],[519,1,519,7],[520,1,520,7],[521,1,521,7],[534,1,534,7],[535,1,535,7],[536,1,536,7],[537,1,537,7],[538,1,538,7],[539,1,539,7],[528,1,528,7],[529,1,529,7],[530,1,530,7],[531,1,531,7],[532,1,532,7],[533,1,533,7],[546,1,546,7],[547,1,547,7],[548,1,548,7],[549,1,549,7],[550,1,550,7],[551,1,551,7],[540,1,540,7],[541,1,541,7],[542,1,542,7],[543,1,543,7],[544,1,544,7],[545,1,545,7],[558,1,558,7],[559,1,559,7],[560,1,560,7],[561,1,561,7],[562,1,562,7],[563,1,563,7],[552,1,552,7],[553,1,553,7],[554,1,554,7],[555,1,555,7],[556,1,556,7],[557,1,557,7],[570,1,570,7],[571,1,571,7],[572,1,572,7],[573,1,573,7],[574,1,574,7],[575,1,575,7],[564,1,564,7],[565,1,565,7],[566,1,566,7],[567,1,567,7],[568,1,568,7],[569,1,569,7],[582,1,582,7],[583,1,583,7],[584,1,584,7],[585,1,585,7],[586,1,586,7],[587,1,587,7],[576,1,576,7],[577,1,577,7],[578,1,578,7],[579,1,579,7],[580,1,580,7],[581,1,581,7],[594,1,594,7],[595,1,595,7],[596,1,596,7],[597,1,597,7],[598,1,598,7],[599,1,599,7],[588,1,588,7],[589,1,589,7],[590,1,590,7],[591,1,591,7],[592,1,592,7],[593,1,593,7],[606,1,606,7],[607,1,607,7],[608,1,608,7],[609,1,609,7],[610,1,610,7],[611,1,611,7],[600,1,600,7],[601,1,601,7],[602,1,602,7],[603,1,603,7],[604,1,604,7],[605,1,605,7],[618,1,618,7],[619,1,619,7],[620,1,620,7],[621,1,621,7],[622,1,622,7],[623,1,623,7],[612,1,612,7],[613,1,613,7],[614,1,614,7],[615,1,615,7],[616,1,616,7],[617,1,617,7],[630,1,630,7],[631,1,631,7],[632,1,632,7],[633,1,633,7],[634,1,634,7],[635,1,635,7],[624,1,624,7],[625,1,625,7],[626,1,626,7],[627,1,627,7],[628,1,628,7],[629,1,629,7],[642,1,642,7],[643,1,643,7],[644,1,644,7],[645,1,645,7],[646,1,646,7],[647,1,647,7],[636,1,636,7],[637,1,637,7],[638,1,638,7],[639,1,639,7],[640,1,640,7],[641,1,641,7],[660,1,660,7],[661,1,661,7],[654,1,654,7],[655,1,655,7],[656,1,656,7],[657,1,657,7],[658,1,658,7],[659,1,659,7],[648,1,648,7],[649,1,649,7],[650,1,650,7],[651,1,651,7],[652,1,652,7],[653,1,653,7]]}
[]
[]
[]
[]
[]
[null,"PRESUPUESTO DE EGRESOS 2022"]
[null,"FICHA TÉCNICA"]
[null,"Datos de Identificación del Programa Presupuestario (Pp)"]
[]
[null,"Unidad responsable del Pp ",null,"Alcaldía Tlalpan"]
[null,"Clasificación del Pp ",null,"S206"]
[null,"Denominación del Pp ",null,{"$f":"VLOOKUP(D11,[4]Catálogo!AU1:AV333,2,0)","v":"FORMACIÓN MUSICAL, TLALPAN"}]
[null,"Nombre de la Matriz ",null,{"$f":"D11&\" \"&D12","v":"S206 FORMACIÓN MUSICAL, TLALPAN"}]
[]
[null,"Alineación con el PGD y sus Programas derivados "]
[]
[null,"Plan General de Desarrollo de la Ciudad de México"]
[]
[null,"Eje de política pública al que contribuye el Pp ",null,null,"Eje 4. Ciudad de México, capital cultural de America Latina"]
[]
[null,"Programas del Plan General de Desarrollo de la Ciudad de México"]
[]
[null,"Tipo de Programa ","Institucional","Programa ","FORMACIÓN MUSICAL, TLALPAN"]
[null,"Objetivo del Programa ",null,"Construir en el desarrollo social de las personas habitantes de la Alcaldía Tlalpan de forma incluyente , con un enfoque de igualdad de derechos."]
[]
[null,"Alineación con Objetivos del Desarrollo Sostenible"]
[]
[null,"Objetivo al que contribuye el Pp ",null,null,"11. Ciudades y comunidades sostenibles"]
[]
[null,"Matriz de Indicadores para Resultados "]
[]
[null,"Resumen Narrativo "]
[]
[null,"Resumen narrativo","Coadyuvar en implementar eventos culturales, mediante la integración en el desarrollo social de la población en la  Alcaldía Tlalpan de forma incluyente, con un enfoque de igualdad de derechos. ",null,null,null,"Nivel en la Matriz de Marco Lógico","Fin"]
[]
[]
[]
[]
[null,"Datos de identificación del indicador "]
[]
[null,"Nombre del indicador ",null,"Promedio de asistencia a eventos culturales "]
[null,"Dimensión del indicador ",null,"Eficacia","Tipo de indicador para resultados ",null,null,"Estratégico"]
[null,"Definición del indicador ",null,null,"Tipo de valor de la meta"]
[null,"Mide el promedio de asistencia de eventos culturales de la población de 18 años, en la que participó en los últimos seis meses en la Alcaldía Tlalpan.",null,null,"Relativa"]
[null,"Método de cálculo ",null,null,"Unidad de medida "]
[null,"𝑖_𝑒𝑐𝑢𝑙𝑡𝑢𝑟𝑎𝑖 = 𝑐𝑢𝑙𝑡𝑢𝑟𝑎_1𝑖 + ⋯ + 𝑐𝑢𝑙𝑡𝑢𝑟𝑎_11i / total de las personas entrevistadas",null,null,"Absoluto"]
[null,"Desagregación geográfica ",null,null,"Frecuencia de medición "]
[null,"Alcaldía",null,null,"Anual"]
[]
[null,"Serie de Información Disponible "]
[]
[null,"Información disponible "]
[null,"Desde 2016"]
[]
[null,"Criterios CREMAA"]
[]
[null,"Característica ","Calificación ","Justificación "]
[null,"Claridad","Cumple",{"$f":"IF(C58=\"Cumple\",[4]Catálogo!AG2,[4]Catálogo!AH2)","v":"El indicador es preciso y de fácil comprensión por usuarios no especializados, pues su formulación es sencilla."}]
[null,"Relevancia","Cumple",{"$f":"IF(C59=\"Cumple\",[4]Catálogo!AG3,[4]Catálogo!AH3)","v":"El indicador aporta información respecto a los efectos que tienen las acciones del Programa sobre los objetivos que este se ha planteado en el ejercicio presupuestal reportado, a su vez permite observar tendencias acerca de los impactos del Programa sobre la problemática que éste atiende en el mediano y largo plazo."}]
[null,"Economía","Cumple",{"$f":"IF(C60=\"Cumple\",[4]Catálogo!AG4,[4]Catálogo!AH4)","v":"El indicador no requiere recursos adicionales para su medición, pues la información se obtiene del desarrollo cotidiano del programa."}]
[null,"Monitoreable","Cumple",{"$f":"IF(C61=\"Cumple\",[4]Catálogo!AG5,[4]Catálogo!AH5)","v":"Se calcula a partir de las bases de datos generadas durante la operación del programa, por lo que se tienen datos a lo largo del ciclo presupuestal que permiten dar seguimiento al comportamiento del indicador."}]
[null,"Adecuado","Cumple",{"$f":"IF(C62=\"Cumple\",[4]Catálogo!AG6,[4]Catálogo!AH6)","v":"Se considera que el indicador es preciso para estimar el logro del objetivo."}]
[null,"Aporte marginal","No cumple",{"$f":"IF(C63=\"Cumple\",[4]Catálogo!AG7,[4]Catálogo!AH7)","v":"El indicador no proporciona información adicional a los demás indicadores."}]
[]
[null,"Contacto indicador "]
[]
[null,"Nombre ","MA GABRIELA ","Apellido paterno ","RODRÍGUEZ",null,"Apellido materno ","VALENCIA"]
[null,"Área ",null,"DIRECCIÓN GENERAL DE DERECHOS CULTURALES Y EDUCATIVOS"]
[null,"Puesto ",null,"COORDINADORA DE CULTURA"]
[null,"Correo electrónico ",null,"mrodriguezv@tlalpan.cdmx.gob.mx"]
[null,"Lada ",null,"Teléfono",null,null,"Extensión "]
[]
[null,"Viabilidad de la meta "]
[]
[null,"Meta acumulable ","No","Comportamiento del indicador ","Nominal",null,"Factibilidad de la meta ","Media"]
[null,"Justificación de la factibilidad "]
[null,"El promedio que se obtiene no es factible ya que el indicador podria disminuir y no depende del programa que implementa la Alcaldía Tlalpan."]
[]
[null,"Línea base "]
[]
[null,"Año ","Valor ",null,null,null,"Periodo al que corresponde el valor"]
[null,null,"Indicador\n(relativo)","Numerador\n(absoluto)","Denominador\n(universo de cobertura)"]
[null,2016,4.3,null,null,null,"enero - diciembre 2016"]
[]
[null,"Justificación línea base"]
[null," Aplicación de encuesta realizada con la última información disponible "]
[]
[null,"Parámetros de semaforización "]
[]
[null,"Tipo de valor","Relativo"]
[null,"Umbral verde ","Igual o mayor que 4.3","Umbral amarillo","Menor de 4.3 y mayor de 4","Umbral rojo ","Menos de 4"]
[]
[null,"Metas del ciclo presupuestario"]
[null,"Periodo (según la frecuencia de medición)","Valor",null,null,null,"Periodo al que corresponde el valor"]
[null,null,"Indicador (relativo)","Numerador (absoluto)","Denominador (universo de cobertura)"]
[null,"Trimestre 1",4.3]
[null,"Trimestre 2"]
[null,"Trimestre 3"]
[null," Trimestre 4"]
[]
[null,"Características de las variables \n(Se debe llenar este conjunto tanta veces como número de variables existan)"]
[]
[null,"Nombre ",null,null,null,"Descripción de la variable "]
[null,"𝑖_𝑒𝑐𝑢𝑙𝑡𝑢𝑟𝑎𝑖 = 𝑐𝑢𝑙𝑡𝑢𝑟𝑎_1𝑖 + ⋯ + 𝑐𝑢𝑙𝑡𝑢𝑟𝑎_11𝑖",null,null,null,"Representa la sumatoria de la asistencia a eventos culturales de la población de 18 años en la Alcaldía Tlalpan."]
[null,"Medios de verificación",null,null,null,"Unidad de medida"]
[null,"Estudio del índice de Bienestar Social - CDMX, emitido por Evalúa CDMX",null,null,null,"Número"]
[null,"Desagregación geográfica ",null,null,null,"Frecuencia"]
[null,"Alcaldía",null,null,null,"Anual "]
[null,"Método de recopilación de datos ",null,null,null,"Fecha de disponibilidad de la información "]
[null,"Encuesta",null,null,null,"15 días hábiles posteriores a la terminación del período"]
[]
[null,"Nombre ",null,null,null,"Descripción de la variable "]
[null," Entre el  total de las personas entrevistadas",null,null,null,"Representa el número de personas entrevistadas de la Alcaldía Tlalpan."]
[null,"Medios de verificación",null,null,null,"Unidad de medida"]
[null,"Estudio del índice de Bienestar Social - CDMX",null,null,null,"Número"]
[null,"Desagregación geográfica ",null,null,null,"Frecuencia"]
[null,"Alcaldía",null,null,null,"Anual "]
[null,"Método de recopilación de datos ",null,null,null,"Fecha de disponibilidad de la información "]
[null,"Encuesta",null,null,null,"15 días hábiles posteriores a la terminación del periodo"]
[]
[null,"Serie estadística "]
[]
[null,"Ciclo serie",null,"Valor serie",null,"Periodo de la serie"]
[null,2016,null,4.3]
[]
[]
[]
[]
[]
[]
[]
[]
[]
[]
[]
[]
[]
[null,"Instructivo de la Ficha Técnica"]
[null,"Datos de identificación del programa presupuestario (Pp)"]
[null,"Unidad responsable del Pp: Dependencia encargada del Programa"]
[null,"Clasificación del Pp: Categoría programática, que de acuerdo al catalogó emitido por la  Comisión  Nacional de Armonización Contable (CONAC), clasifica los programas presupuestarios  de acuerdo a su naturaleza generalmente con la inicial de una letra y seguida por números"]
[null,"Denominación del Pp: Nombre del Programa Presupuestario "]
[null,"Nombre de la Matriz: Conjunción de la clasificación y denominación del Programa"]
[]
[null,"Alineación con el PGD  y sus Programas derivados"]
[null,"Eje de política pública al que contribuye el Pp:   Se refiere a alguno de los 6 ejes del Plan General de Gobierno de la Ciudad de México"]
[null,"Tipo de Programa:  Los referidos en el Artículo 22 de la Ley de Planeación (Sectorial, Regional, Especial, Institucional)"]
[null,"Programa: Se especificará el nombre del programa según la clasificación arriba mencionada."]
[null,"Objetivo del Programa:  Se refiere a los objetivos del programa señalado en el inciso anterior."]
[]
[null,"Alineación con Objetivos del Desarrollo Sostenible"]
[null,"Objetivo al que contribuye el Pp: Se refiere al objetivo de desarrollo sostenible al que abona el programa"]
[]
[null,"Matriz de Indicadores para Resultados"]
[null,"Resumen Narrativo: Se registran los objetivos por cada nivel de la Matriz"]
[null,"Nivel en la Matriz de Marco Lógico: Se refiere al nviel del indicador, puede ser: Fin, Propósito, Componentes o Actividad, según sea el caso."]
[]
[null,"Datos de identificación del indicador"]
[null,"Nombre del indicador: denominación precisa y única con la que se distingue al indicador. "]
[null,"Dimensión del indicador: se refieren al aspecto particular del objetivo a ser medido mediante el indicador, puede ser:"]
[null,"• Eficacia: mide el grado de cumplimiento de los objetivos."]
[null,"• Eficiencia: mide la relación entre los productos y servicios generados con respecto a los insumos o recursos utilizados."]
[null,"• Economía: mide la capacidad del programa o de la institución para generar y movilizar adecuadamente los recursos financieros."]
[null,"• Calidad: mide los atributos, propiedades o características que deben tener los bienes y servicios para satisfacer los objetivos del programa."]
[null,"Tipo de indicador para Resultados: Se refiere a la naturaleza del indicador que corresponde a cada nivel de la Matriz de Indicadores para Resultados, puede ser:"]
[null,"• Estratégico.- Que está orientado a medir los efectos del Pp."]
[null,"• De gestión.- Qué está orientado a medir la forma en que trabaja el Pp."]
[null,"Considerar que según el nivel de la MIR los indicadores puedes ser:"]
[null,"• Para FIN y PROPÓSITO =  Estratégico."]
[null,"• Para COMPONENTE = Estratégico o Gestión."]
[null,"• Para ACTIVIDADES = Gestión."]
[null,"Definición del indicador: expresa al indicador en términos de su significado conceptual. Puede desde el punto de vista operativo, expresar al indicador en términos de las variables que en él intervienen."]
[null,"Tipo de valor de la Meta.- Indica si la meta es absoluta o relativa. Generalmente, la mayoría de los indicadores son expresados en números relativos, ya que por definición provienen de relacionar dos o más datos significativos, sin embargo, excepcionalmente se pueden utilizar indicadores referidos en números absolutos, tal es el caso del PIB. "]
[null,"Método de cálculo: se refiere a la expresión algebraica del indicador, a la explicación sencilla de la forma en que se relacionan las variables y a la metodología para calcular el indicador."]
[null,"Unidad de medida: magnitud de referencia que permite cuantificar y comparar elementos del indicador."]
[null,"Desagregación geográfica: indica los niveles territoriales para los que está disponible el indicador: ciudad, alcaldía"]
[null,"Frecuencia de medición: es el periodo de tiempo en el cual se calcula el indicador (mensual, bimestral, trimestral, cuatrimestral, semestral, anual o superior). La frecuencia de medición determinará la cantidad de periodos en los que se calendarizarán las metas para el indicador, por lo cual deberá tener precaución al seleccionar la frecuencia de medición. "]
[]
[null,"Serie de Información Disponible"]
[null,"Información disponible: Describe textualmente al conjunto de mediciones del indicador disponibles, se deben indicar cambios en la serie por cuestiones metodológicas u otras."]
[]
[null,"Criterios CREMAA"]
[null,"Claridad.- Es conveniente que los indicadores tengan una expresión sencilla con el propósito de que sean fácilmente comprensibles por los usuarios no especializados"]
[null,"Relevancia.- Un indicador debe expresar elementos de importancia o significativos en la medición de los avances y logros de un objetivo"]
[null,"Economía.- La información necesaria para generar el indicador deberá estar disponible a un costo razonable"]
[null,"Monitoreable.- El indicador debe poder sujetarse a una comprobación independiente"]
[null," Adecuado.- El indicador deberá aportar una base suficiente para evaluar el desempeño"]
[null,"Aporte marginal.- En el caso de que exista más de un indicador para medir el desempeño en determinado nivel de objetivo, el indicador debe proveer información adicional en comparación con los otros indicadores propuestos."]
[]
[null,"Contacto indicador  "]
[null,"Nombre:  Se deberá anotar el nombre del responsable directo de proporcionar información técnica sobre el indicador. "]
[null,"Apellido Paterno"]
[null,"Apellido Materno"]
[null,"Área"]
[null,"Puesto"]
[null,"Correo Electrónico"]
[null,"Teléfono (Lada, teléfono y extensión)"]
[]
[null,"Viabilidad de la meta"]
[null,"Meta acumulable: Se debe indicar si las características del indicador permiten que los valores de los diferentes periodos se sumen o no. "]
[null,"Comportamiento del indicador. Establece si el indicador a lo largo del tiempo tiene un comportamiento ascendente, descendente, regular o nominal. "]
[null,"• Ascendente.- si el resultado a lograr significa incrementar el valor del indicador."]
[null,"• Descendente.- si el resultado a lograr significa disminuir el valor del indicador."]
[null,"• Regular.- si el resultado a lograr significa mantener el valor del indicador dentro de determinado rango, y"]
[null,"• Nominal.- se tomará como un resultado independiente del historial del indicador."]
[null,"Factibilidad de la meta.- Establece, desde la perspectiva de la UR responsable del Pp la posibilidad real de alcanzar la meta"]
[null,"Alta"]
[null,"Media"]
[null,"Justificación de la Factibilidad.- Establece los argumentos que sirvieron de base para calificar la factibilidad de la meta."]
[]
[null,"Línea Base. \nEl valor inicial del indicador que se toma como referencia para comparar el avance del objetivo se llama Línea Base.\n"]
[null,"Año de la Línea Base.- Se deberá anotar el año que se toma como referencia para comparar los avances del Pp. Regularmente se recomienda tomar el año  en que terminó la administración anterior. Cuando un indicador vuelve a cero al término de cada ciclo, la línea base es 0.0 porque ese es el valor con el que inicia el nuevo ciclo."]
[null,"Indicador.- Se refiere al valor que tuvo el indicador en el momento de la medición inicial de referencia.  Cuando no se cuenta con línea base, se deberá anotar 0.0 y escribir la justificación en el campo correspondiente. "]
[null,"Numerador.- Se refiere al valor que tuvo el numerador del indicador en el momento de la medición inicial de referencia."]
[null,"Denominador.- Se refiere al valor que tuvo el denominador del indicador en el momento de la medición inicial de referencia."]
[null,"Periodo línea base.- Puede ser que en algunos casos, la línea base esté referida a un momento particular del año (inicio de cursos, trimestre II,  semana santa, etc.), en estas ocasiones deberá especificarse el periodo."]
[null,"Justificación línea base.- En este campo se deberá establecer cuando un indicador, por su reciente elaboración, no cuenta con una línea base. En este caso se deberá anotar aquí el año y periodo en que se tiene previsto realizar la primera medición, la cual será considerada como línea base."]
[]
[null,"Parámetros de semaforización\nSe refiere a los parámetros que la UR que opera el Pp establece como rango para calificar al avance como en semáforo verde, amarillo o rojo. "]
[null,"Tipo de valor.- Los umbrales de semaforización pueden definirse en términos absolutos o porcentuales"]
[null,"Umbral verde: Valor límite aceptable"]
[null,"Umbral amarillo: Valor en riesgo"]
[null,"Umbral rojo: Valor crítico"]
[]
[null,"Metas del ciclo presupuestario"]
[null,"Periodo: Asociado a la frecuencia de medición."]
[null,"Indicador.- Se refiere al valor del indicador en el periodo correspondiente."]
[null,"Numerador.- Se refiere al dividendo en el periodo correspondiente."]
[null,"Denominador.- Se refiere al valor que se estima alcanzará el divisor en el periodo correspondiente."]
[null,"Periodo al que corresponde el valor.- Se refiere al periodo de medición del indicador"]
[]
[null,"Características de las variables\nDescripción de las variables que componen el indicador, se agrega una sección por cada variable."]
[null,"Nombre: denominación de la variable."]
[null,"Descripción de la variable: expresa a la variable en términos de su significado conceptual "]
[null,"Medios de verificación: identifica las fuentes de información,  sistema o documentos en donde se origina la información, a efecto medir los indicadores y verificar que los objetivos se lograron. Si la fuente es un documento, debe incluir toda la información bibliográfica. Se debe anotar la información mínima necesaria para que el usuario pueda recuperar la información directamente."]
[null,"Unidad de medida: magnitud de referencia que permite cuantificar y comparar los elementos de las variables. "]
[null,"Desagregación geográfica: indica los niveles territoriales para los que está disponible la variable:  ciudad, alcaldía"]
[null,"Frecuencia: es el periodo de tiempo en el cual se calcula la variable (mensual, bimestral, trimestral, cuatrimestral, semestral, anual o superior). "]
[null,"Método de recopilación de datos: indica el método estadístico de recolección de datos, el cual puede ser: censo, encuesta o explotación de registros administrativos."]
[null,"Fecha de disponibilidad de la información: se refiere al momento en que la información puede ser consultada por los usuarios."]
[]
[null,"Serie estadística\nSon los valores del indicador para años previos, incluso más allá de la línea base."]
[null,"Ciclo serie: año al que está referido el dato de la serie."]
[null,"Valor serie: valor del indicador."]
[null,"Periodo de la serie: Cuando en un año se realizan diversas mediciones del indicador, se debe especificar a cuál de ellas corresponde el valor. (Ejemplo: matrícula escolar, se puede medir a inicio de cursos o a fin de cursos)"]
[]
[null,null,null,null,null,null,"Última actualización 08/10/2021"]
[null,null,null,null,null,null,null,{"$f":"MATCH(H34,[4]Hoja2!F8:I8,0)","v":1}]

{"sheet":"P","index":1,"n_rows":248,"n_cols":8,"rows_kept":248,"cut":false,"hidden":false,"merged":[[5,1,5,7],[6,1,6,7],[7,1,7,7],[9,1,9,2],[9,3,9,7],[25,1,25,7],[27,1,27,3],[27,4,27,7],[14,1,14,7],[16,1,16,7],[18,1,18,3],[18,4,18,7],[10,1,10,2],[10,3,10,7],[11,1,11,2],[11,3,11,7],[12,1,12,2],[12,3,12,7],[29,1,29,7],[31,1,31,7],[33,1,36,1],[33,2,36,5],[33,6,36,6],[33,7,36,7],[20,1,20,7],[22,4,22,7],[23,1,23,2],[23,3,23,7],[43,1,43,3],[43,4,43,7],[44,1,44,3],[44,4,44,7],[45,1,45,3],[45,4,45,7],[38,1,38,7],[41,1,41,2],[41,4,41,6],[42,1,42,3],[42,4,42,7],[40,1,40,2],[40,3,40,7],[49,1,49,7],[51,1,51,7],[52,1,52,7],[54,1,54,7],[55,1,55,7],[46,1,46,3],[46,4,46,7],[47,1,47,3],[47,4,47,7],[63,1,63,7],[64,1,64,7],[65,1,65,7],[66,4,66,5],[56,3,56,7],[61,3,61,7],[62,3,62,7],[57,3,57,7],[58,3,58,7],[59,3,59,7],[60,3,60,7],[70,4,70,5],[71,1,71,7],[72,1,72,7],[67,1,67,2],[67,3,67,7],[68,1,68,2],[68,3,68,7],[69,1,69,2],[69,3,69,7],[82,4,82,5],[82,6,82,7],[84,1,84,7],[85,1,85,7],[87,1,87,7],[89,2,89,7],[73,1,73,7],[74,4,74,5],[75,1,75,7],[76,1,76,7],[78,1,78,7],[80,1,81,1],[80,2,80,5],[80,6,81,7],[81,4,81,5],[94,9,94,13],[95,4,95,5],[95,6,95,7],[96,4,96,5],[96,6,96,7],[92,1,92,7],[93,1,94,1],[93,2,93,5],[93,6,94,7],[94,4,94,5],[103,1,103,3],[103,5,103,7],[104,1,104,3],[104,5,104,7],[105,5,105,7],[97,4,97,5],[97,6,97,7],[98,4,98,5],[98,6,98,7],[100,1,100,7],[102,1,102,3],[102,5,102,7],[105,1,105,3],[109,1,109,3],[109,5,109,7],[110,1,110,3],[110,5,110,7],[111,1,111,3],[111,5,111,7],[106,1,106,3],[106,5,106,7],[107,1,107,3],[107,5,107,7],[108,1,108,3],[108,5,108,7],[118,1,118,3],[118,5,118,7],[115,1,115,3],[115,5,115,7],[117,1,117,3],[117,5,117,7],[112,1,112,3],[112,5,112,7],[113,1,113,3],[113,5,113,7],[114,5,114,7],[114,1,114,3],[116,5,116,7],[116,1,116,3],[120,1,120,7],[137,1,137,7],[138,1,138,7],[139,1,139,7],[127,5,127,7],[128,5,128,7],[122,3,122,4],[123,3,123,4],[127,1,127,2],[128,1,128,2],[124,3,124,4],[125,3,125,4],[126,3,126,4],[127,3,127,4],[128,3,128,4],[122,1,122,2],[123,1,123,2],[124,1,124,2],[125,1,125,2],[126,1,126,2],[146,1,146,7],[147,1,147,7],[148,1,148,7],[151,1,151,7],[140,1,140,7],[141,1,141,7],[142,1,142,7],[144,1,144,7],[145,1,145,7],[150,1,150,7],[157,1,157,7],[158,1,158,7],[159,1,159,7],[160,1,160,7],[161,1,161,7],[162,1,162,7],[153,1,153,7],[154,1,154,7],[155,1,155,7],[170,1,170,7],[171,1,171,7],[172,1,172,7],[173,1,173,7],[174,1,174,7],[175,1,175,7],[163,1,163,7],[164,1,164,7],[165,1,165,7],[166,1,166,7],[168,1,168,7],[169,1,169,7],[167,1,167,7],[179,1,179,7],[186,1,186,7],[187,1,187,7],[176,1,176,7],[181,1,181,7],[178,1,178,7],[183,1,183,7],[189,1,189,7],[182,1,182,7],[184,1,184,7],[185,1,185,7],[194,1,194,7],[195,1,195,7],[196,1,196,7],[199,1,199,7],[200,1,200,7],[190,1,190,7],[191,1,191,7],[192,1,192,7],[193,1,193,7],[198,1,198,7],[210,1,210,7],[211,1,211,7],[212,1,212,7],[213,1,213,7],[214,1,214,7],[201,1,201,7],[202,1,202,7],[203,1,203,7],[204,1,204,7],[205,1,205,7],[208,1,208,7],[215,1,215,7],[216,1,216,7],[218,1,218,7],[219,1,219,7],[220,1,220,7],[221,1,221,7],[222,1,222,7],[224,1,224,7],[225,1,225,7],[226,1,226,7],[231,1,231,7],[241,1,241,7],[234,1,234,7],[235,1,235,7],[236,1,236,7],[237,1,237,7],[238,1,238,7],[239,1,239,7],[227,1,227,7],[228,1,228,7],[229,1,229,7],[232,1,232,7],[233,1,233,7],[244,1,244,7],[245,1,245,7],[248,1,248,7],[249,1,249,7],[242,1,242,7],[243,1,243,7],[256,1,256,7],[257,1,257,7],[246,6,246,7],[258,1,258,7],[259,1,259,7],[260,1,260,7],[261,1,261,7],[250,1,250,7],[251,1,251,7],[252,1,252,7],[253,1,253,7],[254,1,254,7],[255,1,255,7],[268,1,268,7],[269,1,269,7],[270,1,270,7],[271,1,271,7],[272,1,272,7],[273,1,273,7],[262,1,262,7],[263,1,263,7],[264,1,264,7],[265,1,265,7],[266,1,266,7],[267,1,267,7],[280,1,280,7],[281,1,281,7],[282,1,282,7],[283,1,283,7],[284,1,284,7],[285,1,285,7],[274,1,274,7],[275,1,275,7],[276,1,276,7],[277,1,277,7],[278,1,278,7],[279,1,279,7],[292,1,292,7],[293,1,293,7],[294,1,294,7],[295,1,295,7],[296,1,296,7],[297,1,297,7],[286,1,286,7],[287,1,287,7],[288,1,288,7],[289,1,289,7],[290,1,290,7],[291,1,291,7],[304,1,304,7],[305,1,305,7],[306,1,306,7],[307,1,307,7],[308,1,308,7],[309,1,309,7],[298,1,298,7],[299,1,299,7],[300,1,300,7],[301,1,301,7],[302,1,302,7],[303,1,303,7],[316,1,316,7],[317,1,317,7],[318,1,318,7],[319,1,319,7],[320,1,320,7],[321,1,321,7],[310,1,310,7],[311,1,311,7],[312,1,312,7],[313,1,313,7],[314,1,314,7],[315,1,315,7],[328,1,328,7],[329,1,329,7],[330,1,330,7],[331,1,331,7],[332,1,332,7],[333,1,333,7],[322,1,322,7],[323,1,323,7],[324,1,324,7],[325,1,325,7],[326,1,326,7],[327,1,327,7],[340,1,340,7],[341,1,341,7],[342,1,342,7],[343,1,343,7],[344,1,344,7],[345,1,345,7],[334,1,334,7],[335,1,335,7],[336,1,336,7],[337,1,337,7],[338,1,338,7],[339,1,339,7],[352,1,352,7],[353,1,353,7],[354,1,354,7],[355,1,355,7],[356,1,356,7],[357,1,357,7],[346,1,346,7],[347,1,347,7],[348,1,348,7],[349,1,349,7],[350,1,350,7],[351,1,351,7],[364,1,364,7],[365,1,365,7],[366,1,366,7],[367,1,367,7],[368,1,368,7],[369,1,369,7],[358,1,358,7],[359,1,359,7],[360,1,360,7],[361,1,361,7],[362,1,362,7],[363,1,363,7],[376,1,376,7],[377,1,377,7],[378,1,378,7],[379,1,379,7],[380,1,380,7],[381,1,381,7],[370,1,370,7],[371,1,371,7],[372,1,372,7],[373,1,373,7],[374,1,374,7],[375,1,375,7],[388,1,388,7],[389,1,389,7],[390,1,390,7],[391,1,391,7],[392,1,392,7],[393,1,393,7],[382,1,382,7],[383,1,383,7],[384,1,384,7],[385,1,385,7],[386,1,386,7],[387,1,387,7],[400,1,400,7],[401,1,401,7],[402,1,402,7],[403,1,403,7],[404,1,404,7],[405,1,405,7],[394,1,394,7],[395,1,395,7],[396,1,396,7],[397,1,397,7],[398,1,398,7],[399,1,399,7],[412,1,412,7],[413,1,413,7],[414,1,414,7],[415,1,415,7],[416,1,416,7],[417,1,417,7],[406,1,406,7],[407,1,407,7],[408,1,408,7],[409,1,409,7],[410,1,410,7],[411,1,411,7],[424,1,424,7],[425,1,425,7],[426,1,426,7],[427,1,427,7],[428,1,428,7],[429,1,429,7],[418,1,418,7],[419,1,419,7],[420,1,420,7],[421,1,421,7],[422,1,422,7],[423,1,423,7],[436,1,436,7],[437,1,437,7],[438,1,438,7],[439,1,439,7],[440,1,440,7],[441,1,441,7],[430,1,430,7],[431,1,431,7],[432,1,432,7],[433,1,433,7],[434,1,434,7],[435,1,435,7],[448,1,448,7],[449,1,449,7],[450,1,450,7],[451,1,451,7],[452,1,452,7],[453,1,453,7],[442,1,442,7],[443,1,443,7],[444,1,444,7],[445,1,445,7],[446,1,446,7],[447,1,447,7],[460,1,460,7],[461,1,461,7],[462,1,462,7],[463,1,463,7],[464,1,464,7],[465,1,465,7],[454,1,454,7],[455,1,455,7],[456,1,456,7],[457,1,457,7],[458,1,458,7],[459,1,459,7],[472,1,472,7],[473,1,473,7],[474,1,474,7],[475,1,475,7],[476,1,476,7],[477,1,477,7],[466,1,466,7],[467,1,467,7],[468,1,468,7],[469,1,469,7],[470,1,470,7],[471,1,471,7],[484,1,484,7],[485,1,485,7],[486,1,486,7],[487,1,487,7],[488,1,488,7],[489,1,489,7],[478,1,478,7],[479,1,479,7],[480,1,480,7],[481,1,481,7],[482,1,482,7],[483,1,483,7],[496,1,496,7],[497,1,497,7],[498,1,498,7],[499,1,499,7],[500,1,500,7],[501,1,501,7],[490,1,490,7],[491,1,491,7],[492,1,492,7],[493,1,493,7],[494,1,494,7],[495,1,495,7],[508,1,508,7],[509,1,509,7],[510,1,510,7],[511,1,511,7],[512,1,512,7],[513,1,513,7],[502,1,502,7],[503,1,503,7],[504,1,504,7],[505,1,505,7],[506,1,506,7],[507,1,507,7],[520,1,520,7],[521,1,521,7],[522,1,522,7],[523,1,523,7],[524,1,524,7],[525,1,525,7],[514,1,514,7],[515,1,515,7],[516,1,516,7],[517,1,517,7],[518,1,518,7],[519,1,519,7],[532,1,532,7],[533,1,533,7],[534,1,534,7],[535,1,535,7],[536,1,536,7],[537,1,537,7],[526,1,526,7],[527,1,527,7],[528,1,528,7],[529,1,529,7],[530,1,530,7],[531,1,531,7],[544,1,544,7],[545,1,545,7],[546,1,546,7],[547,1,547,7],[548,1,548,7],[549,1,549,7],[538,1,538,7],[539,1,539,7],[540,1,540,7],[541,1,541,7],[542,1,542,7],[543,1,543,7],[556,1,556,7],[557,1,557,7],[558,1,558,7],[559,1,559,7],[560,1,560,7],[561,1,561,7],[550,1,550,7],[551,1,551,7],[552,1,552,7],[553,1,553,7],[554,1,554,7],[555,1,555,7],[568,1,568,7],[569,1,569,7],[570,1,570,7],[571,1,571,7],[572,1,572,7],[573,1,573,7],[562,1,562,7],[563,1,563,7],[564,1,564,7],[565,1,565,7],[566,1,566,7],[567,1,567,7],[580,1,580,7],[581,1,581,7],[582,1,582,7],[583,1,583,7],[584,1,584,7],[585,1,585,7],[574,1,574,7],[575,1,575,7],[576,1,576,7],[577,1,577,7],[578,1,578,7],[579,1,579,7],[592,1,592,7],[593,1,593,7],[594,1,594,7],[595,1,595,7],[596,1,596,7],[597,1,597,7],[586,1,586,7],[587,1,587,7],[588,1,588,7],[589,1,589,7],[590,1,590,7],[591,1,591,7],[604,1,604,7],[605,1,605,7],[606,1,606,7],[607,1,607,7],[608,1,608,7],[609,1,609,7],[598,1,598,7],[599,1,599,7],[600,1,600,7],[601,1,601,7],[602,1,602,7],[603,1,603,7],[616,1,616,7],[617,1,617,7],[618,1,618,7],[619,1,619,7],[620,1,620,7],[621,1,621,7],[610,1,610,7],[611,1,611,7],[612,1,612,7],[613,1,613,7],[614,1,614,7],[615,1,615,7],[631,1,631,7],[632,1,632,7],[633,1,633,7],[622,1,622,7],[623,1,623,7],[624,1,624,7],[625,1,625,7],[626,1,626,7],[627,1,627,7],[661,1,661,7],[652,1,652,7],[653,1,653,7],[654,1,654,7],[655,1,655,7],[656,1,656,7],[657,1,657,7],[646,1,646,7],[647,1,647,7],[648,1,648,7],[649,1,649,7],[650,1,650,7],[651,1,651,7],[90,6,90,7],[122,5,122,7],[123,5,123,7],[124,5,124,7],[125,5,125,7],[126,5,126,7],[658,1,658,7],[659,1,659,7],[660,1,660,7],[640,1,640,7],[641,1,641,7],[642,1,642,7],[643,1,643,7],[644,1,644,7],[645,1,645,7],[634,1,634,7],[635,1,635,7],[636,1,636,7],[637,1,637,7],[638,1,638,7],[639,1,639,7],[628,1,628,7],[629,1,629,7],[630,1,630,7]]}
[]
[]
[]
[]
[]
[null,"PRESUPUESTO DE EGRESOS 2022"]
[null,"FICHA TÉCNICA"]
[null,"Datos de Identificación del Programa Presupuestario (Pp)"]
[]
[null,"Unidad responsable del Pp ",null,"ALCALDÍA TLALPAN"]
[null,"Clasificación del Pp ",null,"S206"]
[null,"Denominación del Pp ",null,{"$f":"VLOOKUP(D11,Catálogo!AU1:AV333,2,0)","v":"FORMACIÓN MUSICAL, TLALPAN"}]
[null,"Nombre de la Matriz ",null,{"$f":"D11&\" \"&D12","v":"S206 FORMACIÓN MUSICAL, TLALPAN"}]
[]
[null,"Alineación con el PGD y sus Programas derivados "]
[]
[null,"Plan General de Desarrollo de la Ciudad de México"]
[]
[null,"Eje de política pública al que contribuye el Pp ",null,null,"Eje 4. Ciudad de México, capital cultural de America Latina"]
[]
[null,"Programas del Plan General de Desarrollo de la Ciudad de México"]
[]
[null,"Tipo de Programa ","Institucional","Programa ","Formación Musical, Tlalpan "]
[null,"Objetivo del Programa ",null,"Brindar educación musical a residentes de la Alcaldía Tlalpan."]
[]
[null,"Alineación con Objetivos del Desarrollo Sostenible"]
[]
[null,"Objetivo al que contribuye el Pp ",null,null,"10. Reducción de las desigualdades"]
[]
[null,"Matriz de Indicadores para Resultados "]
[]
[null,"Resumen Narrativo "]
[]
[null,"Resumen narrativo","Habitantes de la Alcaldía Tlalpan reciben talleres gratuitos de educación musical.",null,null,null,"Nivel en la Matriz de Marco Lógico","Propósito"]
[]
[]
[]
[]
[null,"Datos de identificación del indicador "]
[]
[null,"Nombre del indicador ",null,"Porcentaje de talleres gratuitos de formación musical"]
[null,"Dimensión del indicador ",null,"Eficacia","Tipo de indicador para resultados ",null,null,"Estratégico"]
[null,"Definición del indicador ",null,null,"Tipo de valor de la meta"]
[null,"Mide el procentaje de talleres gratuitos de formación musical impartidos, respecto a los talleres de formación musical programados a impartir",null,null,"Relativa"]
[null,"Método de cálculo ",null,null,"Unidad de medida "]
[null,"(Número talleres de formación musical impartidos / Número de talleres de formación musical programados a impartir)*100",null,null,"Porcentaje"]
[null,"Desagregación geográfica ",null,null,"Frecuencia de medición "]
[null,"Alcaldía",null,null,"Anual"]
[]
[null,"Serie de Información Disponible "]
[]
[null,"Información disponible "]
[null,"Informes del programa"]
[]
[null,"Criterios CREMAA"]
[]
[null,"Característica ","Calificación ","Justificación "]
[null,"Claridad","Cumple",{"$f":"IF(C58=\"Cumple\",Catálogo!AG2,Catálogo!AH2)","v":"El indicador es preciso y de fácil comprensión por usuarios no especializados, pues su formulación es sencilla."}]
[null,"Relevancia","Cumple",{"$f":"IF(C59=\"Cumple\",Catálogo!AG3,Catálogo!AH3)","v":"El indicador aporta información respecto a los efectos que tienen las acciones del Programa sobre los objetivos que este se ha planteado en el ejercicio presupuestal reportado, a su vez permite observar tendencias acerca de los impactos del Programa sobre la problemática que éste atiende en el mediano y largo plazo."}]
[null,"Economía","Cumple",{"$f":"IF(C60=\"Cumple\",Catálogo!AG4,Catálogo!AH4)","v":"El indicador no requiere recursos adicionales para su medición, pues la información se obtiene del desarrollo cotidiano del programa."}]
[null,"Monitoreable","Cumple",{"$f":"IF(C61=\"Cumple\",Catálogo!AG5,Catálogo!AH5)","v":"Se calcula a partir de las bases de datos generadas durante la operación del programa, por lo que se tienen datos a lo largo del ciclo presupuestal que permiten dar seguimiento al comportamiento del indicador."}]
[null,"Adecuado","Cumple",{"$f":"IF(C62=\"Cumple\",Catálogo!AG6,Catálogo!AH6)","v":"Se considera que el indicador es preciso para estimar el logro del objetivo."}]
[null,"Aporte marginal","No cumple",{"$f":"IF(C63=\"Cumple\",Catálogo!AG7,Catálogo!AH7)","v":"El indicador no proporciona información adicional a los demás indicadores."}]
[]
[null,"Contacto indicador "]
[]
[null,"Nombre ","Ma. Gabriela ","Apellido paterno ","Rodriguez ",null,"Apellido materno ","Valencia"]
[null,"Área ",null,"DIRECCIÓN GENERAL DE DERECHOS CULTURALES Y EDUCATIVOS"]
[null,"Puesto ",null,"COORDINADORA DE CULTURA"]
[null,"Correo electrónico ",null,"mrodriguezv@tlalpan.cdmx.gob.mx"]
[null,"Lada ",55,"Teléfono",54859048,null,"Extensión "]
[]
[null,"Viabilidad de la meta "]
[]
[null,"Meta acumulable ","Sí","Comportamiento del indicador ","Ascendente",null,"Factibilidad de la meta ","Alta"]
[null,"Justificación de la factibilidad "]
[null,"Es altamente factible alcanzar la meta, dado que se calculó con base en los recursos financieron, humanos y técnicos para alcanzarla."]
[]
[null,"Línea base "]
[]
[null,"Año ","Valor ",null,null,null,"Periodo al que corresponde el valor"]
[null,null,"Indicador\n(relativo)","Numerador\n(absoluto)","Denominador\n(universo de cobertura)"]
[null,2021,{"$f":"D83/E83","v":1},250,250,null,"Anual"]
[]
[null,"Justificación línea base"]
[null,"Sí se alcanzó la meta de 100% dadas las condiciones del programa."]
[]
[null,"Parámetros de semaforización "]
[]
[null,"Tipo de valor","Relativo"]
[null,"Umbral verde ","85% a 100%","Umbral amarillo","70% al 85%","Umbral rojo ","menos 70%"]
[]
[null,"Metas del ciclo presupuestario"]
[null,"Periodo (según la frecuencia de medición)","Valor",null,null,null,"Periodo al que corresponde el valor"]
[null,null,"Indicador (relativo)","Numerador (absoluto)","Denominador (universo de cobertura)"]
[null,"Trimestre 1",{"$f":"D96/E96","v":1},34,34,null,"Enero - marzo"]
[null,"Trimestre 2",{"$f":"D97/E97","v":1},34,34,null,"Abril - junio"]
[null,"Trimestre 3",1,34,34,null,"Julio - septiembre"]
[null," Trimestre 4",1,34,34,null,"Octubre - diciembre"]
[]
[null,"Características de las variables \n(Se debe llenar este conjunto tanta veces como número de variables existan)"]
[]
[null,"Nombre ",null,null,null,"Descripción de la variable "]
[null,"Número talleres de formación musical impartidos",null,null,null,"Es el número talleres de formación musical impartidos, respecto a los talleres programados"]
[null,"Medios de verificación",null,null,null,"Unidad de medida"]
[null,"Informes del programa",null,null,null,"Porcentaje "]
[null,"Desagregación geográfica ",null,null,null,"Frecuencia"]
[null,"Alcaldía",null,null,null,"Anual"]
[null,"Método de recopilación de datos ",null,null,null,"Fecha de disponibilidad de la información "]
[null,"Explotación de registros administrativos",null,null,null,2022]
[]
[null,"Nombre ",null,null,null,"Descripción de la variable "]
[null,"Número de talleres de formación musical programados a impartir",null,null,null,"Es el úmero de talleres de formación musical programados a impartir, respecto a los talleres impartidpos"]
[null,"Medios de verificación ",null,null,null,"Unidad de medida"]
[null,"Informes del programa",null,null,null,"Porcentaje"]
[null,"Desagregación geográfica ",null,null,null,"Frecuencia"]
[null,"Alcaldía",null,null,null,"Anual"]
[null,"Método de recopilación de datos ",null,null,null,"Fecha de disponibilidad de la información  "]
[null,"Explotación de registros administrativos",null,null,null,2022]
[]
[null,"Serie estadística "]
[]
[null,"Ciclo serie",null,"Valor serie",null,"Periodo de la serie"]
[null,2020,null,1,null,"Enero - diciembre"]
[null,2021,null,1,null,"Enero - diciembre"]
[]
[]
[]
[]
[]
[]
[]
[]
[]
[]
[]
[]
[null,"Instructivo de la Ficha Técnica"]
[null,"Datos de identificación del programa presupuestario (Pp)"]
[null,"Unidad responsable del Pp: Dependencia encargada del Programa"]
[null,"Clasificación del Pp: Categoría programática, que de acuerdo al catalogó emitido por la  Comisión  Nacional de Armonización Contable (CONAC), clasifica los programas presupuestarios  de acuerdo a su naturaleza generalmente con la inicial de una letra y seguida por números"]
[null,"Denominación del Pp: Nombre del Programa Presupuestario "]
[null,"Nombre de la Matriz: Conjunción de la clasificación y denominación del Programa"]
[]
[null,"Alineación con el PGD  y sus Programas derivados"]
[null,"Eje de política pública al que contribuye el Pp:   Se refiere a alguno de los 6 ejes del Plan General de Gobierno de la Ciudad de México"]
[null,"Tipo de Programa:  Los referidos en el Artículo 22 de la Ley de Planeación (Sectorial, Regional, Especial, Institucional)"]
[null,"Programa: Se especificará el nombre del programa según la clasificación arriba mencionada."]
[null,"Objetivo del Programa:  Se refiere a los objetivos del programa señalado en el inciso anterior."]
[]
[null,"Alineación con Objetivos del Desarrollo Sostenible"]
[null,"Objetivo al que contribuye el Pp: Se refiere al objetivo de desarrollo sostenible al que abona el programa"]
[]
[null,"Matriz de Indicadores para Resultados"]
[null,"Resumen Narrativo: Se registran los objetivos por cada nivel de la Matriz"]
[null,"Nivel en la Matriz de Marco Lógico: Se refiere al nviel del indicador, puede ser: Fin, Propósito, Componentes o Actividad, según sea el caso."]
[]
[null,"Datos de identificación del indicador"]
[null,"Nombre del indicador: denominación precisa y única con la que se distingue al indicador. "]
[null,"Dimensión del indicador: se refieren al aspecto particular del objetivo a ser medido mediante el indicador, puede ser:"]
[null,"• Eficacia: mide el grado de cumplimiento de los objetivos."]
[null,"• Eficiencia: mide la relación entre los productos y servicios generados con respecto a los insumos o recursos utilizados."]
[null,"• Economía: mide la capacidad del programa o de la institución para generar y movilizar adecuadamente los recursos financieros."]
[null,"• Calidad: mide los atributos, propiedades o características que deben tener los bienes y servicios para satisfacer los objetivos del programa."]
[null,"Tipo de indicador para Resultados: Se refiere a la naturaleza del indicador que corresponde a cada nivel de la Matriz de Indicadores para Resultados, puede ser:"]
[null,"• Estratégico.- Que está orientado a medir los efectos del Pp."]
[null,"• De gestión.- Qué está orientado a medir la forma en que trabaja el Pp."]
[null,"Considerar que según el nivel de la MIR los indicadores puedes ser:"]
[null,"• Para FIN y PROPÓSITO =  Estratégico."]
[null,"• Para COMPONENTE = Estratégico o Gestión."]
[null,"• Para ACTIVIDADES = Gestión."]
[null,"Definición del indicador: expresa al indicador en términos de su significado conceptual. Puede desde el punto de vista operativo, expresar al indicador en términos de las variables que en él intervienen."]
[null,"Tipo de valor de la Meta.- Indica si la meta es absoluta o relativa. Generalmente, la mayoría de los indicadores son expresados en números relativos, ya que por definición provienen de relacionar dos o más datos significativos, sin embargo, excepcionalmente se pueden utilizar indicadores referidos en números absolutos, tal es el caso del PIB. "]
[null,"Método de cálculo: se refiere a la expresión algebraica del indicador, a la explicación sencilla de la forma en que se relacionan las variables y a la metodología para calcular el indicador."]
[null,"Unidad de medida: magnitud de referencia que permite cuantificar y comparar elementos del indicador."]
[null,"Desagregación geográfica: indica los niveles territoriales para los que está disponible el indicador: ciudad, alcaldía"]
[null,"Frecuencia de medición: es el periodo de tiempo en el cual se calcula el indicador (mensual, bimestral, trimestral, cuatrimestral, semestral, anual o superior). La frecuencia de medición determinará la cantidad de periodos en los que se calendarizarán las metas para el indicador, por lo cual deberá tener precaución al seleccionar la frecuencia de medición. "]
[]
[null,"Serie de Información Disponible"]
[null,"Información disponible: Describe textualmente al conjunto de mediciones del indicador disponibles, se deben indicar cambios en la serie por cuestiones metodológicas u otras."]
[]
[null,"Criterios CREMAA"]
[null,"Claridad.- Es conveniente que los indicadores tengan una expresión sencilla con el propósito de que sean fácilmente comprensibles por los usuarios no especializados"]
[null,"Relevancia.- Un indicador debe expresar elementos de importancia o significativos en la medición de los avances y logros de un objetivo"]
[null,"Economía.- La información necesaria para generar el indicador deberá estar disponible a un costo razonable"]
[null,"Monitoreable.- El indicador debe poder sujetarse a una comprobación independiente"]
[null," Adecuado.- El indicador deberá aportar una base suficiente para evaluar el desempeño"]
[null,"Aporte marginal.- En el caso de que exista más de un indicador para medir el desempeño en determinado nivel de objetivo, el indicador debe proveer información adicional en comparación con los otros indicadores propuestos."]
[]
[null,"Contacto indicador  "]
[null,"Nombre:  Se deberá anotar el nombre del responsable directo de proporcionar información técnica sobre el indicador. "]
[null,"Apellido Paterno"]
[null,"Apellido Materno"]
[null,"Área"]
[null,"Puesto"]
[null,"Correo Electrónico"]
[null,"Teléfono (Lada, teléfono y extensión)"]
[]
[null,"Viabilidad de la meta"]
[null,"Meta acumulable: Se debe indicar si las características del indicador permiten que los valores de los diferentes periodos se sumen o no. "]
[null,"Comportamiento del indicador. Establece si el indicador a lo largo del tiempo tiene un comportamiento ascendente, descendente, regular o nominal. "]
[null,"• Ascendente.- si el resultado a lograr significa incrementar el valor del indicador."]
[null,"• Descendente.- si el resultado a lograr significa disminuir el valor del indicador."]
[null,"• Regular.- si el resultado a lograr significa mantener el valor del indicador dentro de determinado rango, y"]
[null,"• Nominal.- se tomará como un resultado independiente del historial del indicador."]
[null,"Factibilidad de la meta.- Establece, desde la perspectiva de la UR responsable del Pp la posibilidad real de alcanzar la meta"]
[null,"Alta"]
[null,"Media"]
[null,"Justificación de la Factibilidad.- Establece los argumentos que sirvieron de base para calificar la factibilidad de la meta."]
[]
[null,"Línea Base. \nEl valor inicial del indicador que se toma como referencia para comparar el avance del objetivo se llama Línea Base.\n"]
[null,"Año de la Línea Base.- Se deberá anotar el año que se toma como referencia para comparar los avances del Pp. Regularmente se recomienda tomar el año  en que terminó la administración anterior. Cuando un indicador vuelve a cero al término de cada ciclo, la línea base es 0.0 porque ese es el valor con el que inicia el nuevo ciclo."]
[null,"Indicador.- Se refiere al valor que tuvo el indicador en el momento de la medición inicial de referencia.  Cuando no se cuenta con línea base, se deberá anotar 0.0 y escribir la justificación en el campo correspondiente. "]
[null,"Numerador.- Se refiere al valor que tuvo el numerador del indicador en el momento de la medición inicial de referencia."]
[null,"Denominador.- Se refiere al valor que tuvo el denominador del indicador en el momento de la medición inicial de referencia."]
[null,"Periodo línea base.- Puede ser que en algunos casos, la línea base esté referida a un momento particular del año (inicio de cursos, trimestre II,  semana santa, etc.), en estas ocasiones deberá especificarse el periodo."]
[null,"Justificación línea base.- En este campo se deberá establecer cuando un indicador, por su reciente elaboración, no cuenta con una línea base. En este caso se deberá anotar aquí el año y periodo en que se tiene previsto realizar la primera medición, la cual será considerada como línea base."]
[]
[null,"Parámetros de semaforización\nSe refiere a los parámetros que la UR que opera el Pp establece como rango para calificar al avance como en semáforo verde, amarillo o rojo. "]
[null,"Tipo de valor.- Los umbrales de semaforización pueden definirse en términos absolutos o porcentuales"]
[null,"Umbral verde: Valor límite aceptable"]
[null,"Umbral amarillo: Valor en riesgo"]
[null,"Umbral rojo: Valor crítico"]
[]
[null,"Metas del ciclo presupuestario"]
[null,"Periodo: Asociado a la frecuencia de medición."]
[null,"Indicador.- Se refiere al valor del indicador en el periodo correspondiente."]
[null,"Numerador.- Se refiere al dividendo en el periodo correspondiente."]
[null,"Denominador.- Se refiere al valor que se estima alcanzará el divisor en el periodo correspondiente."]
[null,"Periodo al que corresponde el valor.- Se refiere al periodo de medición del indicador"]
[]
[null,"Características de las variables\nDescripción de las variables que componen el indicador, se agrega una sección por cada variable."]
[null,"Nombre: denominación de la variable."]
[null,"Descripción de la variable: expresa a la variable en términos de su significado conceptual "]
[null,"Medios de verificación: identifica las fuentes de información,  sistema o documentos en donde se origina la información, a efecto medir los indicadores y verificar que los objetivos se lograron. Si la fuente es un documento, debe incluir toda la información bibliográfica. Se debe anotar la información mínima necesaria para que el usuario pueda recuperar la información directamente."]
[null,"Unidad de medida: magnitud de referencia que permite cuantificar y comparar los elementos de las variables. "]
[null,"Desagregación geográfica: indica los niveles territoriales para los que está disponible la variable:  ciudad, alcaldía"]
[null,"Frecuencia: es el periodo de tiempo en el cual se calcula la variable (mensual, bimestral, trimestral, cuatrimestral, semestral, anual o superior). "]
[null,"Método de recopilación de datos: indica el método estadístico de recolección de datos, el cual puede ser: censo, encuesta o explotación de registros administrativos."]
[null,"Fecha de disponibilidad de la información: se refiere al momento en que la información puede ser consultada por los usuarios."]
[]
[null,"Serie estadística\nSon los valores del indicador para años previos, incluso más allá de la línea base."]
[null,"Ciclo serie: año al que está referido el dato de la serie."]
[null,"Valor serie: valor del indicador."]
[null,"Periodo de la serie: Cuando en un año se realizan diversas mediciones del indicador, se debe especificar a cuál de ellas corresponde el valor. (Ejemplo: matrícula escolar, se puede medir a inicio de cursos o a fin de cursos)"]
[]
[null,null,null,null,null,null,"Última actualización 08/10/2021"]
[null,null,null,null,null,null,null,{"$f":"MATCH(H34,Hoja2!F8:I8,0)","v":2}]

{"sheet":"C1","index":2,"n_rows":248,"n_cols":8,"rows_kept":248,"cut":false,"hidden":false,"merged":[[5,1,5,7],[6,1,6,7],[7,1,7,7],[9,1,9,2],[9,3,9,7],[10,1,10,2],[10,3,10,7],[18,1,18,3],[18,4,18,7],[20,1,20,7],[22,4,22,7],[23,1,23,2],[23,3,23,7],[11,1,11,2],[11,3,11,7],[12,1,12,2],[12,3,12,7],[14,1,14,7],[16,1,16,7],[38,1,38,7],[40,1,40,2],[40,3,40,7],[41,1,41,2],[41,4,41,6],[42,1,42,3],[42,4,42,7],[25,1,25,7],[27,1,27,3],[27,4,27,7],[29,1,29,7],[31,1,31,7],[33,1,36,1],[33,2,36,5],[33,6,36,6],[33,7,36,7],[46,1,46,3],[46,4,46,7],[47,1,47,3],[47,4,47,7],[49,1,49,7],[51,1,51,7],[43,1,43,3],[43,4,43,7],[44,1,44,3],[44,4,44,7],[45,1,45,3],[45,4,45,7],[59,3,59,7],[60,3,60,7],[61,3,61,7],[62,3,62,7],[63,1,63,7],[64,1,64,7],[52,1,52,7],[54,1,54,7],[55,1,55,7],[56,3,56,7],[57,3,57,7],[58,3,58,7],[69,1,69,2],[69,3,69,7],[70,4,70,5],[71,1,71,7],[72,1,72,7],[73,1,73,7],[65,1,65,7],[66,4,66,5],[67,1,67,2],[67,3,67,7],[68,1,68,2],[68,3,68,7],[82,4,82,5],[82,6,82,7],[84,1,84,7],[85,1,85,7],[87,1,87,7],[89,2,89,7],[74,4,74,5],[75,1,75,7],[76,1,76,7],[78,1,78,7],[80,1,81,1],[80,2,80,5],[80,6,81,7],[81,4,81,5],[94,9,94,13],[95,4,95,5],[95,6,95,7],[96,4,96,5],[96,6,96,7],[97,4,97,5],[97,6,97,7],[90,6,90,7],[92,1,92,7],[93,1,94,1],[93,2,93,5],[93,6,94,7],[94,4,94,5],[104,1,104,3],[104,5,104,7],[105,1,105,3],[105,5,105,7],[106,1,106,3],[106,5,106,7],[98,4,98,5],[98,6,98,7],[100,1,100,7],[102,1,102,3],[102,5,102,7],[103,1,103,3],[103,5,103,7],[110,1,110,3],[110,5,110,7],[111,1,111,3],[111,5,111,7],[112,1,112,3],[112,5,112,7],[107,1,107,3],[107,5,107,7],[108,1,108,3],[108,5,108,7],[109,1,109,3],[109,5,109,7],[116,1,116,3],[116,5,116,7],[117,1,117,3],[117,5,117,7],[118,1,118,3],[118,5,118,7],[113,1,113,3],[113,5,113,7],[114,1,114,3],[114,5,114,7],[115,1,115,3],[115,5,115,7],[124,1,124,2],[124,3,124,4],[124,5,124,7],[125,1,125,2],[125,3,125,4],[125,5,125,7],[120,1,120,7],[122,1,122,2],[122,3,122,4],[122,5,122,7],[123,1,123,2],[123,3,123,4],[123,5,123,7],[128,1,128,2],[128,3,128,4],[128,5,128,7],[137,1,137,7],[138,1,138,7],[139,1,139,7],[126,1,126,2],[126,3,126,4],[126,5,126,7],[127,1,127,2],[127,3,127,4],[127,5,127,7],[147,1,147,7],[148,1,148,7],[150,1,150,7],[151,1,151,7],[153,1,153,7],[154,1,154,7],[140,1,140,7],[141,1,141,7],[142,1,142,7],[144,1,144,7],[145,1,145,7],[146,1,146,7],[162,1,162,7],[163,1,163,7],[164,1,164,7],[165,1,165,7],[166,1,166,7],[167,1,167,7],[155,1,155,7],[157,1,157,7],[158,1,158,7],[159,1,159,7],[160,1,160,7],[161,1,161,7],[174,1,174,7],[175,1,175,7],[176,1,176,7],[178,1,178,7],[179,1,179,7],[181,1,181,7],[168,1,168,7],[169,1,169,7],[170,1,170,7],[171,1,171,7],[172,1,172,7],[173,1,173,7],[189,1,189,7],[190,1,190,7],[191,1,191,7],[192,1,192,7],[193,1,193,7],[194,1,194,7],[182,1,182,7],[183,1,183,7],[184,1,184,7],[185,1,185,7],[186,1,186,7],[187,1,187,7],[202,1,202,7],[203,1,203,7],[204,1,204,7],[205,1,205,7],[208,1,208,7],[210,1,210,7],[195,1,195,7],[196,1,196,7],[198,1,198,7],[199,1,199,7],[200,1,200,7],[201,1,201,7],[218,1,218,7],[219,1,219,7],[220,1,220,7],[221,1,221,7],[222,1,222,7],[224,1,224,7],[211,1,211,7],[212,1,212,7],[213,1,213,7],[214,1,214,7],[215,1,215,7],[216,1,216,7],[232,1,232,7],[233,1,233,7],[234,1,234,7],[235,1,235,7],[236,1,236,7],[237,1,237,7],[225,1,225,7],[226,1,226,7],[227,1,227,7],[228,1,228,7],[229,1,229,7],[231,1,231,7],[245,1,245,7],[246,6,246,7],[248,1,248,7],[249,1,249,7],[250,1,250,7],[251,1,251,7],[238,1,238,7],[239,1,239,7],[241,1,241,7],[242,1,242,7],[243,1,243,7],[244,1,244,7],[258,1,258,7],[259,1,259,7],[260,1,260,7],[261,1,261,7],[262,1,262,7],[263,1,263,7],[252,1,252,7],[253,1,253,7],[254,1,254,7],[255,1,255,7],[256,1,256,7],[257,1,257,7],[270,1,270,7],[271,1,271,7],[272,1,272,7],[273,1,273,7],[274,1,274,7],[275,1,275,7],[264,1,264,7],[265,1,265,7],[266,1,266,7],[267,1,267,7],[268,1,268,7],[269,1,269,7],[282,1,282,7],[283,1,283,7],[284,1,284,7],[285,1,285,7],[286,1,286,7],[287,1,287,7],[276,1,276,7],[277,1,277,7],[278,1,278,7],[279,1,279,7],[280,1,280,7],[281,1,281,7],[294,1,294,7],[295,1,295,7],[296,1,296,7],[297,1,297,7],[298,1,298,7],[299,1,299,7],[288,1,288,7],[289,1,289,7],[290,1,290,7],[291,1,291,7],[292,1,292,7],[293,1,293,7],[306,1,306,7],[307,1,307,7],[308,1,308,7],[309,1,309,7],[310,1,310,7],[311,1,311,7],[300,1,300,7],[301,1,301,7],[302,1,302,7],[303,1,303,7],[304,1,304,7],[305,1,305,7],[318,1,318,7],[319,1,319,7],[320,1,320,7],[321,1,321,7],[322,1,322,7],[323,1,323,7],[312,1,312,7],[313,1,313,7],[314,1,314,7],[315,1,315,7],[316,1,316,7],[317,1,317,7],[330,1,330,7],[331,1,331,7],[332,1,332,7],[333,1,333,7],[334,1,334,7],[335,1,335,7],[324,1,324,7],[325,1,325,7],[326,1,326,7],[327,1,327,7],[328,1,328,7],[329,1,329,7],[342,1,342,7],[343,1,343,7],[344,1,344,7],[345,1,345,7],[346,1,346,7],[347,1,347,7],[336,1,336,7],[337,1,337,7],[338,1,338,7],[339,1,339,7],[340,1,340,7],[341,1,341,7],[354,1,354,7],[355,1,355,7],[356,1,356,7],[357,1,357,7],[358,1,358,7],[359,1,359,7],[348,1,348,7],[349,1,349,7],[350,1,350,7],[351,1,351,7],[352,1,352,7],[353,1,353,7],[366,1,366,7],[367,1,367,7],[368,1,368,7],[369,1,369,7],[370,1,370,7],[371,1,371,7],[360,1,360,7],[361,1,361,7],[362,1,362,7],[363,1,363,7],[364,1,364,7],[365,1,365,7],[378,1,378,7],[379,1,379,7],[380,1,380,7],[381,1,381,7],[382,1,382,7],[383,1,383,7],[372,1,372,7],[373,1,373,7],[374,1,374,7],[375,1,375,7],[376,1,376,7],[377,1,377,7],[390,1,390,7],[391,1,391,7],[392,1,392,7],[393,1,393,7],[394,1,394,7],[395,1,395,7],[384,1,384,7],[385,1,385,7],[386,1,386,7],[387,1,387,7],[388,1,388,7],[389,1,389,7],[402,1,402,7],[403,1,403,7],[404,1,404,7],[405,1,405,7],[406,1,406,7],[407,1,407,7],[396,1,396,7],[397,1,397,7],[398,1,398,7],[399,1,399,7],[400,1,400,7],[401,1,401,7],[414,1,414,7],[415,1,415,7],[416,1,416,7],[417,1,417,7],[418,1,418,7],[419,1,419,7],[408,1,408,7],[409,1,409,7],[410,1,410,7],[411,1,411,7],[412,1,412,7],[413,1,413,7],[426,1,426,7],[427,1,427,7],[428,1,428,7],[429,1,429,7],[430,1,430,7],[431,1,431,7],[420,1,420,7],[421,1,421,7],[422,1,422,7],[423,1,423,7],[424,1,424,7],[425,1,425,7],[438,1,438,7],[439,1,439,7],[440,1,440,7],[441,1,441,7],[442,1,442,7],[443,1,443,7],[432,1,432,7],[433,1,433,7],[434,1,434,7],[435,1,435,7],[436,1,436,7],[437,1,437,7],[450,1,450,7],[451,1,451,7],[452,1,452,7],[453,1,453,7],[454,1,454,7],[455,1,455,7],[444,1,444,7],[445,1,445,7],[446,1,446,7],[447,1,447,7],[448,1,448,7],[449,1,449,7],[462,1,462,7],[463,1,463,7],[464,1,464,7],[465,1,465,7],[466,1,466,7],[467,1,467,7],[456,1,456,7],[457,1,457,7],[458,1,458,7],[459,1,459,7],[460,1,460,7],[461,1,461,7],[474,1,474,7],[475,1,475,7],[476,1,476,7],[477,1,477,7],[478,1,478,7],[479,1,479,7],[468,1,468,7],[469,1,469,7],[470,1,470,7],[471,1,471,7],[472,1,472,7],[473,1,473,7],[486,1,486,7],[487,1,487,7],[488,1,488,7],[489,1,489,7],[490,1,490,7],[491,1,491,7],[480,1,480,7],[481,1,481,7],[482,1,482,7],[483,1,483,7],[484,1,484,7],[485,1,485,7],[498,1,498,7],[499,1,499,7],[500,1,500,7],[501,1,501,7],[502,1,502,7],[503,1,503,7],[492,1,492,7],[493,1,493,7],[494,1,494,7],[495,1,495,7],[496,1,496,7],[497,1,497,7],[510,1,510,7],[511,1,511,7],[512,1,512,7],[513,1,513,7],[514,1,514,7],[515,1,515,7],[504,1,504,7],[505,1,505,7],[506,1,506,7],[507,1,507,7],[508,1,508,7],[509,1,509,7],[522,1,522,7],[523,1,523,7],[524,1,524,7],[525,1,525,7],[526,1,526,7],[527,1,527,7],[516,1,516,7],[517,1,517,7],[518,1,518,7],[519,1,519,7],[520,1,520,7],[521,1,521,7],[534,1,534,7],[535,1,535,7],[536,1,536,7],[537,1,537,7],[538,1,538,7],[539,1,539,7],[528,1,528,7],[529,1,529,7],[530,1,530,7],[531,1,531,7],[532,1,532,7],[533,1,533,7],[546,1,546,7],[547,1,547,7],[548,1,548,7],[549,1,549,7],[550,1,550,7],[551,1,551,7],[540,1,540,7],[541,1,541,7],[542,1,542,7],[543,1,543,7],[544,1,544,7],[545,1,545,7],[558,1,558,7],[559,1,559,7],[560,1,560,7],[561,1,561,7],[562,1,562,7],[563,1,563,7],[552,1,552,7],[553,1,553,7],[554,1,554,7],[555,1,555,7],[556,1,556,7],[557,1,557,7],[570,1,570,7],[571,1,571,7],[572,1,572,7],[573,1,573,7],[574,1,574,7],[575,1,575,7],[564,1,564,7],[565,1,565,7],[566,1,566,7],[567,1,567,7],[568,1,568,7],[569,1,569,7],[582,1,582,7],[583,1,583,7],[584,1,584,7],[585,1,585,7],[586,1,586,7],[587,1,587,7],[576,1,576,7],[577,1,577,7],[578,1,578,7],[579,1,579,7],[580,1,580,7],[581,1,581,7],[594,1,594,7],[595,1,595,7],[596,1,596,7],[597,1,597,7],[598,1,598,7],[599,1,599,7],[588,1,588,7],[589,1,589,7],[590,1,590,7],[591,1,591,7],[592,1,592,7],[593,1,593,7],[606,1,606,7],[607,1,607,7],[608,1,608,7],[609,1,609,7],[610,1,610,7],[611,1,611,7],[600,1,600,7],[601,1,601,7],[602,1,602,7],[603,1,603,7],[604,1,604,7],[605,1,605,7],[618,1,618,7],[619,1,619,7],[620,1,620,7],[621,1,621,7],[622,1,622,7],[623,1,623,7],[612,1,612,7],[613,1,613,7],[614,1,614,7],[615,1,615,7],[616,1,616,7],[617,1,617,7],[630,1,630,7],[631,1,631,7],[632,1,632,7],[633,1,633,7],[634,1,634,7],[635,1,635,7],[624,1,624,7],[625,1,625,7],[626,1,626,7],[627,1,627,7],[628,1,628,7],[629,1,629,7],[642,1,642,7],[643,1,643,7],[644,1,644,7],[645,1,645,7],[646,1,646,7],[647,1,647,7],[636,1,636,7],[637,1,637,7],[638,1,638,7],[639,1,639,7],[640,1,640,7],[641,1,641,7],[660,1,660,7],[661,1,661,7],[654,1,654,7],[655,1,655,7],[656,1,656,7],[657,1,657,7],[658,1,658,7],[659,1,659,7],[648,1,648,7],[649,1,649,7],[650,1,650,7],[651,1,651,7],[652,1,652,7],[653,1,653,7]]}
[]
[]
[]
[]
[]
[null,"PRESUPUESTO DE EGRESOS 2022"]
[null,"FICHA TÉCNICA"]
[null,"Datos de Identificación del Programa Presupuestario (Pp)"]
[]
[null,"Unidad responsable del Pp ",null,"ALCALDÍA TLALPAN"]
[null,"Clasificación del Pp ",null,"S206"]
[null,"Denominación del Pp ",null,{"$f":"VLOOKUP(D11,Catálogo!AU1:AV333,2,0)","v":"FORMACIÓN MUSICAL, TLALPAN"}]
[null,"Nombre de la Matriz ",null,{"$f":"D11&\" \"&D12","v":"S206 FORMACIÓN MUSICAL, TLALPAN"}]
[]
[null,"Alineación con el PGD y sus Programas derivados "]
[]
[null,"Plan General de Desarrollo de la Ciudad de México"]
[]
[null,"Eje de política pública al que contribuye el Pp ",null,null,"Eje 4. Ciudad de México, capital cultural de America Latina"]
[]
[null,"Programas del Plan General de Desarrollo de la Ciudad de México"]
[]
[null,"Tipo de Programa ","Institucional","Programa ","Formación Musical, Tlalpan "]
[null,"Objetivo del Programa ",null,"Brindar educación musical a residentes de la Alcaldía Tlalpan."]
[]
[null,"Alineación con Objetivos del Desarrollo Sostenible"]
[]
[null,"Objetivo al que contribuye el Pp ",null,null,"10. Reducción de las desigualdades"]
[]
[null,"Matriz de Indicadores para Resultados "]
[]
[null,"Resumen Narrativo "]
[]
[null,"Resumen narrativo","Talleres gratuitos de formación musical impartidos a niñas, niños, adolescentes de 6 a 29 años de edad.",null,null,null,"Nivel en la Matriz de Marco Lógico","Componente"]
[]
[]
[]
[]
[null,"Datos de identificación del indicador "]
[]
[null,"Nombre del indicador ",null,"Porcentaje de talleres gratuitos de formación musical impartidos a niñas, niños, adolescentes de 6 a 29 años de edad."]
[null,"Dimensión del indicador ",null,"Eficacia","Tipo de indicador para resultados ",null,null,"Gestión"]
[null,"Definición del indicador ",null,null,"Tipo de valor de la meta"]
[null,"Mide el porcentaje de talleres gratuitos de formación musical impartidos a niñas, niños, adolescentes de 6 a 29 años de edad, respecto al número de talleres programados a impartir",null,null,"Relativa"]
[null,"Método de cálculo ",null,null,"Unidad de medida "]
[null,"(Número de talleres gratuitos de formación musical impartidos a niñas, niños, adolescentes de 6 a 29 años de edad / Número de talleres programados a impartir a niñas, niños, adolescentes de 6 a 29 años de edad)*100",null,null,"Porcentaje"]
[null,"Desagregación geográfica ",null,null,"Frecuencia de medición "]
[null,"Alcaldía",null,null,"Trimestral"]
[]
[null,"Serie de Información Disponible "]
[]
[null,"Información disponible "]
[null,"Informes del programa"]
[]
[null,"Criterios CREMAA"]
[]
[null,"Característica ","Calificación ","Justificación "]
[null,"Claridad","Cumple",{"$f":"IF(C58=\"Cumple\",Catálogo!AG2,Catálogo!AH2)","v":"El indicador es preciso y de fácil comprensión por usuarios no especializados, pues su formulación es sencilla."}]
[null,"Relevancia","Cumple",{"$f":"IF(C59=\"Cumple\",Catálogo!AG3,Catálogo!AH3)","v":"El indicador aporta información respecto a los efectos que tienen las acciones del Programa sobre los objetivos que este se ha planteado en el ejercicio presupuestal reportado, a su vez permite observar tendencias acerca de los impactos del Programa sobre la problemática que éste atiende en el mediano y largo plazo."}]
[null,"Economía","Cumple",{"$f":"IF(C60=\"Cumple\",Catálogo!AG4,Catálogo!AH4)","v":"El indicador no requiere recursos adicionales para su medición, pues la información se obtiene del desarrollo cotidiano del programa."}]
[null,"Monitoreable","Cumple",{"$f":"IF(C61=\"Cumple\",Catálogo!AG5,Catálogo!AH5)","v":"Se calcula a partir de las bases de datos generadas durante la operación del programa, por lo que se tienen datos a lo largo del ciclo presupuestal que permiten dar seguimiento al comportamiento del indicador."}]
[null,"Adecuado","Cumple",{"$f":"IF(C62=\"Cumple\",Catálogo!AG6,Catálogo!AH6)","v":"Se considera que el indicador es preciso para estimar el logro del objetivo."}]
[null,"Aporte marginal","No cumple",{"$f":"IF(C63=\"Cumple\",Catálogo!AG7,Catálogo!AH7)","v":"El indicador no proporciona información adicional a los demás indicadores."}]
[]
[null,"Contacto indicador "]
[]
[null,"Nombre ","Ma. Gabriela ","Apellido paterno ","Rodriguez ",null,"Apellido materno ","Valencia"]
[null,"Área ",null,"DIRECCIÓN GENERAL DE DERECHOS CULTURALES Y EDUCATIVOS"]
[null,"Puesto ",null,"COORDINADORA DE CULTURA"]
[null,"Correo electrónico ",null,"mrodriguezv@tlalpan.cdmx.gob.mx"]
[null,"Lada ",55,"Teléfono",54859048,null,"Extensión "]
[]
[null,"Viabilidad de la meta "]
[]
[null,"Meta acumulable ","Sí","Comportamiento del indicador ","Ascendente",null,"Factibilidad de la meta ","Alta"]
[null,"Justificación de la factibilidad "]
[null,"Es altamente factible alcanzar la meta, dado que se calculó con base en los recursos financieron, humanos y técnicos para alcanzarla."]
[]
[null,"Línea base "]
[]
[null,"Año ","Valor ",null,null,null,"Periodo al que corresponde el valor"]
[null,null,"Indicador\n(relativo)","Numerador\n(absoluto)","Denominador\n(universo de cobertura)"]
[null,2021,{"$f":"34/34","v":1},34,34,null,"Trimestral"]
[]
[null,"Justificación línea base"]
[null,"Sí se alcanzó la meta de 100% dadas las condiciones del programa."]
[]
[null,"Parámetros de semaforización "]
[]
[null,"Tipo de valor","Relativo"]
[null,"Umbral verde ","85% a 100%","Umbral amarillo","70% al 85%","Umbral rojo ","menos 70%"]
[]
[null,"Metas del ciclo presupuestario"]
[null,"Periodo (según la frecuencia de medición)","Valor",null,null,null,"Periodo al que corresponde el valor"]
[null,null,"Indicador (relativo)","Numerador (absoluto)","Denominador (universo de cobertura)"]
[null,"Trimestre 1",{"$f":"D96/E96","v":1},34,34,null,"Enero - marzo"]
[null,"Trimestre 2",{"$f":"D97/E97","v":1},34,34,null,"Abril - junio"]
[null,"Trimestre 3",1,34,34,null,"Julio - septiembre"]
[null," Trimestre 4",1,34,34,null,"Octubre - diciembre"]
[]
[null,"Características de las variables \n(Se debe llenar este conjunto tanta veces como número de variables existan)"]
[]
[null,"Nombre ",null,null,null,"Descripción de la variable "]
[null,"Número de talleres gratuitos de formación musical impartidos a niñas, niños, adolescentes de 6 a 29 años de edad",null,null,null,"Es el  número de talleres gratuitos de formación musical impartidos a niñas, niños, adolescentes de 6 a 29 años de edad, respecto al número de talleres programados"]
[null,"Medios de verificación",null,null,null,"Unidad de medida"]
[null,"Informes trimestrales del programa",null,null,null,"Porcentaje "]
[null,"Desagregación geográfica ",null,null,null,"Frecuencia"]
[null,"Alcaldía",null,null,null,"Trimestral"]
[null,"Método de recopilación de datos ",null,null,null,"Fecha de disponibilidad de la información "]
[null,"Explotación de registros administrativos",null,null,null,2022]
[]
[null,"Nombre ",null,null,null,"Descripción de la variable "]
[null,"Número de talleres programados a impartir a niñas, niños, adolescentes de 6 a 29 años de edad",null,null,null,"Es el número de talleres programados a impartir a niñas, niños, adolescentes de 6 a 29 años de edad, respecto al número de talleres impartidos"]
[null,"Medios de verificación ",null,null,null,"Unidad de medida"]
[null,"Informes trimestrales del programa",null,null,null,"Porcentaje"]
[null,"Desagregación geográfica ",null,null,null,"Frecuencia"]
[null,"Alcaldía",null,null,null,"Trimestral"]
[null,"Método de recopilación de datos ",null,null,null,"Fecha de disponibilidad de la información  "]
[null,"Explotación de registros administrativos",null,null,null,2022]
[]
[null,"Serie estadística "]
[]
[null,"Ciclo serie",null,"Valor serie",null,"Periodo de la serie"]
[null,2020,null,1,null,"Enero - diciembre"]
[null,2021,null,1,null,"Enero - diciembre"]
[]
[]
[]
[]
[]
[]
[]
[]
[]
[]
[]
[]
[null,"Instructivo de la Ficha Técnica"]
[null,"Datos de identificación del programa presupuestario (Pp)"]
[null,"Unidad responsable del Pp: Dependencia encargada del Programa"]
[null,"Clasificación del Pp: Categoría programática, que de acuerdo al catalogó emitido por la  Comisión  Nacional de Armonización Contable (CONAC), clasifica los programas presupuestarios  de acuerdo a su naturaleza generalmente con la inicial de una letra y seguida por números"]
[null,"Denominación del Pp: Nombre del Programa Presupuestario "]
[null,"Nombre de la Matriz: Conjunción de la clasificación y denominación del Programa"]
[]
[null,"Alineación con el PGD  y sus Programas derivados"]
[null,"Eje de política pública al que contribuye el Pp:   Se refiere a alguno de los 6 ejes del Plan General de Gobierno de la Ciudad de México"]
[null,"Tipo de Programa:  Los referidos en el Artículo 22 de la Ley de Planeación (Sectorial, Regional, Especial, Institucional)"]
[null,"Programa: Se especificará el nombre del programa según la clasificación arriba mencionada."]
[null,"Objetivo del Programa:  Se refiere a los objetivos del programa señalado en el inciso anterior."]
[]
[null,"Alineación con Objetivos del Desarrollo Sostenible"]
[null,"Objetivo al que contribuye el Pp: Se refiere al objetivo de desarrollo sostenible al que abona el programa"]
[]
[null,"Matriz de Indicadores para Resultados"]
[null,"Resumen Narrativo: Se registran los objetivos por cada nivel de la Matriz"]
[null,"Nivel en la Matriz de Marco Lógico: Se refiere al nviel del indicador, puede ser: Fin, Propósito, Componentes o Actividad, según sea el caso."]
[]
[null,"Datos de identificación del indicador"]
[null,"Nombre del indicador: denominación precisa y única con la que se distingue al indicador. "]
[null,"Dimensión del indicador: se refieren al aspecto particular del objetivo a ser medido mediante el indicador, puede ser:"]
[null,"• Eficacia: mide el grado de cumplimiento de los objetivos."]
[null,"• Eficiencia: mide la relación entre los productos y servicios generados con respecto a los insumos o recursos utilizados."]
[null,"• Economía: mide la capacidad del programa o de la institución para generar y movilizar adecuadamente los recursos financieros."]
[null,"• Calidad: mide los atributos, propiedades o características que deben tener los bienes y servicios para satisfacer los objetivos del programa."]
[null,"Tipo de indicador para Resultados: Se refiere a la naturaleza del indicador que corresponde a cada nivel de la Matriz de Indicadores para Resultados, puede ser:"]
[null,"• Estratégico.- Que está orientado a medir los efectos del Pp."]
[null,"• De gestión.- Qué está orientado a medir la forma en que trabaja el Pp."]
[null,"Considerar que según el nivel de la MIR los indicadores puedes ser:"]
[null,"• Para FIN y PROPÓSITO =  Estratégico."]
[null,"• Para COMPONENTE = Estratégico o Gestión."]
[null,"• Para ACTIVIDADES = Gestión."]
[null,"Definición del indicador: expresa al indicador en términos de su significado conceptual. Puede desde el punto de vista operativo, expresar al indicador en términos de las variables que en él intervienen."]
[null,"Tipo de valor de la Meta.- Indica si la meta es absoluta o relativa. Generalmente, la mayoría de los indicadores son expresados en números relativos, ya que por definición provienen de relacionar dos o más datos significativos, sin embargo, excepcionalmente se pueden utilizar indicadores referidos en números absolutos, tal es el caso del PIB. "]
[null,"Método de cálculo: se refiere a la expresión algebraica del indicador, a la explicación sencilla de la forma en que se relacionan las variables y a la metodología para calcular el indicador."]
[null,"Unidad de medida: magnitud de referencia que permite cuantificar y comparar elementos del indicador."]
[null,"Desagregación geográfica: indica los niveles territoriales para los que está disponible el indicador: ciudad, alcaldía"]
[null,"Frecuencia de medición: es el periodo de tiempo en el cual se calcula el indicador (mensual, bimestral, trimestral, cuatrimestral, semestral, anual o superior). La frecuencia de medición determinará la cantidad de periodos en los que se calendarizarán las metas para el indicador, por lo cual deberá tener precaución al seleccionar la frecuencia de medición. "]
[]
[null,"Serie de Información Disponible"]
[null,"Información disponible: Describe textualmente al conjunto de mediciones del indicador disponibles, se deben indicar cambios en la serie por cuestiones metodológicas u otras."]
[]
[null,"Criterios CREMAA"]
[null,"Claridad.- Es conveniente que los indicadores tengan una expresión sencilla con el propósito de que sean fácilmente comprensibles por los usuarios no especializados"]
[null,"Relevancia.- Un indicador debe expresar elementos de importancia o significativos en la medición de los avances y logros de un objetivo"]
[null,"Economía.- La información necesaria para generar el indicador deberá estar disponible a un costo razonable"]
[null,"Monitoreable.- El indicador debe poder sujetarse a una comprobación independiente"]
[null," Adecuado.- El indicador deberá aportar una base suficiente para evaluar el desempeño"]
[null,"Aporte marginal.- En el caso de que exista más de un indicador para medir el desempeño en determinado nivel de objetivo, el indicador debe proveer información adicional en comparación con los otros indicadores propuestos."]
[]
[null,"Contacto indicador  "]
[null,"Nombre:  Se deberá anotar el nombre del responsable directo de proporcionar información técnica sobre el indicador. "]
[null,"Apellido Paterno"]
[null,"Apellido Materno"]
[null,"Área"]
[null,"Puesto"]
[null,"Correo Electrónico"]
[null,"Teléfono (Lada, teléfono y extensión)"]
[]
[null,"Viabilidad de la meta"]
[null,"Meta acumulable: Se debe indicar si las características del indicador permiten que los valores de los diferentes periodos se sumen o no. "]
[null,"Comportamiento del indicador. Establece si el indicador a lo largo del tiempo tiene un comportamiento ascendente, descendente, regular o nominal. "]
[null,"• Ascendente.- si el resultado a lograr significa incrementar el valor del indicador."]
[null,"• Descendente.- si el resultado a lograr significa disminuir el valor del indicador."]
[null,"• Regular.- si el resultado a lograr significa mantener el valor del indicador dentro de determinado rango, y"]
[null,"• Nominal.- se tomará como un resultado independiente del historial del indicador."]
[null,"Factibilidad de la meta.- Establece, desde la perspectiva de la UR responsable del Pp la posibilidad real de alcanzar la meta"]
[null,"Alta"]
[null,"Media"]
[null,"Justificación de la Factibilidad.- Establece los argumentos que sirvieron de base para calificar la factibilidad de la meta."]
[]
[null,"Línea Base. \nEl valor inicial del indicador que se toma como referencia para comparar el avance del objetivo se llama Línea Base.\n"]
[null,"Año de la Línea Base.- Se deberá anotar el año que se toma como referencia para comparar los avances del Pp. Regularmente se recomienda tomar el año  en que terminó la administración anterior. Cuando un indicador vuelve a cero al término de cada ciclo, la línea base es 0.0 porque ese es el valor con el que inicia el nuevo ciclo."]
[null,"Indicador.- Se refiere al valor que tuvo el indicador en el momento de la medición inicial de referencia.  Cuando no se cuenta con línea base, se deberá anotar 0.0 y escribir la justificación en el campo correspondiente. "]
[null,"Numerador.- Se refiere al valor que tuvo el numerador del indicador en el momento de la medición inicial de referencia."]
[null,"Denominador.- Se refiere al valor que tuvo el denominador del indicador en el momento de la medición inicial de referencia."]
[null,"Periodo línea base.- Puede ser que en algunos casos, la línea base esté referida a un momento particular del año (inicio de cursos, trimestre II,  semana santa, etc.), en estas ocasiones deberá especificarse el periodo."]
[null,"Justificación línea base.- En este campo se deberá establecer cuando un indicador, por su reciente elaboración, no cuenta con una línea base. En este caso se deberá anotar aquí el año y periodo en que se tiene previsto realizar la primera medición, la cual será considerada como línea base."]
[]
[null,"Parámetros de semaforización\nSe refiere a los parámetros que la UR que opera el Pp establece como rango para calificar al avance como en semáforo verde, amarillo o rojo. "]
[null,"Tipo de valor.- Los umbrales de semaforización pueden definirse en términos absolutos o porcentuales"]
[null,"Umbral verde: Valor límite aceptable"]
[null,"Umbral amarillo: Valor en riesgo"]
[null,"Umbral rojo: Valor crítico"]
[]
[null,"Metas del ciclo presupuestario"]
[null,"Periodo: Asociado a la frecuencia de medición."]
[null,"Indicador.- Se refiere al valor del indicador en el periodo correspondiente."]
[null,"Numerador.- Se refiere al dividendo en el periodo correspondiente."]
[null,"Denominador.- Se refiere al valor que se estima alcanzará el divisor en el periodo correspondiente."]
[null,"Periodo al que corresponde el valor.- Se refiere al periodo de medición del indicador"]
[]
[null,"Características de las variables\nDescripción de las variables que componen el indicador, se agrega una sección por cada variable."]
[null,"Nombre: denominación de la variable."]
[null,"Descripción de la variable: expresa a la variable en términos de su significado conceptual "]
[null,"Medios de verificación: identifica las fuentes de información,  sistema o documentos en donde se origina la información, a efecto medir los indicadores y verificar que los objetivos se lograron. Si la fuente es un documento, debe incluir toda la información bibliográfica. Se debe anotar la información mínima necesaria para que el usuario pueda recuperar la información directamente."]
[null,"Unidad de medida: magnitud de referencia que permite cuantificar y comparar los elementos de las variables. "]
[null,"Desagregación geográfica: indica los niveles territoriales para los que está disponible la variable:  ciudad, alcaldía"]
[null,"Frecuencia: es el periodo de tiempo en el cual se calcula la variable (mensual, bimestral, trimestral, cuatrimestral, semestral, anual o superior). "]
[null,"Método de recopilación de datos: indica el método estadístico de recolección de datos, el cual puede ser: censo, encuesta o explotación de registros administrativos."]
[null,"Fecha de disponibilidad de la información: se refiere al momento en que la información puede ser consultada por los usuarios."]
[]
[null,"Serie estadística\nSon los valores del indicador para años previos, incluso más allá de la línea base."]
[null,"Ciclo serie: año al que está referido el dato de la serie."]
[null,"Valor serie: valor del indicador."]
[null,"Periodo de la serie: Cuando en un año se realizan diversas mediciones del indicador, se debe especificar a cuál de ellas corresponde el valor. (Ejemplo: matrícula escolar, se puede medir a inicio de cursos o a fin de cursos)"]
[]
[null,null,null,null,null,null,"Última actualización 08/10/2021"]
[null,null,null,null,null,null,null,{"$f":"MATCH(H34,Hoja2!F8:I8,0)","v":3}]

{"sheet":"C1 A1","index":3,"n_rows":248,"n_cols":8,"rows_kept":248,"cut":false,"hidden":false,"merged":[[5,1,5,7],[6,1,6,7],[7,1,7,7],[9,1,9,2],[9,3,9,7],[10,1,10,2],[10,3,10,7],[18,1,18,3],[18,4,18,7],[20,1,20,7],[22,4,22,7],[23,1,23,2],[23,3,23,7],[11,1,11,2],[11,3,11,7],[12,1,12,2],[12,3,12,7],[14,1,14,7],[16,1,16,7],[38,1,38,7],[40,1,40,2],[40,3,40,7],[41,1,41,2],[41,4,41,6],[42,1,42,3],[42,4,42,7],[25,1,25,7],[27,1,27,3],[27,4,27,7],[29,1,29,7],[31,1,31,7],[33,1,36,1],[33,2,36,5],[33,6,36,6],[33,7,36,7],[46,1,46,3],[46,4,46,7],[47,1,47,3],[47,4,47,7],[49,1,49,7],[51,1,51,7],[43,1,43,3],[43,4,43,7],[44,1,44,3],[44,4,44,7],[45,1,45,3],[45,4,45,7],[59,3,59,7],[60,3,60,7],[61,3,61,7],[62,3,62,7],[63,1,63,7],[64,1,64,7],[52,1,52,7],[54,1,54,7],[55,1,55,7],[56,3,56,7],[57,3,57,7],[58,3,58,7],[69,1,69,2],[69,3,69,7],[70,4,70,5],[71,1,71,7],[72,1,72,7],[73,1,73,7],[65,1,65,7],[66,4,66,5],[67,1,67,2],[67,3,67,7],[68,1,68,2],[68,3,68,7],[82,4,82,5],[82,6,82,7],[84,1,84,7],[85,1,85,7],[87,1,87,7],[89,2,89,7],[74,4,74,5],[75,1,75,7],[76,1,76,7],[78,1,78,7],[80,1,81,1],[80,2,80,5],[80,6,81,7],[81,4,81,5],[94,9,94,13],[95,4,95,5],[95,6,95,7],[96,4,96,5],[96,6,96,7],[97,4,97,5],[97,6,97,7],[90,6,90,7],[92,1,92,7],[93,1,94,1],[93,2,93,5],[93,6,94,7],[94,4,94,5],[104,1,104,3],[104,5,104,7],[105,1,105,3],[105,5,105,7],[106,1,106,3],[106,5,106,7],[98,4,98,5],[98,6,98,7],[100,1,100,7],[102,1,102,3],[102,5,102,7],[103,1,103,3],[103,5,103,7],[110,1,110,3],[110,5,110,7],[111,1,111,3],[111,5,111,7],[112,1,112,3],[112,5,112,7],[107,1,107,3],[107,5,107,7],[108,1,108,3],[108,5,108,7],[109,1,109,3],[109,5,109,7],[116,1,116,3],[116,5,116,7],[117,1,117,3],[117,5,117,7],[118,1,118,3],[118,5,118,7],[113,1,113,3],[113,5,113,7],[114,1,114,3],[114,5,114,7],[115,1,115,3],[115,5,115,7],[124,1,124,2],[124,3,124,4],[124,5,124,7],[125,1,125,2],[125,3,125,4],[125,5,125,7],[120,1,120,7],[122,1,122,2],[122,3,122,4],[122,5,122,7],[123,1,123,2],[123,3,123,4],[123,5,123,7],[128,1,128,2],[128,3,128,4],[128,5,128,7],[137,1,137,7],[138,1,138,7],[139,1,139,7],[126,1,126,2],[126,3,126,4],[126,5,126,7],[127,1,127,2],[127,3,127,4],[127,5,127,7],[147,1,147,7],[148,1,148,7],[150,1,150,7],[151,1,151,7],[153,1,153,7],[154,1,154,7],[140,1,140,7],[141,1,141,7],[142,1,142,7],[144,1,144,7],[145,1,145,7],[146,1,146,7],[162,1,162,7],[163,1,163,7],[164,1,164,7],[165,1,165,7],[166,1,166,7],[167,1,167,7],[155,1,155,7],[157,1,157,7],[158,1,158,7],[159,1,159,7],[160,1,160,7],[161,1,161,7],[174,1,174,7],[175,1,175,7],[176,1,176,7],[178,1,178,7],[179,1,179,7],[181,1,181,7],[168,1,168,7],[169,1,169,7],[170,1,170,7],[171,1,171,7],[172,1,172,7],[173,1,173,7],[189,1,189,7],[190,1,190,7],[191,1,191,7],[192,1,192,7],[193,1,193,7],[194,1,194,7],[182,1,182,7],[183,1,183,7],[184,1,184,7],[185,1,185,7],[186,1,186,7],[187,1,187,7],[202,1,202,7],[203,1,203,7],[204,1,204,7],[205,1,205,7],[208,1,208,7],[210,1,210,7],[195,1,195,7],[196,1,196,7],[198,1,198,7],[199,1,199,7],[200,1,200,7],[201,1,201,7],[218,1,218,7],[219,1,219,7],[220,1,220,7],[221,1,221,7],[222,1,222,7],[224,1,224,7],[211,1,211,7],[212,1,212,7],[213,1,213,7],[214,1,214,7],[215,1,215,7],[216,1,216,7],[232,1,232,7],[233,1,233,7],[234,1,234,7],[235,1,235,7],[236,1,236,7],[237,1,237,7],[225,1,225,7],[226,1,226,7],[227,1,227,7],[228,1,228,7],[229,1,229,7],[231,1,231,7],[245,1,245,7],[246,6,246,7],[248,1,248,7],[249,1,249,7],[250,1,250,7],[251,1,251,7],[238,1,238,7],[239,1,239,7],[241,1,241,7],[242,1,242,7],[243,1,243,7],[244,1,244,7],[258,1,258,7],[259,1,259,7],[260,1,260,7],[261,1,261,7],[262,1,262,7],[263,1,263,7],[252,1,252,7],[253,1,253,7],[254,1,254,7],[255,1,255,7],[256,1,256,7],[257,1,257,7],[270,1,270,7],[271,1,271,7],[272,1,272,7],[273,1,273,7],[274,1,274,7],[275,1,275,7],[264,1,264,7],[265,1,265,7],[266,1,266,7],[267,1,267,7],[268,1,268,7],[269,1,269,7],[282,1,282,7],[283,1,283,7],[284,1,284,7],[285,1,285,7],[286,1,286,7],[287,1,287,7],[276,1,276,7],[277,1,277,7],[278,1,278,7],[279,1,279,7],[280,1,280,7],[281,1,281,7],[294,1,294,7],[295,1,295,7],[296,1,296,7],[297,1,297,7],[298,1,298,7],[299,1,299,7],[288,1,288,7],[289,1,289,7],[290,1,290,7],[291,1,291,7],[292,1,292,7],[293,1,293,7],[306,1,306,7],[307,1,307,7],[308,1,308,7],[309,1,309,7],[310,1,310,7],[311,1,311,7],[300,1,300,7],[301,1,301,7],[302,1,302,7],[303,1,303,7],[304,1,304,7],[305,1,305,7],[318,1,318,7],[319,1,319,7],[320,1,320,7],[321,1,321,7],[322,1,322,7],[323,1,323,7],[312,1,312,7],[313,1,313,7],[314,1,314,7],[315,1,315,7],[316,1,316,7],[317,1,317,7],[330,1,330,7],[331,1,331,7],[332,1,332,7],[333,1,333,7],[334,1,334,7],[335,1,335,7],[324,1,324,7],[325,1,325,7],[326,1,326,7],[327,1,327,7],[328,1,328,7],[329,1,329,7],[342,1,342,7],[343,1,343,7],[344,1,344,7],[345,1,345,7],[346,1,346,7],[347,1,347,7],[336,1,336,7],[337,1,337,7],[338,1,338,7],[339,1,339,7],[340,1,340,7],[341,1,341,7],[354,1,354,7],[355,1,355,7],[356,1,356,7],[357,1,357,7],[358,1,358,7],[359,1,359,7],[348,1,348,7],[349,1,349,7],[350,1,350,7],[351,1,351,7],[352,1,352,7],[353,1,353,7],[366,1,366,7],[367,1,367,7],[368,1,368,7],[369,1,369,7],[370,1,370,7],[371,1,371,7],[360,1,360,7],[361,1,361,7],[362,1,362,7],[363,1,363,7],[364,1,364,7],[365,1,365,7],[378,1,378,7],[379,1,379,7],[380,1,380,7],[381,1,381,7],[382,1,382,7],[383,1,383,7],[372,1,372,7],[373,1,373,7],[374,1,374,7],[375,1,375,7],[376,1,376,7],[377,1,377,7],[390,1,390,7],[391,1,391,7],[392,1,392,7],[393,1,393,7],[394,1,394,7],[395,1,395,7],[384,1,384,7],[385,1,385,7],[386,1,386,7],[387,1,387,7],[388,1,388,7],[389,1,389,7],[402,1,402,7],[403,1,403,7],[404,1,404,7],[405,1,405,7],[406,1,406,7],[407,1,407,7],[396,1,396,7],[397,1,397,7],[398,1,398,7],[399,1,399,7],[400,1,400,7],[401,1,401,7],[414,1,414,7],[415,1,415,7],[416,1,416,7],[417,1,417,7],[418,1,418,7],[419,1,419,7],[408,1,408,7],[409,1,409,7],[410,1,410,7],[411,1,411,7],[412,1,412,7],[413,1,413,7],[426,1,426,7],[427,1,427,7],[428,1,428,7],[429,1,429,7],[430,1,430,7],[431,1,431,7],[420,1,420,7],[421,1,421,7],[422,1,422,7],[423,1,423,7],[424,1,424,7],[425,1,425,7],[438,1,438,7],[439,1,439,7],[440,1,440,7],[441,1,441,7],[442,1,442,7],[443,1,443,7],[432,1,432,7],[433,1,433,7],[434,1,434,7],[435,1,435,7],[436,1,436,7],[437,1,437,7],[450,1,450,7],[451,1,451,7],[452,1,452,7],[453,1,453,7],[454,1,454,7],[455,1,455,7],[444,1,444,7],[445,1,445,7],[446,1,446,7],[447,1,447,7],[448,1,448,7],[449,1,449,7],[462,1,462,7],[463,1,463,7],[464,1,464,7],[465,1,465,7],[466,1,466,7],[467,1,467,7],[456,1,456,7],[457,1,457,7],[458,1,458,7],[459,1,459,7],[460,1,460,7],[461,1,461,7],[474,1,474,7],[475,1,475,7],[476,1,476,7],[477,1,477,7],[478,1,478,7],[479,1,479,7],[468,1,468,7],[469,1,469,7],[470,1,470,7],[471,1,471,7],[472,1,472,7],[473,1,473,7],[486,1,486,7],[487,1,487,7],[488,1,488,7],[489,1,489,7],[490,1,490,7],[491,1,491,7],[480,1,480,7],[481,1,481,7],[482,1,482,7],[483,1,483,7],[484,1,484,7],[485,1,485,7],[498,1,498,7],[499,1,499,7],[500,1,500,7],[501,1,501,7],[502,1,502,7],[503,1,503,7],[492,1,492,7],[493,1,493,7],[494,1,494,7],[495,1,495,7],[496,1,496,7],[497,1,497,7],[510,1,510,7],[511,1,511,7],[512,1,512,7],[513,1,513,7],[514,1,514,7],[515,1,515,7],[504,1,504,7],[505,1,505,7],[506,1,506,7],[507,1,507,7],[508,1,508,7],[509,1,509,7],[522,1,522,7],[523,1,523,7],[524,1,524,7],[525,1,525,7],[526,1,526,7],[527,1,527,7],[516,1,516,7],[517,1,517,7],[518,1,518,7],[519,1,519,7],[520,1,520,7],[521,1,521,7],[534,1,534,7],[535,1,535,7],[536,1,536,7],[537,1,537,7],[538,1,538,7],[539,1,539,7],[528,1,528,7],[529,1,529,7],[530,1,530,7],[531,1,531,7],[532,1,532,7],[533,1,533,7],[546,1,546,7],[547,1,547,7],[548,1,548,7],[549,1,549,7],[550,1,550,7],[551,1,551,7],[540,1,540,7],[541,1,541,7],[542,1,542,7],[543,1,543,7],[544,1,544,7],[545,1,545,7],[558,1,558,7],[559,1,559,7],[560,1,560,7],[561,1,561,7],[562,1,562,7],[563,1,563,7],[552,1,552,7],[553,1,553,7],[554,1,554,7],[555,1,555,7],[556,1,556,7],[557,1,557,7],[570,1,570,7],[571,1,571,7],[572,1,572,7],[573,1,573,7],[574,1,574,7],[575,1,575,7],[564,1,564,7],[565,1,565,7],[566,1,566,7],[567,1,567,7],[568,1,568,7],[569,1,569,7],[582,1,582,7],[583,1,583,7],[584,1,584,7],[585,1,585,7],[586,1,586,7],[587,1,587,7],[576,1,576,7],[577,1,577,7],[578,1,578,7],[579,1,579,7],[580,1,580,7],[581,1,581,7],[594,1,594,7],[595,1,595,7],[596,1,596,7],[597,1,597,7],[598,1,598,7],[599,1,599,7],[588,1,588,7],[589,1,589,7],[590,1,590,7],[591,1,591,7],[592,1,592,7],[593,1,593,7],[606,1,606,7],[607,1,607,7],[608,1,608,7],[609,1,609,7],[610,1,610,7],[611,1,611,7],[600,1,600,7],[601,1,601,7],[602,1,602,7],[603,1,603,7],[604,1,604,7],[605,1,605,7],[618,1,618,7],[619,1,619,7],[620,1,620,7],[621,1,621,7],[622,1,622,7],[623,1,623,7],[612,1,612,7],[613,1,613,7],[614,1,614,7],[615,1,615,7],[616,1,616,7],[617,1,617,7],[630,1,630,7],[631,1,631,7],[632,1,632,7],[633,1,633,7],[634,1,634,7],[635,1,635,7],[624,1,624,7],[625,1,625,7],[626,1,626,7],[627,1,627,7],[628,1,628,7],[629,1,629,7],[642,1,642,7],[643,1,643,7],[644,1,644,7],[645,1,645,7],[646,1,646,7],[647,1,647,7],[636,1,636,7],[637,1,637,7],[638,1,638,7],[639,1,639,7],[640,1,640,7],[641,1,641,7],[660,1,660,7],[661,1,661,7],[654,1,654,7],[655,1,655,7],[656,1,656,7],[657,1,657,7],[658,1,658,7],[659,1,659,7],[648,1,648,7],[649,1,649,7],[650,1,650,7],[651,1,651,7],[652,1,652,7],[653,1,653,7]]}
[]
[]
[]
[]
[]
[null,"PRESUPUESTO DE EGRESOS 2022"]
[null,"FICHA TÉCNICA"]
[null,"Datos de Identificación del Programa Presupuestario (Pp)"]
[]
[null,"Unidad responsable del Pp ",null,"ALCALDÍA TLALPAN"]
[null,"Clasificación del Pp ",null,"S206"]
[null,"Denominación del Pp ",null,{"$f":"VLOOKUP(D11,Catálogo!AU1:AV333,2,0)","v":"FORMACIÓN MUSICAL, TLALPAN"}]
[null,"Nombre de la Matriz ",null,{"$f":"D11&\" \"&D12","v":"S206 FORMACIÓN MUSICAL, TLALPAN"}]
[]
[null,"Alineación con el PGD y sus Programas derivados "]
[]
[null,"Plan General de Desarrollo de la Ciudad de México"]
[]
[null,"Eje de política pública al que contribuye el Pp ",null,null,"Eje 4. Ciudad de México, capital cultural de America Latina"]
[]
[null,"Programas del Plan General de Desarrollo de la Ciudad de México"]
[]
[null,"Tipo de Programa ","Institucional","Programa ","Formación Musical, Tlalpan "]
[null,"Objetivo del Programa ",null,"Brindar educación musical a residentes de la Alcaldía Tlalpan."]
[]
[null,"Alineación con Objetivos del Desarrollo Sostenible"]
[]
[null,"Objetivo al que contribuye el Pp ",null,null,"10. Reducción de las desigualdades"]
[]
[null,"Matriz de Indicadores para Resultados "]
[]
[null,"Resumen Narrativo "]
[]
[null,"Resumen narrativo","Integrar los expedientes documentales de las personas facilitadoras de los talleres de formación musical para niñas, niños, adolescentes de  6 a 29 años de edad.",null,null,null,"Nivel en la Matriz de Marco Lógico","Actividad"]
[]
[]
[]
[]
[null,"Datos de identificación del indicador "]
[]
[null,"Nombre del indicador ",null,"Porcentaje de expedientes documentales integrados por las  personas facilitadoras de los talleres de formación musical para niñas, niños, adolescentes de 6 a 29 años de edad."]
[null,"Dimensión del indicador ",null,"Eficacia","Tipo de indicador para resultados ",null,null,"Gestión"]
[null,"Definición del indicador ",null,null,"Tipo de valor de la meta"]
[null,"Mide porcentaje de expedientes documentales integrados por las  personas facilitadoras de los talleres de formación musical para niñas, niños, adolescentes de 6 a 29 años de edad, respecto al número de expedientes programados.",null,null,"Relativa"]
[null,"Método de cálculo ",null,null,"Unidad de medida "]
[null,"(Número de expedientes documentales integrados / Número de expedientes programados a integrar)*100",null,null,"Porcentaje"]
[null,"Desagregación geográfica ",null,null,"Frecuencia de medición "]
[null,"Alcaldía",null,null,"Trimestral"]
[]
[null,"Serie de Información Disponible "]
[]
[null,"Información disponible "]
[null,"Informes del programa"]
[]
[null,"Criterios CREMAA"]
[]
[null,"Característica ","Calificación ","Justificación "]
[null,"Claridad","Cumple",{"$f":"IF(C58=\"Cumple\",Catálogo!AG2,Catálogo!AH2)","v":"El indicador es preciso y de fácil comprensión por usuarios no especializados, pues su formulación es sencilla."}]
[null,"Relevancia","Cumple",{"$f":"IF(C59=\"Cumple\",Catálogo!AG3,Catálogo!AH3)","v":"El indicador aporta información respecto a los efectos que tienen las acciones del Programa sobre los objetivos que este se ha planteado en el ejercicio presupuestal reportado, a su vez permite observar tendencias acerca de los impactos del Programa sobre la problemática que éste atiende en el mediano y largo plazo."}]
[null,"Economía","Cumple",{"$f":"IF(C60=\"Cumple\",Catálogo!AG4,Catálogo!AH4)","v":"El indicador no requiere recursos adicionales para su medición, pues la información se obtiene del desarrollo cotidiano del programa."}]
[null,"Monitoreable","Cumple",{"$f":"IF(C61=\"Cumple\",Catálogo!AG5,Catálogo!AH5)","v":"Se calcula a partir de las bases de datos generadas durante la operación del programa, por lo que se tienen datos a lo largo del ciclo presupuestal que permiten dar seguimiento al comportamiento del indicador."}]
[null,"Adecuado","Cumple",{"$f":"IF(C62=\"Cumple\",Catálogo!AG6,Catálogo!AH6)","v":"Se considera que el indicador es preciso para estimar el logro del objetivo."}]
[null,"Aporte marginal","No cumple",{"$f":"IF(C63=\"Cumple\",Catálogo!AG7,Catálogo!AH7)","v":"El indicador no proporciona información adicional a los demás indicadores."}]
[]
[null,"Contacto indicador "]
[]
[null,"Nombre ","Ma. Gabriela ","Apellido paterno ","Rodriguez ",null,"Apellido materno ","Valencia"]
[null,"Área ",null,"DIRECCIÓN GENERAL DE DERECHOS CULTURALES Y EDUCATIVOS"]
[null,"Puesto ",null,"COORDINADORA DE CULTURA"]
[null,"Correo electrónico ",null,"mrodriguezv@tlalpan.cdmx.gob.mx"]
[null,"Lada ",55,"Teléfono",54859048,null,"Extensión "]
[]
[null,"Viabilidad de la meta "]
[]
[null,"Meta acumulable ","Sí","Comportamiento del indicador ","Ascendente",null,"Factibilidad de la meta ","Alta"]
[null,"Justificación de la factibilidad "]
[null,"Es altamente factible alcanzar la meta, dado que se calculó con base en los recursos financieron, humanos y técnicos para alcanzarla."]
[]
[null,"Línea base "]
[]
[null,"Año ","Valor ",null,null,null,"Periodo al que corresponde el valor"]
[null,null,"Indicador\n(relativo)","Numerador\n(absoluto)","Denominador\n(universo de cobertura)"]
[null,2021,{"$f":"200/200","v":1},34,34,null,"Trimestral"]
[]
[null,"Justificación línea base"]
[null,"Sí se alcanzó la meta de 100% dadas las condiciones del programa."]
[]
[null,"Parámetros de semaforización "]
[]
[null,"Tipo de valor","Relativo"]
[null,"Umbral verde ","85% a 100%","Umbral amarillo","70% al 85%","Umbral rojo ","menos 70%"]
[]
[null,"Metas del ciclo presupuestario"]
[null,"Periodo (según la frecuencia de medición)","Valor",null,null,null,"Periodo al que corresponde el valor"]
[null,null,"Indicador (relativo)","Numerador (absoluto)","Denominador (universo de cobertura)"]
[null,"Trimestre 1",{"$f":"D96/E96","v":1},34,34,null,"Enero - marzo"]
[null,"Trimestre 2",{"$f":"D97/E97","v":1},34,34,null,"Abril - junio"]
[null,"Trimestre 3",1,34,34,null,"Julio - septiembre"]
[null," Trimestre 4",1,34,34,null,"Octubre - diciembre"]
[]
[null,"Características de las variables \n(Se debe llenar este conjunto tanta veces como número de variables existan)"]
[]
[null,"Nombre ",null,null,null,"Descripción de la variable "]
[null,"Número de expedientes documentales integrados",null,null,null,"Es el número de expedientes documentales integrados, respecto al número de expediente programados"]
[null,"Medios de verificación",null,null,null,"Unidad de medida"]
[null,"Informes trimestrales del programa",null,null,null,"Porcentaje "]
[null,"Desagregación geográfica ",null,null,null,"Frecuencia"]
[null,"Alcaldía",null,null,null,"Trimestral"]
[null,"Método de recopilación de datos ",null,null,null,"Fecha de disponibilidad de la información "]
[null,"Explotación de registros administrativos",null,null,null,2022]
[]
[null,"Nombre ",null,null,null,"Descripción de la variable "]
[null,"Número de expedientes programados a integrar",null,null,null,"Es el número de expedientes programados a integrar, respecto al número de expediente integrados"]
[null,"Medios de verificación ",null,null,null,"Unidad de medida"]
[null,"Informes trimestrales del programa",null,null,null,"Porcentaje"]
[null,"Desagregación geográfica ",null,null,null,"Frecuencia"]
[null,"Alcaldía",null,null,null,"Trimestral"]
[null,"Método de recopilación de datos ",null,null,null,"Fecha de disponibilidad de la información  "]
[null,"Explotación de registros administrativos",null,null,null,2022]
[]
[null,"Serie estadística "]
[]
[null,"Ciclo serie",null,"Valor serie",null,"Periodo de la serie"]
[null,2020,null,1,null,"Enero - diciembre"]
[null,2021,null,1,null,"Enero - diciembre"]
[]
[]
[]
[]
[]
[]
[]
[]
[]
[]
[]
[]
[null,"Instructivo de la Ficha Técnica"]
[null,"Datos de identificación del programa presupuestario (Pp)"]
[null,"Unidad responsable del Pp: Dependencia encargada del Programa"]
[null,"Clasificación del Pp: Categoría programática, que de acuerdo al catalogó emitido por la  Comisión  Nacional de Armonización Contable (CONAC), clasifica los programas presupuestarios  de acuerdo a su naturaleza generalmente con la inicial de una letra y seguida por números"]
[null,"Denominación del Pp: Nombre del Programa Presupuestario "]
[null,"Nombre de la Matriz: Conjunción de la clasificación y denominación del Programa"]
[]
[null,"Alineación con el PGD  y sus Programas derivados"]
[null,"Eje de política pública al que contribuye el Pp:   Se refiere a alguno de los 6 ejes del Plan General de Gobierno de la Ciudad de México"]
[null,"Tipo de Programa:  Los referidos en el Artículo 22 de la Ley de Planeación (Sectorial, Regional, Especial, Institucional)"]
[null,"Programa: Se especificará el nombre del programa según la clasificación arriba mencionada."]
[null,"Objetivo del Programa:  Se refiere a los objetivos del programa señalado en el inciso anterior."]
[]
[null,"Alineación con Objetivos del Desarrollo Sostenible"]
[null,"Objetivo al que contribuye el Pp: Se refiere al objetivo de desarrollo sostenible al que abona el programa"]
[]
[null,"Matriz de Indicadores para Resultados"]
[null,"Resumen Narrativo: Se registran los objetivos por cada nivel de la Matriz"]
[null,"Nivel en la Matriz de Marco Lógico: Se refiere al nviel del indicador, puede ser: Fin, Propósito, Componentes o Actividad, según sea el caso."]
[]
[null,"Datos de identificación del indicador"]
[null,"Nombre del indicador: denominación precisa y única con la que se distingue al indicador. "]
[null,"Dimensión del indicador: se refieren al aspecto particular del objetivo a ser medido mediante el indicador, puede ser:"]
[null,"• Eficacia: mide el grado de cumplimiento de los objetivos."]
[null,"• Eficiencia: mide la relación entre los productos y servicios generados con respecto a los insumos o recursos utilizados."]
[null,"• Economía: mide la capacidad del programa o de la institución para generar y movilizar adecuadamente los recursos financieros."]
[null,"• Calidad: mide los atributos, propiedades o características que deben tener los bienes y servicios para satisfacer los objetivos del programa."]
[null,"Tipo de indicador para Resultados: Se refiere a la naturaleza del indicador que corresponde a cada nivel de la Matriz de Indicadores para Resultados, puede ser:"]
[null,"• Estratégico.- Que está orientado a medir los efectos del Pp."]
[null,"• De gestión.- Qué está orientado a medir la forma en que trabaja el Pp."]
[null,"Considerar que según el nivel de la MIR los indicadores puedes ser:"]
[null,"• Para FIN y PROPÓSITO =  Estratégico."]
[null,"• Para COMPONENTE = Estratégico o Gestión."]
[null,"• Para ACTIVIDADES = Gestión."]
[null,"Definición del indicador: expresa al indicador en términos de su significado conceptual. Puede desde el punto de vista operativo, expresar al indicador en términos de las variables que en él intervienen."]
[null,"Tipo de valor de la Meta.- Indica si la meta es absoluta o relativa. Generalmente, la mayoría de los indicadores son expresados en números relativos, ya que por definición provienen de relacionar dos o más datos significativos, sin embargo, excepcionalmente se pueden utilizar indicadores referidos en números absolutos, tal es el caso del PIB. "]
[null,"Método de cálculo: se refiere a la expresión algebraica del indicador, a la explicación sencilla de la forma en que se relacionan las variables y a la metodología para calcular el indicador."]
[null,"Unidad de medida: magnitud de referencia que permite cuantificar y comparar elementos del indicador."]
[null,"Desagregación geográfica: indica los niveles territoriales para los que está disponible el indicador: ciudad, alcaldía"]
[null,"Frecuencia de medición: es el periodo de tiempo en el cual se calcula el indicador (mensual, bimestral, trimestral, cuatrimestral, semestral, anual o superior). La frecuencia de medición determinará la cantidad de periodos en los que se calendarizarán las metas para el indicador, por lo cual deberá tener precaución al seleccionar la frecuencia de medición. "]
[]
[null,"Serie de Información Disponible"]
[null,"Información disponible: Describe textualmente al conjunto de mediciones del indicador disponibles, se deben indicar cambios en la serie por cuestiones metodológicas u otras."]
[]
[null,"Criterios CREMAA"]
[null,"Claridad.- Es conveniente que los indicadores tengan una expresión sencilla con el propósito de que sean fácilmente comprensibles por los usuarios no especializados"]
[null,"Relevancia.- Un indicador debe expresar elementos de importancia o significativos en la medición de los avances y logros de un objetivo"]
[null,"Economía.- La información necesaria para generar el indicador deberá estar disponible a un costo razonable"]
[null,"Monitoreable.- El indicador debe poder sujetarse a una comprobación independiente"]
[null," Adecuado.- El indicador deberá aportar una base suficiente para evaluar el desempeño"]
[null,"Aporte marginal.- En el caso de que exista más de un indicador para medir el desempeño en determinado nivel de objetivo, el indicador debe proveer información adicional en comparación con los otros indicadores propuestos."]
[]
[null,"Contacto indicador  "]
[null,"Nombre:  Se deberá anotar el nombre del responsable directo de proporcionar información técnica sobre el indicador. "]
[null,"Apellido Paterno"]
[null,"Apellido Materno"]
[null,"Área"]
[null,"Puesto"]
[null,"Correo Electrónico"]
[null,"Teléfono (Lada, teléfono y extensión)"]
[]
[null,"Viabilidad de la meta"]
[null,"Meta acumulable: Se debe indicar si las características del indicador permiten que los valores de los diferentes periodos se sumen o no. "]
[null,"Comportamiento del indicador. Establece si el indicador a lo largo del tiempo tiene un comportamiento ascendente, descendente, regular o nominal. "]
[null,"• Ascendente.- si el resultado a lograr significa incrementar el valor del indicador."]
[null,"• Descendente.- si el resultado a lograr significa disminuir el valor del indicador."]
[null,"• Regular.- si el resultado a lograr significa mantener el valor del indicador dentro de determinado rango, y"]
[null,"• Nominal.- se tomará como un resultado independiente del historial del indicador."]
[null,"Factibilidad de la meta.- Establece, desde la perspectiva de la UR responsable del Pp la posibilidad real de alcanzar la meta"]
[null,"Alta"]
[null,"Media"]
[null,"Justificación de la Factibilidad.- Establece los argumentos que sirvieron de base para calificar la factibilidad de la meta."]
[]
[null,"Línea Base. \nEl valor inicial del indicador que se toma como referencia para comparar el avance del objetivo se llama Línea Base.\n"]
[null,"Año de la Línea Base.- Se deberá anotar el año que se toma como referencia para comparar los avances del Pp. Regularmente se recomienda tomar el año  en que terminó la administración anterior. Cuando un indicador vuelve a cero al término de cada ciclo, la línea base es 0.0 porque ese es el valor con el que inicia el nuevo ciclo."]
[null,"Indicador.- Se refiere al valor que tuvo el indicador en el momento de la medición inicial de referencia.  Cuando no se cuenta con línea base, se deberá anotar 0.0 y escribir la justificación en el campo correspondiente. "]
[null,"Numerador.- Se refiere al valor que tuvo el numerador del indicador en el momento de la medición inicial de referencia."]
[null,"Denominador.- Se refiere al valor que tuvo el denominador del indicador en el momento de la medición inicial de referencia."]
[null,"Periodo línea base.- Puede ser que en algunos casos, la línea base esté referida a un momento particular del año (inicio de cursos, trimestre II,  semana santa, etc.), en estas ocasiones deberá especificarse el periodo."]
[null,"Justificación línea base.- En este campo se deberá establecer cuando un indicador, por su reciente elaboración, no cuenta con una línea base. En este caso se deberá anotar aquí el año y periodo en que se tiene previsto realizar la primera medición, la cual será considerada como línea base."]
[]
[null,"Parámetros de semaforización\nSe refiere a los parámetros que la UR que opera el Pp establece como rango para calificar al avance como en semáforo verde, amarillo o rojo. "]
[null,"Tipo de valor.- Los umbrales de semaforización pueden definirse en términos absolutos o porcentuales"]
[null,"Umbral verde: Valor límite aceptable"]
[null,"Umbral amarillo: Valor en riesgo"]
[null,"Umbral rojo: Valor crítico"]
[]
[null,"Metas del ciclo presupuestario"]
[null,"Periodo: Asociado a la frecuencia de medición."]
[null,"Indicador.- Se refiere al valor del indicador en el periodo correspondiente."]
[null,"Numerador.- Se refiere al dividendo en el periodo correspondiente."]
[null,"Denominador.- Se refiere al valor que se estima alcanzará el divisor en el periodo correspondiente."]
[null,"Periodo al que corresponde el valor.- Se refiere al periodo de medición del indicador"]
[]
[null,"Características de las variables\nDescripción de las variables que componen el indicador, se agrega una sección por cada variable."]
[null,"Nombre: denominación de la variable."]
[null,"Descripción de la variable: expresa a la variable en términos de su significado conceptual "]
[null,"Medios de verificación: identifica las fuentes de información,  sistema o documentos en donde se origina la información, a efecto medir los indicadores y verificar que los objetivos se lograron. Si la fuente es un documento, debe incluir toda la información bibliográfica. Se debe anotar la información mínima necesaria para que el usuario pueda recuperar la información directamente."]
[null,"Unidad de medida: magnitud de referencia que permite cuantificar y comparar los elementos de las variables. "]
[null,"Desagregación geográfica: indica los niveles territoriales para los que está disponible la variable:  ciudad, alcaldía"]
[null,"Frecuencia: es el periodo de tiempo en el cual se calcula la variable (mensual, bimestral, trimestral, cuatrimestral, semestral, anual o superior). "]
[null,"Método de recopilación de datos: indica el método estadístico de recolección de datos, el cual puede ser: censo, encuesta o explotación de registros administrativos."]
[null,"Fecha de disponibilidad de la información: se refiere al momento en que la información puede ser consultada por los usuarios."]
[]
[null,"Serie estadística\nSon los valores del indicador para años previos, incluso más allá de la línea base."]
[null,"Ciclo serie: año al que está referido el dato de la serie."]
[null,"Valor serie: valor del indicador."]
[null,"Periodo de la serie: Cuando en un año se realizan diversas mediciones del indicador, se debe especificar a cuál de ellas corresponde el valor. (Ejemplo: matrícula escolar, se puede medir a inicio de cursos o a fin de cursos)"]
[]
[null,null,null,null,null,null,"Última actualización 08/10/2021"]
[null,null,null,null,null,null,null,{"$f":"MATCH(H34,Hoja2!F8:I8,0)","v":4}]

{"sheet":"C1 A2","index":4,"n_rows":248,"n_cols":8,"rows_kept":248,"cut":false,"hidden":false,"merged":[[5,1,5,7],[6,1,6,7],[7,1,7,7],[9,1,9,2],[9,3,9,7],[10,1,10,2],[10,3,10,7],[18,1,18,3],[18,4,18,7],[20,1,20,7],[22,4,22,7],[23,1,23,2],[23,3,23,7],[11,1,11,2],[11,3,11,7],[12,1,12,2],[12,3,12,7],[14,1,14,7],[16,1,16,7],[38,1,38,7],[40,1,40,2],[40,3,40,7],[41,1,41,2],[41,4,41,6],[42,1,42,3],[42,4,42,7],[25,1,25,7],[27,1,27,3],[27,4,27,7],[29,1,29,7],[31,1,31,7],[33,1,36,1],[33,2,36,5],[33,6,36,6],[33,7,36,7],[46,1,46,3],[46,4,46,7],[47,1,47,3],[47,4,47,7],[49,1,49,7],[51,1,51,7],[43,1,43,3],[43,4,43,7],[44,1,44,3],[44,4,44,7],[45,1,45,3],[45,4,45,7],[59,3,59,7],[60,3,60,7],[61,3,61,7],[62,3,62,7],[63,1,63,7],[64,1,64,7],[52,1,52,7],[54,1,54,7],[55,1,55,7],[56,3,56,7],[57,3,57,7],[58,3,58,7],[69,1,69,2],[69,3,69,7],[70,4,70,5],[71,1,71,7],[72,1,72,7],[73,1,73,7],[65,1,65,7],[66,4,66,5],[67,1,67,2],[67,3,67,7],[68,1,68,2],[68,3,68,7],[82,4,82,5],[82,6,82,7],[84,1,84,7],[85,1,85,7],[87,1,87,7],[89,2,89,7],[74,4,74,5],[75,1,75,7],[76,1,76,7],[78,1,78,7],[80,1,81,1],[80,2,80,5],[80,6,81,7],[81,4,81,5],[94,9,94,13],[95,4,95,5],[95,6,95,7],[96,4,96,5],[96,6,96,7],[97,4,97,5],[97,6,97,7],[90,6,90,7],[92,1,92,7],[93,1,94,1],[93,2,93,5],[93,6,94,7],[94,4,94,5],[104,1,104,3],[104,5,104,7],[105,1,105,3],[105,5,105,7],[106,1,106,3],[106,5,106,7],[98,4,98,5],[98,6,98,7],[100,1,100,7],[102,1,102,3],[102,5,102,7],[103,1,103,3],[103,5,103,7],[110,1,110,3],[110,5,110,7],[111,1,111,3],[111,5,111,7],[112,1,112,3],[112,5,112,7],[107,1,107,3],[107,5,107,7],[108,1,108,3],[108,5,108,7],[109,1,109,3],[109,5,109,7],[116,1,116,3],[116,5,116,7],[117,1,117,3],[117,5,117,7],[118,1,118,3],[118,5,118,7],[113,1,113,3],[113,5,113,7],[114,1,114,3],[114,5,114,7],[115,1,115,3],[115,5,115,7],[124,1,124,2],[124,3,124,4],[124,5,124,7],[125,1,125,2],[125,3,125,4],[125,5,125,7],[120,1,120,7],[122,1,122,2],[122,3,122,4],[122,5,122,7],[123,1,123,2],[123,3,123,4],[123,5,123,7],[128,1,128,2],[128,3,128,4],[128,5,128,7],[137,1,137,7],[138,1,138,7],[139,1,139,7],[126,1,126,2],[126,3,126,4],[126,5,126,7],[127,1,127,2],[127,3,127,4],[127,5,127,7],[147,1,147,7],[148,1,148,7],[150,1,150,7],[151,1,151,7],[153,1,153,7],[154,1,154,7],[140,1,140,7],[141,1,141,7],[142,1,142,7],[144,1,144,7],[145,1,145,7],[146,1,146,7],[162,1,162,7],[163,1,163,7],[164,1,164,7],[165,1,165,7],[166,1,166,7],[167,1,167,7],[155,1,155,7],[157,1,157,7],[158,1,158,7],[159,1,159,7],[160,1,160,7],[161,1,161,7],[174,1,174,7],[175,1,175,7],[176,1,176,7],[178,1,178,7],[179,1,179,7],[181,1,181,7],[168,1,168,7],[169,1,169,7],[170,1,170,7],[171,1,171,7],[172,1,172,7],[173,1,173,7],[189,1,189,7],[190,1,190,7],[191,1,191,7],[192,1,192,7],[193,1,193,7],[194,1,194,7],[182,1,182,7],[183,1,183,7],[184,1,184,7],[185,1,185,7],[186,1,186,7],[187,1,187,7],[202,1,202,7],[203,1,203,7],[204,1,204,7],[205,1,205,7],[208,1,208,7],[210,1,210,7],[195,1,195,7],[196,1,196,7],[198,1,198,7],[199,1,199,7],[200,1,200,7],[201,1,201,7],[218,1,218,7],[219,1,219,7],[220,1,220,7],[221,1,221,7],[222,1,222,7],[224,1,224,7],[211,1,211,7],[212,1,212,7],[213,1,213,7],[214,1,214,7],[215,1,215,7],[216,1,216,7],[232,1,232,7],[233,1,233,7],[234,1,234,7],[235,1,235,7],[236,1,236,7],[237,1,237,7],[225,1,225,7],[226,1,226,7],[227,1,227,7],[228,1,228,7],[229,1,229,7],[231,1,231,7],[245,1,245,7],[246,6,246,7],[248,1,248,7],[249,1,249,7],[250,1,250,7],[251,1,251,7],[238,1,238,7],[239,1,239,7],[241,1,241,7],[242,1,242,7],[243,1,243,7],[244,1,244,7],[258,1,258,7],[259,1,259,7],[260,1,260,7],[261,1,261,7],[262,1,262,7],[263,1,263,7],[252,1,252,7],[253,1,253,7],[254,1,254,7],[255,1,255,7],[256,1,256,7],[257,1,257,7],[270,1,270,7],[271,1,271,7],[272,1,272,7],[273,1,273,7],[274,1,274,7],[275,1,275,7],[264,1,264,7],[265,1,265,7],[266,1,266,7],[267,1,267,7],[268,1,268,7],[269,1,269,7],[282,1,282,7],[283,1,283,7],[284,1,284,7],[285,1,285,7],[286,1,286,7],[287,1,287,7],[276,1,276,7],[277,1,277,7],[278,1,278,7],[279,1,279,7],[280,1,280,7],[281,1,281,7],[294,1,294,7],[295,1,295,7],[296,1,296,7],[297,1,297,7],[298,1,298,7],[299,1,299,7],[288,1,288,7],[289,1,289,7],[290,1,290,7],[291,1,291,7],[292,1,292,7],[293,1,293,7],[306,1,306,7],[307,1,307,7],[308,1,308,7],[309,1,309,7],[310,1,310,7],[311,1,311,7],[300,1,300,7],[301,1,301,7],[302,1,302,7],[303,1,303,7],[304,1,304,7],[305,1,305,7],[318,1,318,7],[319,1,319,7],[320,1,320,7],[321,1,321,7],[322,1,322,7],[323,1,323,7],[312,1,312,7],[313,1,313,7],[314,1,314,7],[315,1,315,7],[316,1,316,7],[317,1,317,7],[330,1,330,7],[331,1,331,7],[332,1,332,7],[333,1,333,7],[334,1,334,7],[335,1,335,7],[324,1,324,7],[325,1,325,7],[326,1,326,7],[327,1,327,7],[328,1,328,7],[329,1,329,7],[342,1,342,7],[343,1,343,7],[344,1,344,7],[345,1,345,7],[346,1,346,7],[347,1,347,7],[336,1,336,7],[337,1,337,7],[338,1,338,7],[339,1,339,7],[340,1,340,7],[341,1,341,7],[354,1,354,7],[355,1,355,7],[356,1,356,7],[357,1,357,7],[358,1,358,7],[359,1,359,7],[348,1,348,7],[349,1,349,7],[350,1,350,7],[351,1,351,7],[352,1,352,7],[353,1,353,7],[366,1,366,7],[367,1,367,7],[368,1,368,7],[369,1,369,7],[370,1,370,7],[371,1,371,7],[360,1,360,7],[361,1,361,7],[362,1,362,7],[363,1,363,7],[364,1,364,7],[365,1,365,7],[378,1,378,7],[379,1,379,7],[380,1,380,7],[381,1,381,7],[382,1,382,7],[383,1,383,7],[372,1,372,7],[373,1,373,7],[374,1,374,7],[375,1,375,7],[376,1,376,7],[377,1,377,7],[390,1,390,7],[391,1,391,7],[392,1,392,7],[393,1,393,7],[394,1,394,7],[395,1,395,7],[384,1,384,7],[385,1,385,7],[386,1,386,7],[387,1,387,7],[388,1,388,7],[389,1,389,7],[402,1,402,7],[403,1,403,7],[404,1,404,7],[405,1,405,7],[406,1,406,7],[407,1,407,7],[396,1,396,7],[397,1,397,7],[398,1,398,7],[399,1,399,7],[400,1,400,7],[401,1,401,7],[414,1,414,7],[415,1,415,7],[416,1,416,7],[417,1,417,7],[418,1,418,7],[419,1,419,7],[408,1,408,7],[409,1,409,7],[410,1,410,7],[411,1,411,7],[412,1,412,7],[413,1,413,7],[426,1,426,7],[427,1,427,7],[428,1,428,7],[429,1,429,7],[430,1,430,7],[431,1,431,7],[420,1,420,7],[421,1,421,7],[422,1,422,7],[423,1,423,7],[424,1,424,7],[425,1,425,7],[438,1,438,7],[439,1,439,7],[440,1,440,7],[441,1,441,7],[442,1,442,7],[443,1,443,7],[432,1,432,7],[433,1,433,7],[434,1,434,7],[435,1,435,7],[436,1,436,7],[437,1,437,7],[450,1,450,7],[451,1,451,7],[452,1,452,7],[453,1,453,7],[454,1,454,7],[455,1,455,7],[444,1,444,7],[445,1,445,7],[446,1,446,7],[447,1,447,7],[448,1,448,7],[449,1,449,7],[462,1,462,7],[463,1,463,7],[464,1,464,7],[465,1,465,7],[466,1,466,7],[467,1,467,7],[456,1,456,7],[457,1,457,7],[458,1,458,7],[459,1,459,7],[460,1,460,7],[461,1,461,7],[474,1,474,7],[475,1,475,7],[476,1,476,7],[477,1,477,7],[478,1,478,7],[479,1,479,7],[468,1,468,7],[469,1,469,7],[470,1,470,7],[471,1,471,7],[472,1,472,7],[473,1,473,7],[486,1,486,7],[487,1,487,7],[488,1,488,7],[489,1,489,7],[490,1,490,7],[491,1,491,7],[480,1,480,7],[481,1,481,7],[482,1,482,7],[483,1,483,7],[484,1,484,7],[485,1,485,7],[498,1,498,7],[499,1,499,7],[500,1,500,7],[501,1,501,7],[502,1,502,7],[503,1,503,7],[492,1,492,7],[493,1,493,7],[494,1,494,7],[495,1,495,7],[496,1,496,7],[497,1,497,7],[510,1,510,7],[511,1,511,7],[512,1,512,7],[513,1,513,7],[514,1,514,7],[515,1,515,7],[504,1,504,7],[505,1,505,7],[506,1,506,7],[507,1,507,7],[508,1,508,7],[509,1,509,7],[522,1,522,7],[523,1,523,7],[524,1,524,7],[525,1,525,7],[526,1,526,7],[527,1,527,7],[516,1,516,7],[517,1,517,7],[518,1,518,7],[519,1,519,7],[520,1,520,7],[521,1,521,7],[534,1,534,7],[535,1,535,7],[536,1,536,7],[537,1,537,7],[538,1,538,7],[539,1,539,7],[528,1,528,7],[529,1,529,7],[530,1,530,7],[531,1,531,7],[532,1,532,7],[533,1,533,7],[546,1,546,7],[547,1,547,7],[548,1,548,7],[549,1,549,7],[550,1,550,7],[551,1,551,7],[540,1,540,7],[541,1,541,7],[542,1,542,7],[543,1,543,7],[544,1,544,7],[545,1,545,7],[558,1,558,7],[559,1,559,7],[560,1,560,7],[561,1,561,7],[562,1,562,7],[563,1,563,7],[552,1,552,7],[553,1,553,7],[554,1,554,7],[555,1,555,7],[556,1,556,7],[557,1,557,7],[570,1,570,7],[571,1,571,7],[572,1,572,7],[573,1,573,7],[574,1,574,7],[575,1,575,7],[564,1,564,7],[565,1,565,7],[566,1,566,7],[567,1,567,7],[568,1,568,7],[569,1,569,7],[582,1,582,7],[583,1,583,7],[584,1,584,7],[585,1,585,7],[586,1,586,7],[587,1,587,7],[576,1,576,7],[577,1,577,7],[578,1,578,7],[579,1,579,7],[580,1,580,7],[581,1,581,7],[594,1,594,7],[595,1,595,7],[596,1,596,7],[597,1,597,7],[598,1,598,7],[599,1,599,7],[588,1,588,7],[589,1,589,7],[590,1,590,7],[591,1,591,7],[592,1,592,7],[593,1,593,7],[606,1,606,7],[607,1,607,7],[608,1,608,7],[609,1,609,7],[610,1,610,7],[611,1,611,7],[600,1,600,7],[601,1,601,7],[602,1,602,7],[603,1,603,7],[604,1,604,7],[605,1,605,7],[618,1,618,7],[619,1,619,7],[620,1,620,7],[621,1,621,7],[622,1,622,7],[623,1,623,7],[612,1,612,7],[613,1,613,7],[614,1,614,7],[615,1,615,7],[616,1,616,7],[617,1,617,7],[630,1,630,7],[631,1,631,7],[632,1,632,7],[633,1,633,7],[634,1,634,7],[635,1,635,7],[624,1,624,7],[625,1,625,7],[626,1,626,7],[627,1,627,7],[628,1,628,7],[629,1,629,7],[642,1,642,7],[643,1,643,7],[644,1,644,7],[645,1,645,7],[646,1,646,7],[647,1,647,7],[636,1,636,7],[637,1,637,7],[638,1,638,7],[639,1,639,7],[640,1,640,7],[641,1,641,7],[660,1,660,7],[661,1,661,7],[654,1,654,7],[655,1,655,7],[656,1,656,7],[657,1,657,7],[658,1,658,7],[659,1,659,7],[648,1,648,7],[649,1,649,7],[650,1,650,7],[651,1,651,7],[652,1,652,7],[653,1,653,7]]}
[]
[]
[]
[]
[]
[null,"PRESUPUESTO DE EGRESOS 2022"]
[null,"FICHA TÉCNICA"]
[null,"Datos de Identificación del Programa Presupuestario (Pp)"]
[]
[null,"Unidad responsable del Pp ",null,"ALCALDÍA TLALPAN"]
[null,"Clasificación del Pp ",null,"S206"]
[null,"Denominación del Pp ",null,{"$f":"VLOOKUP(D11,Catálogo!AU1:AV333,2,0)","v":"FORMACIÓN MUSICAL, TLALPAN"}]
[null,"Nombre de la Matriz ",null,{"$f":"D11&\" \"&D12","v":"S206 FORMACIÓN MUSICAL, TLALPAN"}]
[]
[null,"Alineación con el PGD y sus Programas derivados "]
[]
[null,"Plan General de Desarrollo de la Ciudad de México"]
[]
[null,"Eje de política pública al que contribuye el Pp ",null,null,"Eje 4. Ciudad de México, capital cultural de America Latina"]
[]
[null,"Programas del Plan General de Desarrollo de la Ciudad de México"]
[]
[null,"Tipo de Programa ","Institucional","Programa ","Formación Musical, Tlalpan "]
[null,"Objetivo del Programa ",null,"Brindar educación musical a residentes de la Alcaldía Tlalpan."]
[]
[null,"Alineación con Objetivos del Desarrollo Sostenible"]
[]
[null,"Objetivo al que contribuye el Pp ",null,null,"10. Reducción de las desigualdades"]
[]
[null,"Matriz de Indicadores para Resultados "]
[]
[null,"Resumen Narrativo "]
[]
[null,"Resumen narrativo","Registrar la asistencia de a niñas, niños, adolescentes de 6 a 29 años de edad inscritas a los talleres de formación musical.",null,null,null,"Nivel en la Matriz de Marco Lógico","Actividad"]
[]
[]
[]
[]
[null,"Datos de identificación del indicador "]
[]
[null,"Nombre del indicador ",null,"Porcentaje de niñas, niños, adolescentes de 6 a 29 años de edad que asisten a los talleres de formación musical."]
[null,"Dimensión del indicador ",null,"Eficacia","Tipo de indicador para resultados ",null,null,"Gestión"]
[null,"Definición del indicador ",null,null,"Tipo de valor de la meta"]
[null,"Mide el porcentaje de niñas, niños, adolescentes de 6 a 29 años de edad que asisten a los talleres de formación musical, respecto a las personas que se inscribieron",null,null,"Relativa"]
[null,"Método de cálculo ",null,null,"Unidad de medida "]
[null,"(Número de niñas, niños, adolescentes de 6 a 29  años de edad que asisten a los talleres de formación musical / Número de niñas, niños, adolescentes de 6 a 29 años de edad inscritas en los talleres de formación musical)*100",null,null,"Porcentaje"]
[null,"Desagregación geográfica ",null,null,"Frecuencia de medición "]
[null,"Alcaldía",null,null,"Trimestral"]
[]
[null,"Serie de Información Disponible "]
[]
[null,"Información disponible "]
[null,"Informes del programa"]
[]
[null,"Criterios CREMAA"]
[]
[null,"Característica ","Calificación ","Justificación "]
[null,"Claridad","Cumple",{"$f":"IF(C58=\"Cumple\",Catálogo!AG2,Catálogo!AH2)","v":"El indicador es preciso y de fácil comprensión por usuarios no especializados, pues su formulación es sencilla."}]
[null,"Relevancia","Cumple",{"$f":"IF(C59=\"Cumple\",Catálogo!AG3,Catálogo!AH3)","v":"El indicador aporta información respecto a los efectos que tienen las acciones del Programa sobre los objetivos que este se ha planteado en el ejercicio presupuestal reportado, a su vez permite observar tendencias acerca de los impactos del Programa sobre la problemática que éste atiende en el mediano y largo plazo."}]
[null,"Economía","Cumple",{"$f":"IF(C60=\"Cumple\",Catálogo!AG4,Catálogo!AH4)","v":"El indicador no requiere recursos adicionales para su medición, pues la información se obtiene del desarrollo cotidiano del programa."}]
[null,"Monitoreable","Cumple",{"$f":"IF(C61=\"Cumple\",Catálogo!AG5,Catálogo!AH5)","v":"Se calcula a partir de las bases de datos generadas durante la operación del programa, por lo que se tienen datos a lo largo del ciclo presupuestal que permiten dar seguimiento al comportamiento del indicador."}]
[null,"Adecuado","Cumple",{"$f":"IF(C62=\"Cumple\",Catálogo!AG6,Catálogo!AH6)","v":"Se considera que el indicador es preciso para estimar el logro del objetivo."}]
[null,"Aporte marginal","No cumple",{"$f":"IF(C63=\"Cumple\",Catálogo!AG7,Catálogo!AH7)","v":"El indicador no proporciona información adicional a los demás indicadores."}]
[]
[null,"Contacto indicador "]
[]
[null,"Nombre ","Ma. Gabriela ","Apellido paterno ","Rodriguez ",null,"Apellido materno ","Valencia"]
[null,"Área ",null,"DIRECCIÓN GENERAL DE DERECHOS CULTURALES Y EDUCATIVOS"]
[null,"Puesto ",null,"COORDINADORA DE CULTURA"]
[null,"Correo electrónico ",null,"mrodriguezv@tlalpan.cdmx.gob.mx"]
[null,"Lada ",55,"Teléfono",54859048,null,"Extensión "]
[]
[null,"Viabilidad de la meta "]
[]
[null,"Meta acumulable ","Sí","Comportamiento del indicador ","Ascendente",null,"Factibilidad de la meta ","Alta"]
[null,"Justificación de la factibilidad "]
[null,"Es altamente factible alcanzar la meta, dado que se calculó con base en los recursos financieron, humanos y técnicos para alcanzarla."]
[]
[null,"Línea base "]
[]
[null,"Año ","Valor ",null,null,null,"Periodo al que corresponde el valor"]
[null,null,"Indicador\n(relativo)","Numerador\n(absoluto)","Denominador\n(universo de cobertura)"]
[null,2021,{"$f":"200/200","v":1},200,200,null,"Trimestral"]
[]
[null,"Justificación línea base"]
[null,"Sí se alcanzó la meta de 100% dadas las condiciones del programa."]
[]
[null,"Parámetros de semaforización "]
[]
[null,"Tipo de valor","Relativo"]
[null,"Umbral verde ","85% a 100%","Umbral amarillo","70% al 85%","Umbral rojo ","menos 70%"]
[]
[null,"Metas del ciclo presupuestario"]
[null,"Periodo (según la frecuencia de medición)","Valor",null,null,null,"Periodo al que corresponde el valor"]
[null,null,"Indicador (relativo)","Numerador (absoluto)","Denominador (universo de cobertura)"]
[null,"Trimestre 1",{"$f":"D96/E96","v":1},34,34,null,"Enero - marzo"]
[null,"Trimestre 2",{"$f":"D97/E97","v":1},34,34,null,"Abril - junio"]
[null,"Trimestre 3",1,34,34,null,"Julio - septiembre"]
[null," Trimestre 4",1,34,34,null,"Octubre - diciembre"]
[]
[null,"Características de las variables \n(Se debe llenar este conjunto tanta veces como número de variables existan)"]
[]
[null,"Nombre ",null,null,null,"Descripción de la variable "]
[null,"Número de niñas, niños, adolescentes de 6 a 29  años de edad que asisten a los talleres de formación musical",null,null,null,"Es el número de niñas, niños, adolescentes de 6 a 29  años de edad que asisten a los talleres de formación musical, respecto al número de personas incritas en los talleres"]
[null,"Medios de verificación",null,null,null,"Unidad de medida"]
[null,"Informes trimestrales del programa",null,null,null,"Porcentaje "]
[null,"Desagregación geográfica ",null,null,null,"Frecuencia"]
[null,"Alcaldía",null,null,null,"Trimestral"]
[null,"Método de recopilación de datos ",null,null,null,"Fecha de disponibilidad de la información "]
[null,"Explotación de registros administrativos",null,null,null,2022]
[]
[null,"Nombre ",null,null,null,"Descripción de la variable "]
[null,"Número de niñas, niños, adolescentes de 6 a 29 años de edad inscritas en los talleres de formación musical",null,null,null,"Es el número de niñas, niños, adolescentes de 6 a 29 años de edad inscritas en los talleres de formación musical, respecto al número de asistentes a los talleres"]
[null,"Medios de verificación ",null,null,null,"Unidad de medida"]
[null,"Informes trimestrales del programa",null,null,null,"Porcentaje"]
[null,"Desagregación geográfica ",null,null,null,"Frecuencia"]
[null,"Alcaldía",null,null,null,"Trimestral"]
[null,"Método de recopilación de datos ",null,null,null,"Fecha de disponibilidad de la información  "]
[null,"Explotación de registros administrativos",null,null,null,2022]
[]
[null,"Serie estadística "]
[]
[null,"Ciclo serie",null,"Valor serie",null,"Periodo de la serie"]
[null,2020,null,1,null,"Enero - diciembre"]
[null,2021,null,1,null,"Enero - diciembre"]
[]
[]
[]
[]
[]
[]
[]
[]
[]
[]
[]
[]
[null,"Instructivo de la Ficha Técnica"]
[null,"Datos de identificación del programa presupuestario (Pp)"]
[null,"Unidad responsable del Pp: Dependencia encargada del Programa"]
[null,"Clasificación del Pp: Categoría programática, que de acuerdo al catalogó emitido por la  Comisión  Nacional de Armonización Contable (CONAC), clasifica los programas presupuestarios  de acuerdo a su naturaleza generalmente con la inicial de una letra y seguida por números"]
[null,"Denominación del Pp: Nombre del Programa Presupuestario "]
[null,"Nombre de la Matriz: Conjunción de la clasificación y denominación del Programa"]
[]
[null,"Alineación con el PGD  y sus Programas derivados"]
[null,"Eje de política pública al que contribuye el Pp:   Se refiere a alguno de los 6 ejes del Plan General de Gobierno de la Ciudad de México"]
[null,"Tipo de Programa:  Los referidos en el Artículo 22 de la Ley de Planeación (Sectorial, Regional, Especial, Institucional)"]
[null,"Programa: Se especificará el nombre del programa según la clasificación arriba mencionada."]
[null,"Objetivo del Programa:  Se refiere a los objetivos del programa señalado en el inciso anterior."]
[]
[null,"Alineación con Objetivos del Desarrollo Sostenible"]
[null,"Objetivo al que contribuye el Pp: Se refiere al objetivo de desarrollo sostenible al que abona el programa"]
[]
[null,"Matriz de Indicadores para Resultados"]
[null,"Resumen Narrativo: Se registran los objetivos por cada nivel de la Matriz"]
[null,"Nivel en la Matriz de Marco Lógico: Se refiere al nviel del indicador, puede ser: Fin, Propósito, Componentes o Actividad, según sea el caso."]
[]
[null,"Datos de identificación del indicador"]
[null,"Nombre del indicador: denominación precisa y única con la que se distingue al indicador. "]
[null,"Dimensión del indicador: se refieren al aspecto particular del objetivo a ser medido mediante el indicador, puede ser:"]
[null,"• Eficacia: mide el grado de cumplimiento de los objetivos."]
[null,"• Eficiencia: mide la relación entre los productos y servicios generados con respecto a los insumos o recursos utilizados."]
[null,"• Economía: mide la capacidad del programa o de la institución para generar y movilizar adecuadamente los recursos financieros."]
[null,"• Calidad: mide los atributos, propiedades o características que deben tener los bienes y servicios para satisfacer los objetivos del programa."]
[null,"Tipo de indicador para Resultados: Se refiere a la naturaleza del indicador que corresponde a cada nivel de la Matriz de Indicadores para Resultados, puede ser:"]
[null,"• Estratégico.- Que está orientado a medir los efectos del Pp."]
[null,"• De gestión.- Qué está orientado a medir la forma en que trabaja el Pp."]
[null,"Considerar que según el nivel de la MIR los indicadores puedes ser:"]
[null,"• Para FIN y PROPÓSITO =  Estratégico."]
[null,"• Para COMPONENTE = Estratégico o Gestión."]
[null,"• Para ACTIVIDADES = Gestión."]
[null,"Definición del indicador: expresa al indicador en términos de su significado conceptual. Puede desde el punto de vista operativo, expresar al indicador en términos de las variables que en él intervienen."]
[null,"Tipo de valor de la Meta.- Indica si la meta es absoluta o relativa. Generalmente, la mayoría de los indicadores son expresados en números relativos, ya que por definición provienen de relacionar dos o más datos significativos, sin embargo, excepcionalmente se pueden utilizar indicadores referidos en números absolutos, tal es el caso del PIB. "]
[null,"Método de cálculo: se refiere a la expresión algebraica del indicador, a la explicación sencilla de la forma en que se relacionan las variables y a la metodología para calcular el indicador."]
[null,"Unidad de medida: magnitud de referencia que permite cuantificar y comparar elementos del indicador."]
[null,"Desagregación geográfica: indica los niveles territoriales para los que está disponible el indicador: ciudad, alcaldía"]
[null,"Frecuencia de medición: es el periodo de tiempo en el cual se calcula el indicador (mensual, bimestral, trimestral, cuatrimestral, semestral, anual o superior). La frecuencia de medición determinará la cantidad de periodos en los que se calendarizarán las metas para el indicador, por lo cual deberá tener precaución al seleccionar la frecuencia de medición. "]
[]
[null,"Serie de Información Disponible"]
[null,"Información disponible: Describe textualmente al conjunto de mediciones del indicador disponibles, se deben indicar cambios en la serie por cuestiones metodológicas u otras."]
[]
[null,"Criterios CREMAA"]
[null,"Claridad.- Es conveniente que los indicadores tengan una expresión sencilla con el propósito de que sean fácilmente comprensibles por los usuarios no especializados"]
[null,"Relevancia.- Un indicador debe expresar elementos de importancia o significativos en la medición de los avances y logros de un objetivo"]
[null,"Economía.- La información necesaria para generar el indicador deberá estar disponible a un costo razonable"]
[null,"Monitoreable.- El indicador debe poder sujetarse a una comprobación independiente"]
[null," Adecuado.- El indicador deberá aportar una base suficiente para evaluar el desempeño"]
[null,"Aporte marginal.- En el caso de que exista más de un indicador para medir el desempeño en determinado nivel de objetivo, el indicador debe proveer información adicional en comparación con los otros indicadores propuestos."]
[]
[null,"Contacto indicador  "]
[null,"Nombre:  Se deberá anotar el nombre del responsable directo de proporcionar información técnica sobre el indicador. "]
[null,"Apellido Paterno"]
[null,"Apellido Materno"]
[null,"Área"]
[null,"Puesto"]
[null,"Correo Electrónico"]
[null,"Teléfono (Lada, teléfono y extensión)"]
[]
[null,"Viabilidad de la meta"]
[null,"Meta acumulable: Se debe indicar si las características del indicador permiten que los valores de los diferentes periodos se sumen o no. "]
[null,"Comportamiento del indicador. Establece si el indicador a lo largo del tiempo tiene un comportamiento ascendente, descendente, regular o nominal. "]
[null,"• Ascendente.- si el resultado a lograr significa incrementar el valor del indicador."]
[null,"• Descendente.- si el resultado a lograr significa disminuir el valor del indicador."]
[null,"• Regular.- si el resultado a lograr significa mantener el valor del indicador dentro de determinado rango, y"]
[null,"• Nominal.- se tomará como un resultado independiente del historial del indicador."]
[null,"Factibilidad de la meta.- Establece, desde la perspectiva de la UR responsable del Pp la posibilidad real de alcanzar la meta"]
[null,"Alta"]
[null,"Media"]
[null,"Justificación de la Factibilidad.- Establece los argumentos que sirvieron de base para calificar la factibilidad de la meta."]
[]
[null,"Línea Base. \nEl valor inicial del indicador que se toma como referencia para comparar el avance del objetivo se llama Línea Base.\n"]
[null,"Año de la Línea Base.- Se deberá anotar el año que se toma como referencia para comparar los avances del Pp. Regularmente se recomienda tomar el año  en que terminó la administración anterior. Cuando un indicador vuelve a cero al término de cada ciclo, la línea base es 0.0 porque ese es el valor con el que inicia el nuevo ciclo."]
[null,"Indicador.- Se refiere al valor que tuvo el indicador en el momento de la medición inicial de referencia.  Cuando no se cuenta con línea base, se deberá anotar 0.0 y escribir la justificación en el campo correspondiente. "]
[null,"Numerador.- Se refiere al valor que tuvo el numerador del indicador en el momento de la medición inicial de referencia."]
[null,"Denominador.- Se refiere al valor que tuvo el denominador del indicador en el momento de la medición inicial de referencia."]
[null,"Periodo línea base.- Puede ser que en algunos casos, la línea base esté referida a un momento particular del año (inicio de cursos, trimestre II,  semana santa, etc.), en estas ocasiones deberá especificarse el periodo."]
[null,"Justificación línea base.- En este campo se deberá establecer cuando un indicador, por su reciente elaboración, no cuenta con una línea base. En este caso se deberá anotar aquí el año y periodo en que se tiene previsto realizar la primera medición, la cual será considerada como línea base."]
[]
[null,"Parámetros de semaforización\nSe refiere a los parámetros que la UR que opera el Pp establece como rango para calificar al avance como en semáforo verde, amarillo o rojo. "]
[null,"Tipo de valor.- Los umbrales de semaforización pueden definirse en términos absolutos o porcentuales"]
[null,"Umbral verde: Valor límite aceptable"]
[null,"Umbral amarillo: Valor en riesgo"]
[null,"Umbral rojo: Valor crítico"]
[]
[null,"Metas del ciclo presupuestario"]
[null,"Periodo: Asociado a la frecuencia de medición."]
[null,"Indicador.- Se refiere al valor del indicador en el periodo correspondiente."]
[null,"Numerador.- Se refiere al dividendo en el periodo correspondiente."]
[null,"Denominador.- Se refiere al valor que se estima alcanzará el divisor en el periodo correspondiente."]
[null,"Periodo al que corresponde el valor.- Se refiere al periodo de medición del indicador"]
[]
[null,"Características de las variables\nDescripción de las variables que componen el indicador, se agrega una sección por cada variable."]
[null,"Nombre: denominación de la variable."]
[null,"Descripción de la variable: expresa a la variable en términos de su significado conceptual "]
[null,"Medios de verificación: identifica las fuentes de información,  sistema o documentos en donde se origina la información, a efecto medir los indicadores y verificar que los objetivos se lograron. Si la fuente es un documento, debe incluir toda la información bibliográfica. Se debe anotar la información mínima necesaria para que el usuario pueda recuperar la información directamente."]
[null,"Unidad de medida: magnitud de referencia que permite cuantificar y comparar los elementos de las variables. "]
[null,"Desagregación geográfica: indica los niveles territoriales para los que está disponible la variable:  ciudad, alcaldía"]
[null,"Frecuencia: es el periodo de tiempo en el cual se calcula la variable (mensual, bimestral, trimestral, cuatrimestral, semestral, anual o superior). "]
[null,"Método de recopilación de datos: indica el método estadístico de recolección de datos, el cual puede ser: censo, encuesta o explotación de registros administrativos."]
[null,"Fecha de disponibilidad de la información: se refiere al momento en que la información puede ser consultada por los usuarios."]
[]
[null,"Serie estadística\nSon los valores del indicador para años previos, incluso más allá de la línea base."]
[null,"Ciclo serie: año al que está referido el dato de la serie."]
[null,"Valor serie: valor del indicador."]
[null,"Periodo de la serie: Cuando en un año se realizan diversas mediciones del indicador, se debe especificar a cuál de ellas corresponde el valor. (Ejemplo: matrícula escolar, se puede medir a inicio de cursos o a fin de cursos)"]
[]
[null,null,null,null,null,null,"Última actualización 08/10/2021"]
[null,null,null,null,null,null,null,{"$f":"MATCH(H34,Hoja2!F8:I8,0)","v":4}]

{"sheet":"C2","index":5,"n_rows":248,"n_cols":8,"rows_kept":248,"cut":false,"hidden":false,"merged":[[5,1,5,7],[6,1,6,7],[7,1,7,7],[9,1,9,2],[9,3,9,7],[10,1,10,2],[10,3,10,7],[18,1,18,3],[18,4,18,7],[20,1,20,7],[22,4,22,7],[23,1,23,2],[23,3,23,7],[11,1,11,2],[11,3,11,7],[12,1,12,2],[12,3,12,7],[14,1,14,7],[16,1,16,7],[38,1,38,7],[40,1,40,2],[40,3,40,7],[41,1,41,2],[41,4,41,6],[42,1,42,3],[42,4,42,7],[25,1,25,7],[27,1,27,3],[27,4,27,7],[29,1,29,7],[31,1,31,7],[33,1,36,1],[33,2,36,5],[33,6,36,6],[33,7,36,7],[46,1,46,3],[46,4,46,7],[47,1,47,3],[47,4,47,7],[49,1,49,7],[51,1,51,7],[43,1,43,3],[43,4,43,7],[44,1,44,3],[44,4,44,7],[45,1,45,3],[45,4,45,7],[59,3,59,7],[60,3,60,7],[61,3,61,7],[62,3,62,7],[63,1,63,7],[64,1,64,7],[52,1,52,7],[54,1,54,7],[55,1,55,7],[56,3,56,7],[57,3,57,7],[58,3,58,7],[69,1,69,2],[69,3,69,7],[70,4,70,5],[71,1,71,7],[72,1,72,7],[73,1,73,7],[65,1,65,7],[66,4,66,5],[67,1,67,2],[67,3,67,7],[68,1,68,2],[68,3,68,7],[82,4,82,5],[82,6,82,7],[84,1,84,7],[85,1,85,7],[87,1,87,7],[89,2,89,7],[74,4,74,5],[75,1,75,7],[76,1,76,7],[78,1,78,7],[80,1,81,1],[80,2,80,5],[80,6,81,7],[81,4,81,5],[94,9,94,13],[95,4,95,5],[95,6,95,7],[96,4,96,5],[96,6,96,7],[97,4,97,5],[97,6,97,7],[90,6,90,7],[92,1,92,7],[93,1,94,1],[93,2,93,5],[93,6,94,7],[94,4,94,5],[104,1,104,3],[104,5,104,7],[105,1,105,3],[105,5,105,7],[106,1,106,3],[106,5,106,7],[98,4,98,5],[98,6,98,7],[100,1,100,7],[102,1,102,3],[102,5,102,7],[103,1,103,3],[103,5,103,7],[110,1,110,3],[110,5,110,7],[111,1,111,3],[111,5,111,7],[112,1,112,3],[112,5,112,7],[107,1,107,3],[107,5,107,7],[108,1,108,3],[108,5,108,7],[109,1,109,3],[109,5,109,7],[116,1,116,3],[116,5,116,7],[117,1,117,3],[117,5,117,7],[118,1,118,3],[118,5,118,7],[113,1,113,3],[113,5,113,7],[114,1,114,3],[114,5,114,7],[115,1,115,3],[115,5,115,7],[124,1,124,2],[124,3,124,4],[124,5,124,7],[125,1,125,2],[125,3,125,4],[125,5,125,7],[120,1,120,7],[122,1,122,2],[122,3,122,4],[122,5,122,7],[123,1,123,2],[123,3,123,4],[123,5,123,7],[128,1,128,2],[128,3,128,4],[128,5,128,7],[137,1,137,7],[138,1,138,7],[139,1,139,7],[126,1,126,2],[126,3,126,4],[126,5,126,7],[127,1,127,2],[127,3,127,4],[127,5,127,7],[147,1,147,7],[148,1,148,7],[150,1,150,7],[151,1,151,7],[153,1,153,7],[154,1,154,7],[140,1,140,7],[141,1,141,7],[142,1,142,7],[144,1,144,7],[145,1,145,7],[146,1,146,7],[162,1,162,7],[163,1,163,7],[164,1,164,7],[165,1,165,7],[166,1,166,7],[167,1,167,7],[155,1,155,7],[157,1,157,7],[158,1,158,7],[159,1,159,7],[160,1,160,7],[161,1,161,7],[174,1,174,7],[175,1,175,7],[176,1,176,7],[178,1,178,7],[179,1,179,7],[181,1,181,7],[168,1,168,7],[169,1,169,7],[170,1,170,7],[171,1,171,7],[172,1,172,7],[173,1,173,7],[189,1,189,7],[190,1,190,7],[191,1,191,7],[192,1,192,7],[193,1,193,7],[194,1,194,7],[182,1,182,7],[183,1,183,7],[184,1,184,7],[185,1,185,7],[186,1,186,7],[187,1,187,7],[202,1,202,7],[203,1,203,7],[204,1,204,7],[205,1,205,7],[208,1,208,7],[210,1,210,7],[195,1,195,7],[196,1,196,7],[198,1,198,7],[199,1,199,7],[200,1,200,7],[201,1,201,7],[218,1,218,7],[219,1,219,7],[220,1,220,7],[221,1,221,7],[222,1,222,7],[224,1,224,7],[211,1,211,7],[212,1,212,7],[213,1,213,7],[214,1,214,7],[215,1,215,7],[216,1,216,7],[232,1,232,7],[233,1,233,7],[234,1,234,7],[235,1,235,7],[236,1,236,7],[237,1,237,7],[225,1,225,7],[226,1,226,7],[227,1,227,7],[228,1,228,7],[229,1,229,7],[231,1,231,7],[245,1,245,7],[246,6,246,7],[248,1,248,7],[249,1,249,7],[250,1,250,7],[251,1,251,7],[238,1,238,7],[239,1,239,7],[241,1,241,7],[242,1,242,7],[243,1,243,7],[244,1,244,7],[258,1,258,7],[259,1,259,7],[260,1,260,7],[261,1,261,7],[262,1,262,7],[263,1,263,7],[252,1,252,7],[253,1,253,7],[254,1,254,7],[255,1,255,7],[256,1,256,7],[257,1,257,7],[270,1,270,7],[271,1,271,7],[272,1,272,7],[273,1,273,7],[274,1,274,7],[275,1,275,7],[264,1,264,7],[265,1,265,7],[266,1,266,7],[267,1,267,7],[268,1,268,7],[269,1,269,7],[282,1,282,7],[283,1,283,7],[284,1,284,7],[285,1,285,7],[286,1,286,7],[287,1,287,7],[276,1,276,7],[277,1,277,7],[278,1,278,7],[279,1,279,7],[280,1,280,7],[281,1,281,7],[294,1,294,7],[295,1,295,7],[296,1,296,7],[297,1,297,7],[298,1,298,7],[299,1,299,7],[288,1,288,7],[289,1,289,7],[290,1,290,7],[291,1,291,7],[292,1,292,7],[293,1,293,7],[306,1,306,7],[307,1,307,7],[308,1,308,7],[309,1,309,7],[310,1,310,7],[311,1,311,7],[300,1,300,7],[301,1,301,7],[302,1,302,7],[303,1,303,7],[304,1,304,7],[305,1,305,7],[318,1,318,7],[319,1,319,7],[320,1,320,7],[321,1,321,7],[322,1,322,7],[323,1,323,7],[312,1,312,7],[313,1,313,7],[314,1,314,7],[315,1,315,7],[316,1,316,7],[317,1,317,7],[330,1,330,7],[331,1,331,7],[332,1,332,7],[333,1,333,7],[334,1,334,7],[335,1,335,7],[324,1,324,7],[325,1,325,7],[326,1,326,7],[327,1,327,7],[328,1,328,7],[329,1,329,7],[342,1,342,7],[343,1,343,7],[344,1,344,7],[345,1,345,7],[346,1,346,7],[347,1,347,7],[336,1,336,7],[337,1,337,7],[338,1,338,7],[339,1,339,7],[340,1,340,7],[341,1,341,7],[354,1,354,7],[355,1,355,7],[356,1,356,7],[357,1,357,7],[358,1,358,7],[359,1,359,7],[348,1,348,7],[349,1,349,7],[350,1,350,7],[351,1,351,7],[352,1,352,7],[353,1,353,7],[366,1,366,7],[367,1,367,7],[368,1,368,7],[369,1,369,7],[370,1,370,7],[371,1,371,7],[360,1,360,7],[361,1,361,7],[362,1,362,7],[363,1,363,7],[364,1,364,7],[365,1,365,7],[378,1,378,7],[379,1,379,7],[380,1,380,7],[381,1,381,7],[382,1,382,7],[383,1,383,7],[372,1,372,7],[373,1,373,7],[374,1,374,7],[375,1,375,7],[376,1,376,7],[377,1,377,7],[390,1,390,7],[391,1,391,7],[392,1,392,7],[393,1,393,7],[394,1,394,7],[395,1,395,7],[384,1,384,7],[385,1,385,7],[386,1,386,7],[387,1,387,7],[388,1,388,7],[389,1,389,7],[402,1,402,7],[403,1,403,7],[404,1,404,7],[405,1,405,7],[406,1,406,7],[407,1,407,7],[396,1,396,7],[397,1,397,7],[398,1,398,7],[399,1,399,7],[400,1,400,7],[401,1,401,7],[414,1,414,7],[415,1,415,7],[416,1,416,7],[417,1,417,7],[418,1,418,7],[419,1,419,7],[408,1,408,7],[409,1,409,7],[410,1,410,7],[411,1,411,7],[412,1,412,7],[413,1,413,7],[426,1,426,7],[427,1,427,7],[428,1,428,7],[429,1,429,7],[430,1,430,7],[431,1,431,7],[420,1,420,7],[421,1,421,7],[422,1,422,7],[423,1,423,7],[424,1,424,7],[425,1,425,7],[438,1,438,7],[439,1,439,7],[440,1,440,7],[441,1,441,7],[442,1,442,7],[443,1,443,7],[432,1,432,7],[433,1,433,7],[434,1,434,7],[435,1,435,7],[436,1,436,7],[437,1,437,7],[450,1,450,7],[451,1,451,7],[452,1,452,7],[453,1,453,7],[454,1,454,7],[455,1,455,7],[444,1,444,7],[445,1,445,7],[446,1,446,7],[447,1,447,7],[448,1,448,7],[449,1,449,7],[462,1,462,7],[463,1,463,7],[464,1,464,7],[465,1,465,7],[466,1,466,7],[467,1,467,7],[456,1,456,7],[457,1,457,7],[458,1,458,7],[459,1,459,7],[460,1,460,7],[461,1,461,7],[474,1,474,7],[475,1,475,7],[476,1,476,7],[477,1,477,7],[478,1,478,7],[479,1,479,7],[468,1,468,7],[469,1,469,7],[470,1,470,7],[471,1,471,7],[472,1,472,7],[473,1,473,7],[486,1,486,7],[487,1,487,7],[488,1,488,7],[489,1,489,7],[490,1,490,7],[491,1,491,7],[480,1,480,7],[481,1,481,7],[482,1,482,7],[483,1,483,7],[484,1,484,7],[485,1,485,7],[498,1,498,7],[499,1,499,7],[500,1,500,7],[501,1,501,7],[502,1,502,7],[503,1,503,7],[492,1,492,7],[493,1,493,7],[494,1,494,7],[495,1,495,7],[496,1,496,7],[497,1,497,7],[510,1,510,7],[511,1,511,7],[512,1,512,7],[513,1,513,7],[514,1,514,7],[515,1,515,7],[504,1,504,7],[505,1,505,7],[506,1,506,7],[507,1,507,7],[508,1,508,7],[509,1,509,7],[522,1,522,7],[523,1,523,7],[524,1,524,7],[525,1,525,7],[526,1,526,7],[527,1,527,7],[516,1,516,7],[517,1,517,7],[518,1,518,7],[519,1,519,7],[520,1,520,7],[521,1,521,7],[534,1,534,7],[535,1,535,7],[536,1,536,7],[537,1,537,7],[538,1,538,7],[539,1,539,7],[528,1,528,7],[529,1,529,7],[530,1,530,7],[531,1,531,7],[532,1,532,7],[533,1,533,7],[546,1,546,7],[547,1,547,7],[548,1,548,7],[549,1,549,7],[550,1,550,7],[551,1,551,7],[540,1,540,7],[541,1,541,7],[542,1,542,7],[543,1,543,7],[544,1,544,7],[545,1,545,7],[558,1,558,7],[559,1,559,7],[560,1,560,7],[561,1,561,7],[562,1,562,7],[563,1,563,7],[552,1,552,7],[553,1,553,7],[554,1,554,7],[555,1,555,7],[556,1,556,7],[557,1,557,7],[570,1,570,7],[571,1,571,7],[572,1,572,7],[573,1,573,7],[574,1,574,7],[575,1,575,7],[564,1,564,7],[565,1,565,7],[566,1,566,7],[567,1,567,7],[568,1,568,7],[569,1,569,7],[582,1,582,7],[583,1,583,7],[584,1,584,7],[585,1,585,7],[586,1,586,7],[587,1,587,7],[576,1,576,7],[577,1,577,7],[578,1,578,7],[579,1,579,7],[580,1,580,7],[581,1,581,7],[594,1,594,7],[595,1,595,7],[596,1,596,7],[597,1,597,7],[598,1,598,7],[599,1,599,7],[588,1,588,7],[589,1,589,7],[590,1,590,7],[591,1,591,7],[592,1,592,7],[593,1,593,7],[606,1,606,7],[607,1,607,7],[608,1,608,7],[609,1,609,7],[610,1,610,7],[611,1,611,7],[600,1,600,7],[601,1,601,7],[602,1,602,7],[603,1,603,7],[604,1,604,7],[605,1,605,7],[618,1,618,7],[619,1,619,7],[620,1,620,7],[621,1,621,7],[622,1,622,7],[623,1,623,7],[612,1,612,7],[613,1,613,7],[614,1,614,7],[615,1,615,7],[616,1,616,7],[617,1,617,7],[630,1,630,7],[631,1,631,7],[632,1,632,7],[633,1,633,7],[634,1,634,7],[635,1,635,7],[624,1,624,7],[625,1,625,7],[626,1,626,7],[627,1,627,7],[628,1,628,7],[629,1,629,7],[642,1,642,7],[643,1,643,7],[644,1,644,7],[645,1,645,7],[646,1,646,7],[647,1,647,7],[636,1,636,7],[637,1,637,7],[638,1,638,7],[639,1,639,7],[640,1,640,7],[641,1,641,7],[660,1,660,7],[661,1,661,7],[654,1,654,7],[655,1,655,7],[656,1,656,7],[657,1,657,7],[658,1,658,7],[659,1,659,7],[648,1,648,7],[649,1,649,7],[650,1,650,7],[651,1,651,7],[652,1,652,7],[653,1,653,7]]}
[]
[]
[]
[]
[]
[null,"PRESUPUESTO DE EGRESOS 2022"]
[null,"FICHA TÉCNICA"]
[null,"Datos de Identificación del Programa Presupuestario (Pp)"]
[]
[null,"Unidad responsable del Pp ",null,"ALCALDÍA TLALPAN"]
[null,"Clasificación del Pp ",null,"S206"]
[null,"Denominación del Pp ",null,{"$f":"VLOOKUP(D11,Catálogo!AU1:AV333,2,0)","v":"FORMACIÓN MUSICAL, TLALPAN"}]
[null,"Nombre de la Matriz ",null,{"$f":"D11&\" \"&D12","v":"S206 FORMACIÓN MUSICAL, TLALPAN"}]
[]
[null,"Alineación con el PGD y sus Programas derivados "]
[]
[null,"Plan General de Desarrollo de la Ciudad de México"]
[]
[null,"Eje de política pública al que contribuye el Pp ",null,null,"Eje 4. Ciudad de México, capital cultural de America Latina"]
[]
[null,"Programas del Plan General de Desarrollo de la Ciudad de México"]
[]
[null,"Tipo de Programa ","Institucional","Programa ","Formación Musical, Tlalpan "]
[null,"Objetivo del Programa ",null,"Brindar educación musical a residentes de la Alcaldía Tlalpan."]
[]
[null,"Alineación con Objetivos del Desarrollo Sostenible"]
[]
[null,"Objetivo al que contribuye el Pp ",null,null,"10. Reducción de las desigualdades"]
[]
[null,"Matriz de Indicadores para Resultados "]
[]
[null,"Resumen Narrativo "]
[]
[null,"Resumen narrativo","Talleres gratuitos de formación musical impartidos a personas mayores de 30 años.",null,null,null,"Nivel en la Matriz de Marco Lógico","Componente"]
[]
[]
[]
[]
[null,"Datos de identificación del indicador "]
[]
[null,"Nombre del indicador ",null,"Porcentaje de talleres gratuitos de formación musical impartidos a personas mayores de 30 años y más de edad."]
[null,"Dimensión del indicador ",null,"Eficacia","Tipo de indicador para resultados ",null,null,"Estratégico"]
[null,"Definición del indicador ",null,null,"Tipo de valor de la meta"]
[null,"Mide el porcentaje de talleres gratuitos de formación musical impartidos a personas mayores de 30 años, respecto al número de talleres programados a impartir",null,null,"Relativa"]
[null,"Método de cálculo ",null,null,"Unidad de medida "]
[null,"(Número de talleres gratuitos de formación musical impartidos a personas mayores de 30 años / Número de talleres programados a impartir a personas mayores de 30 años)*100",null,null,"Porcentaje"]
[null,"Desagregación geográfica ",null,null,"Frecuencia de medición "]
[null,"Alcaldía",null,null,"Trimestral"]
[]
[null,"Serie de Información Disponible "]
[]
[null,"Información disponible "]
[null,"Informes del programa"]
[]
[null,"Criterios CREMAA"]
[]
[null,"Característica ","Calificación ","Justificación "]
[null,"Claridad","Cumple",{"$f":"IF(C58=\"Cumple\",Catálogo!AG2,Catálogo!AH2)","v":"El indicador es preciso y de fácil comprensión por usuarios no especializados, pues su formulación es sencilla."}]
[null,"Relevancia","Cumple",{"$f":"IF(C59=\"Cumple\",Catálogo!AG3,Catálogo!AH3)","v":"El indicador aporta información respecto a los efectos que tienen las acciones del Programa sobre los objetivos que este se ha planteado en el ejercicio presupuestal reportado, a su vez permite observar tendencias acerca de los impactos del Programa sobre la problemática que éste atiende en el mediano y largo plazo."}]
[null,"Economía","Cumple",{"$f":"IF(C60=\"Cumple\",Catálogo!AG4,Catálogo!AH4)","v":"El indicador no requiere recursos adicionales para su medición, pues la información se obtiene del desarrollo cotidiano del programa."}]
[null,"Monitoreable","Cumple",{"$f":"IF(C61=\"Cumple\",Catálogo!AG5,Catálogo!AH5)","v":"Se calcula a partir de las bases de datos generadas durante la operación del programa, por lo que se tienen datos a lo largo del ciclo presupuestal que permiten dar seguimiento al comportamiento del indicador."}]
[null,"Adecuado","Cumple",{"$f":"IF(C62=\"Cumple\",Catálogo!AG6,Catálogo!AH6)","v":"Se considera que el indicador es preciso para estimar el logro del objetivo."}]
[null,"Aporte marginal","No cumple",{"$f":"IF(C63=\"Cumple\",Catálogo!AG7,Catálogo!AH7)","v":"El indicador no proporciona información adicional a los demás indicadores."}]
[]
[null,"Contacto indicador "]
[]
[null,"Nombre ","Ma. Gabriela ","Apellido paterno ","Rodriguez ",null,"Apellido materno ","Valencia"]
[null,"Área ",null,"DIRECCIÓN GENERAL DE DERECHOS CULTURALES Y EDUCATIVOS"]
[null,"Puesto ",null,"COORDINADORA DE CULTURA"]
[null,"Correo electrónico ",null,"mrodriguezv@tlalpan.cdmx.gob.mx"]
[null,"Lada ",55,"Teléfono",54859048,null,"Extensión "]
[]
[null,"Viabilidad de la meta "]
[]
[null,"Meta acumulable ","Sí","Comportamiento del indicador ","Ascendente",null,"Factibilidad de la meta ","Alta"]
[null,"Justificación de la factibilidad "]
[null,"Es altamente factible alcanzar la meta, dado que se calculó con base en los recursos financieron, humanos y técnicos para alcanzarla."]
[]
[null,"Línea base "]
[]
[null,"Año ","Valor ",null,null,null,"Periodo al que corresponde el valor"]
[null,null,"Indicador\n(relativo)","Numerador\n(absoluto)","Denominador\n(universo de cobertura)"]
[null,2021,{"$f":"34/34","v":1},34,34,null,"Trimestral"]
[]
[null,"Justificación línea base"]
[null,"Sí se alcanzó la meta de 100% dadas las condiciones del programa."]
[]
[null,"Parámetros de semaforización "]
[]
[null,"Tipo de valor","Relativo"]
[null,"Umbral verde ","85% a 100%","Umbral amarillo","70% al 85%","Umbral rojo ","menos 70%"]
[]
[null,"Metas del ciclo presupuestario"]
[null,"Periodo (según la frecuencia de medición)","Valor",null,null,null,"Periodo al que corresponde el valor"]
[null,null,"Indicador (relativo)","Numerador (absoluto)","Denominador (universo de cobertura)"]
[null,"Trimestre 1",{"$f":"D96/E96","v":1},34,34,null,"Enero - marzo"]
[null,"Trimestre 2",{"$f":"D97/E97","v":1},34,34,null,"Abril - junio"]
[null,"Trimestre 3",1,34,34,null,"Julio - septiembre"]
[null," Trimestre 4",1,34,34,null,"Octubre - diciembre"]
[]
[null,"Características de las variables \n(Se debe llenar este conjunto tanta veces como número de variables existan)"]
[]
[null,"Nombre ",null,null,null,"Descripción de la variable "]
[null,"Número de talleres gratuitos de formación musical impartidos a personas mayores de 30 años",null,null,null,"Es el número de talleres gratuitos de formación musical impartidos a personas mayores de 30 años, respecto al número de talleres programados"]
[null,"Medios de verificación",null,null,null,"Unidad de medida"]
[null,"Informes trimestrales del programa",null,null,null,"Porcentaje "]
[null,"Desagregación geográfica ",null,null,null,"Frecuencia"]
[null,"Alcaldía",null,null,null,"Trimestral"]
[null,"Método de recopilación de datos ",null,null,null,"Fecha de disponibilidad de la información "]
[null,"Explotación de registros administrativos",null,null,null,2022]
[]
[null,"Nombre ",null,null,null,"Descripción de la variable "]
[null,"Número de talleres programados a impartir a personas mayores de 30 años",null,null,null,"Es el número de talleres programados a impartir a personas mayores de 30 años, respecto al número de talleres impartidos"]
[null,"Medios de verificación ",null,null,null,"Unidad de medida"]
[null,"Informes trimestrales del programa",null,null,null,"Porcentaje"]
[null,"Desagregación geográfica ",null,null,null,"Frecuencia"]
[null,"Alcaldía",null,null,null,"Trimestral"]
[null,"Método de recopilación de datos ",null,null,null,"Fecha de disponibilidad de la información  "]
[null,"Explotación de registros administrativos",null,null,null,2022]
[]
[null,"Serie estadística "]
[]
[null,"Ciclo serie",null,"Valor serie",null,"Periodo de la serie"]
[null,2020,null,1,null,"Enero - diciembre"]
[null,2021,null,1,null,"Enero - diciembre"]
[]
[]
[]
[]
[]
[]
[]
[]
[]
[]
[]
[]
[null,"Instructivo de la Ficha Técnica"]
[null,"Datos de identificación del programa presupuestario (Pp)"]
[null,"Unidad responsable del Pp: Dependencia encargada del Programa"]
[null,"Clasificación del Pp: Categoría programática, que de acuerdo al catalogó emitido por la  Comisión  Nacional de Armonización Contable (CONAC), clasifica los programas presupuestarios  de acuerdo a su naturaleza generalmente con la inicial de una letra y seguida por números"]
[null,"Denominación del Pp: Nombre del Programa Presupuestario "]
[null,"Nombre de la Matriz: Conjunción de la clasificación y denominación del Programa"]
[]
[null,"Alineación con el PGD  y sus Programas derivados"]
[null,"Eje de política pública al que contribuye el Pp:   Se refiere a alguno de los 6 ejes del Plan General de Gobierno de la Ciudad de México"]
[null,"Tipo de Programa:  Los referidos en el Artículo 22 de la Ley de Planeación (Sectorial, Regional, Especial, Institucional)"]
[null,"Programa: Se especificará el nombre del programa según la clasificación arriba mencionada."]
[null,"Objetivo del Programa:  Se refiere a los objetivos del programa señalado en el inciso anterior."]
[]
[null,"Alineación con Objetivos del Desarrollo Sostenible"]
[null,"Objetivo al que contribuye el Pp: Se refiere al objetivo de desarrollo sostenible al que abona el programa"]
[]
[null,"Matriz de Indicadores para Resultados"]
[null,"Resumen Narrativo: Se registran los objetivos por cada nivel de la Matriz"]
[null,"Nivel en la Matriz de Marco Lógico: Se refiere al nviel del indicador, puede ser: Fin, Propósito, Componentes o Actividad, según sea el caso."]
[]
[null,"Datos de identificación del indicador"]
[null,"Nombre del indicador: denominación precisa y única con la que se distingue al indicador. "]
[null,"Dimensión del indicador: se refieren al aspecto particular del objetivo a ser medido mediante el indicador, puede ser:"]
[null,"• Eficacia: mide el grado de cumplimiento de los objetivos."]
[null,"• Eficiencia: mide la relación entre los productos y servicios generados con respecto a los insumos o recursos utilizados."]
[null,"• Economía: mide la capacidad del programa o de la institución para generar y movilizar adecuadamente los recursos financieros."]
[null,"• Calidad: mide los atributos, propiedades o características que deben tener los bienes y servicios para satisfacer los objetivos del programa."]
[null,"Tipo de indicador para Resultados: Se refiere a la naturaleza del indicador que corresponde a cada nivel de la Matriz de Indicadores para Resultados, puede ser:"]
[null,"• Estratégico.- Que está orientado a medir los efectos del Pp."]
[null,"• De gestión.- Qué está orientado a medir la forma en que trabaja el Pp."]
[null,"Considerar que según el nivel de la MIR los indicadores puedes ser:"]
[null,"• Para FIN y PROPÓSITO =  Estratégico."]
[null,"• Para COMPONENTE = Estratégico o Gestión."]
[null,"• Para ACTIVIDADES = Gestión."]
[null,"Definición del indicador: expresa al indicador en términos de su significado conceptual. Puede desde el punto de vista operativo, expresar al indicador en términos de las variables que en él intervienen."]
[null,"Tipo de valor de la Meta.- Indica si la meta es absoluta o relativa. Generalmente, la mayoría de los indicadores son expresados en números relativos, ya que por definición provienen de relacionar dos o más datos significativos, sin embargo, excepcionalmente se pueden utilizar indicadores referidos en números absolutos, tal es el caso del PIB. "]
[null,"Método de cálculo: se refiere a la expresión algebraica del indicador, a la explicación sencilla de la forma en que se relacionan las variables y a la metodología para calcular el indicador."]
[null,"Unidad de medida: magnitud de referencia que permite cuantificar y comparar elementos del indicador."]
[null,"Desagregación geográfica: indica los niveles territoriales para los que está disponible el indicador: ciudad, alcaldía"]
[null,"Frecuencia de medición: es el periodo de tiempo en el cual se calcula el indicador (mensual, bimestral, trimestral, cuatrimestral, semestral, anual o superior). La frecuencia de medición determinará la cantidad de periodos en los que se calendarizarán las metas para el indicador, por lo cual deberá tener precaución al seleccionar la frecuencia de medición. "]
[]
[null,"Serie de Información Disponible"]
[null,"Información disponible: Describe textualmente al conjunto de mediciones del indicador disponibles, se deben indicar cambios en la serie por cuestiones metodológicas u otras."]
[]
[null,"Criterios CREMAA"]
[null,"Claridad.- Es conveniente que los indicadores tengan una expresión sencilla con el propósito de que sean fácilmente comprensibles por los usuarios no especializados"]
[null,"Relevancia.- Un indicador debe expresar elementos de importancia o significativos en la medición de los avances y logros de un objetivo"]
[null,"Economía.- La información necesaria para generar el indicador deberá estar disponible a un costo razonable"]
[null,"Monitoreable.- El indicador debe poder sujetarse a una comprobación independiente"]
[null," Adecuado.- El indicador deberá aportar una base suficiente para evaluar el desempeño"]
[null,"Aporte marginal.- En el caso de que exista más de un indicador para medir el desempeño en determinado nivel de objetivo, el indicador debe proveer información adicional en comparación con los otros indicadores propuestos."]
[]
[null,"Contacto indicador  "]
[null,"Nombre:  Se deberá anotar el nombre del responsable directo de proporcionar información técnica sobre el indicador. "]
[null,"Apellido Paterno"]
[null,"Apellido Materno"]
[null,"Área"]
[null,"Puesto"]
[null,"Correo Electrónico"]
[null,"Teléfono (Lada, teléfono y extensión)"]
[]
[null,"Viabilidad de la meta"]
[null,"Meta acumulable: Se debe indicar si las características del indicador permiten que los valores de los diferentes periodos se sumen o no. "]
[null,"Comportamiento del indicador. Establece si el indicador a lo largo del tiempo tiene un comportamiento ascendente, descendente, regular o nominal. "]
[null,"• Ascendente.- si el resultado a lograr significa incrementar el valor del indicador."]
[null,"• Descendente.- si el resultado a lograr significa disminuir el valor del indicador."]
[null,"• Regular.- si el resultado a lograr significa mantener el valor del indicador dentro de determinado rango, y"]
[null,"• Nominal.- se tomará como un resultado independiente del historial del indicador."]
[null,"Factibilidad de la meta.- Establece, desde la perspectiva de la UR responsable del Pp la posibilidad real de alcanzar la meta"]
[null,"Alta"]
[null,"Media"]
[null,"Justificación de la Factibilidad.- Establece los argumentos que sirvieron de base para calificar la factibilidad de la meta."]
[]
[null,"Línea Base. \nEl valor inicial del indicador que se toma como referencia para comparar el avance del objetivo se llama Línea Base.\n"]
[null,"Año de la Línea Base.- Se deberá anotar el año que se toma como referencia para comparar los avances del Pp. Regularmente se recomienda tomar el año  en que terminó la administración anterior. Cuando un indicador vuelve a cero al término de cada ciclo, la línea base es 0.0 porque ese es el valor con el que inicia el nuevo ciclo."]
[null,"Indicador.- Se refiere al valor que tuvo el indicador en el momento de la medición inicial de referencia.  Cuando no se cuenta con línea base, se deberá anotar 0.0 y escribir la justificación en el campo correspondiente. "]
[null,"Numerador.- Se refiere al valor que tuvo el numerador del indicador en el momento de la medición inicial de referencia."]
[null,"Denominador.- Se refiere al valor que tuvo el denominador del indicador en el momento de la medición inicial de referencia."]
[null,"Periodo línea base.- Puede ser que en algunos casos, la línea base esté referida a un momento particular del año (inicio de cursos, trimestre II,  semana santa, etc.), en estas ocasiones deberá especificarse el periodo."]
[null,"Justificación línea base.- En este campo se deberá establecer cuando un indicador, por su reciente elaboración, no cuenta con una línea base. En este caso se deberá anotar aquí el año y periodo en que se tiene previsto realizar la primera medición, la cual será considerada como línea base."]
[]
[null,"Parámetros de semaforización\nSe refiere a los parámetros que la UR que opera el Pp establece como rango para calificar al avance como en semáforo verde, amarillo o rojo. "]
[null,"Tipo de valor.- Los umbrales de semaforización pueden definirse en términos absolutos o porcentuales"]
[null,"Umbral verde: Valor límite aceptable"]
[null,"Umbral amarillo: Valor en riesgo"]
[null,"Umbral rojo: Valor crítico"]
[]
[null,"Metas del ciclo presupuestario"]
[null,"Periodo: Asociado a la frecuencia de medición."]
[null,"Indicador.- Se refiere al valor del indicador en el periodo correspondiente."]
[null,"Numerador.- Se refiere al dividendo en el periodo correspondiente."]
[null,"Denominador.- Se refiere al valor que se estima alcanzará el divisor en el periodo correspondiente."]
[null,"Periodo al que corresponde el valor.- Se refiere al periodo de medición del indicador"]
[]
[null,"Características de las variables\nDescripción de las variables que componen el indicador, se agrega una sección por cada variable."]
[null,"Nombre: denominación de la variable."]
[null,"Descripción de la variable: expresa a la variable en términos de su significado conceptual "]
[null,"Medios de verificación: identifica las fuentes de información,  sistema o documentos en donde se origina la información, a efecto medir los indicadores y verificar que los objetivos se lograron. Si la fuente es un documento, debe incluir toda la información bibliográfica. Se debe anotar la información mínima necesaria para que el usuario pueda recuperar la información directamente."]
[null,"Unidad de medida: magnitud de referencia que permite cuantificar y comparar los elementos de las variables. "]
[null,"Desagregación geográfica: indica los niveles territoriales para los que está disponible la variable:  ciudad, alcaldía"]
[null,"Frecuencia: es el periodo de tiempo en el cual se calcula la variable (mensual, bimestral, trimestral, cuatrimestral, semestral, anual o superior). "]
[null,"Método de recopilación de datos: indica el método estadístico de recolección de datos, el cual puede ser: censo, encuesta o explotación de registros administrativos."]
[null,"Fecha de disponibilidad de la información: se refiere al momento en que la información puede ser consultada por los usuarios."]
[]
[null,"Serie estadística\nSon los valores del indicador para años previos, incluso más allá de la línea base."]
[null,"Ciclo serie: año al que está referido el dato de la serie."]
[null,"Valor serie: valor del indicador."]
[null,"Periodo de la serie: Cuando en un año se realizan diversas mediciones del indicador, se debe especificar a cuál de ellas corresponde el valor. (Ejemplo: matrícula escolar, se puede medir a inicio de cursos o a fin de cursos)"]
[]
[null,null,null,null,null,null,"Última actualización 08/10/2021"]
[null,null,null,null,null,null,null,{"$f":"MATCH(H34,Hoja2!F8:I8,0)","v":3}]

{"sheet":"C2 A1","index":6,"n_rows":248,"n_cols":8,"rows_kept":248,"cut":false,"hidden":false,"merged":[[5,1,5,7],[6,1,6,7],[7,1,7,7],[9,1,9,2],[9,3,9,7],[10,1,10,2],[10,3,10,7],[18,1,18,3],[18,4,18,7],[20,1,20,7],[22,4,22,7],[23,1,23,2],[23,3,23,7],[11,1,11,2],[11,3,11,7],[12,1,12,2],[12,3,12,7],[14,1,14,7],[16,1,16,7],[38,1,38,7],[40,1,40,2],[40,3,40,7],[41,1,41,2],[41,4,41,6],[42,1,42,3],[42,4,42,7],[25,1,25,7],[27,1,27,3],[27,4,27,7],[29,1,29,7],[31,1,31,7],[33,1,36,1],[33,2,36,5],[33,6,36,6],[33,7,36,7],[46,1,46,3],[46,4,46,7],[47,1,47,3],[47,4,47,7],[49,1,49,7],[51,1,51,7],[43,1,43,3],[43,4,43,7],[44,1,44,3],[44,4,44,7],[45,1,45,3],[45,4,45,7],[59,3,59,7],[60,3,60,7],[61,3,61,7],[62,3,62,7],[63,1,63,7],[64,1,64,7],[52,1,52,7],[54,1,54,7],[55,1,55,7],[56,3,56,7],[57,3,57,7],[58,3,58,7],[69,1,69,2],[69,3,69,7],[70,4,70,5],[71,1,71,7],[72,1,72,7],[73,1,73,7],[65,1,65,7],[66,4,66,5],[67,1,67,2],[67,3,67,7],[68,1,68,2],[68,3,68,7],[82,4,82,5],[82,6,82,7],[84,1,84,7],[85,1,85,7],[87,1,87,7],[89,2,89,7],[74,4,74,5],[75,1,75,7],[76,1,76,7],[78,1,78,7],[80,1,81,1],[80,2,80,5],[80,6,81,7],[81,4,81,5],[94,9,94,13],[95,4,95,5],[95,6,95,7],[96,4,96,5],[96,6,96,7],[97,4,97,5],[97,6,97,7],[90,6,90,7],[92,1,92,7],[93,1,94,1],[93,2,93,5],[93,6,94,7],[94,4,94,5],[104,1,104,3],[104,5,104,7],[105,1,105,3],[105,5,105,7],[106,1,106,3],[106,5,106,7],[98,4,98,5],[98,6,98,7],[100,1,100,7],[102,1,102,3],[102,5,102,7],[103,1,103,3],[103,5,103,7],[110,1,110,3],[110,5,110,7],[111,1,111,3],[111,5,111,7],[112,1,112,3],[112,5,112,7],[107,1,107,3],[107,5,107,7],[108,1,108,3],[108,5,108,7],[109,1,109,3],[109,5,109,7],[116,1,116,3],[116,5,116,7],[117,1,117,3],[117,5,117,7],[118,1,118,3],[118,5,118,7],[113,1,113,3],[113,5,113,7],[114,1,114,3],[114,5,114,7],[115,1,115,3],[115,5,115,7],[124,1,124,2],[124,3,124,4],[124,5,124,7],[125,1,125,2],[125,3,125,4],[125,5,125,7],[120,1,120,7],[122,1,122,2],[122,3,122,4],[122,5,122,7],[123,1,123,2],[123,3,123,4],[123,5,123,7],[128,1,128,2],[128,3,128,4],[128,5,128,7],[137,1,137,7],[138,1,138,7],[139,1,139,7],[126,1,126,2],[126,3,126,4],[126,5,126,7],[127,1,127,2],[127,3,127,4],[127,5,127,7],[147,1,147,7],[148,1,148,7],[150,1,150,7],[151,1,151,7],[153,1,153,7],[154,1,154,7],[140,1,140,7],[141,1,141,7],[142,1,142,7],[144,1,144,7],[145,1,145,7],[146,1,146,7],[162,1,162,7],[163,1,163,7],[164,1,164,7],[165,1,165,7],[166,1,166,7],[167,1,167,7],[155,1,155,7],[157,1,157,7],[158,1,158,7],[159,1,159,7],[160,1,160,7],[161,1,161,7],[174,1,174,7],[175,1,175,7],[176,1,176,7],[178,1,178,7],[179,1,179,7],[181,1,181,7],[168,1,168,7],[169,1,169,7],[170,1,170,7],[171,1,171,7],[172,1,172,7],[173,1,173,7],[189,1,189,7],[190,1,190,7],[191,1,191,7],[192,1,192,7],[193,1,193,7],[194,1,194,7],[182,1,182,7],[183,1,183,7],[184,1,184,7],[185,1,185,7],[186,1,186,7],[187,1,187,7],[202,1,202,7],[203,1,203,7],[204,1,204,7],[205,1,205,7],[208,1,208,7],[210,1,210,7],[195,1,195,7],[196,1,196,7],[198,1,198,7],[199,1,199,7],[200,1,200,7],[201,1,201,7],[218,1,218,7],[219,1,219,7],[220,1,220,7],[221,1,221,7],[222,1,222,7],[224,1,224,7],[211,1,211,7],[212,1,212,7],[213,1,213,7],[214,1,214,7],[215,1,215,7],[216,1,216,7],[232,1,232,7],[233,1,233,7],[234,1,234,7],[235,1,235,7],[236,1,236,7],[237,1,237,7],[225,1,225,7],[226,1,226,7],[227,1,227,7],[228,1,228,7],[229,1,229,7],[231,1,231,7],[245,1,245,7],[246,6,246,7],[248,1,248,7],[249,1,249,7],[250,1,250,7],[251,1,251,7],[238,1,238,7],[239,1,239,7],[241,1,241,7],[242,1,242,7],[243,1,243,7],[244,1,244,7],[258,1,258,7],[259,1,259,7],[260,1,260,7],[261,1,261,7],[262,1,262,7],[263,1,263,7],[252,1,252,7],[253,1,253,7],[254,1,254,7],[255,1,255,7],[256,1,256,7],[257,1,257,7],[270,1,270,7],[271,1,271,7],[272,1,272,7],[273,1,273,7],[274,1,274,7],[275,1,275,7],[264,1,264,7],[265,1,265,7],[266,1,266,7],[267,1,267,7],[268,1,268,7],[269,1,269,7],[282,1,282,7],[283,1,283,7],[284,1,284,7],[285,1,285,7],[286,1,286,7],[287,1,287,7],[276,1,276,7],[277,1,277,7],[278,1,278,7],[279,1,279,7],[280,1,280,7],[281,1,281,7],[294,1,294,7],[295,1,295,7],[296,1,296,7],[297,1,297,7],[298,1,298,7],[299,1,299,7],[288,1,288,7],[289,1,289,7],[290,1,290,7],[291,1,291,7],[292,1,292,7],[293,1,293,7],[306,1,306,7],[307,1,307,7],[308,1,308,7],[309,1,309,7],[310,1,310,7],[311,1,311,7],[300,1,300,7],[301,1,301,7],[302,1,302,7],[303,1,303,7],[304,1,304,7],[305,1,305,7],[318,1,318,7],[319,1,319,7],[320,1,320,7],[321,1,321,7],[322,1,322,7],[323,1,323,7],[312,1,312,7],[313,1,313,7],[314,1,314,7],[315,1,315,7],[316,1,316,7],[317,1,317,7],[330,1,330,7],[331,1,331,7],[332,1,332,7],[333,1,333,7],[334,1,334,7],[335,1,335,7],[324,1,324,7],[325,1,325,7],[326,1,326,7],[327,1,327,7],[328,1,328,7],[329,1,329,7],[342,1,342,7],[343,1,343,7],[344,1,344,7],[345,1,345,7],[346,1,346,7],[347,1,347,7],[336,1,336,7],[337,1,337,7],[338,1,338,7],[339,1,339,7],[340,1,340,7],[341,1,341,7],[354,1,354,7],[355,1,355,7],[356,1,356,7],[357,1,357,7],[358,1,358,7],[359,1,359,7],[348,1,348,7],[349,1,349,7],[350,1,350,7],[351,1,351,7],[352,1,352,7],[353,1,353,7],[366,1,366,7],[367,1,367,7],[368,1,368,7],[369,1,369,7],[370,1,370,7],[371,1,371,7],[360,1,360,7],[361,1,361,7],[362,1,362,7],[363,1,363,7],[364,1,364,7],[365,1,365,7],[378,1,378,7],[379,1,379,7],[380,1,380,7],[381,1,381,7],[382,1,382,7],[383,1,383,7],[372,1,372,7],[373,1,373,7],[374,1,374,7],[375,1,375,7],[376,1,376,7],[377,1,377,7],[390,1,390,7],[391,1,391,7],[392,1,392,7],[393,1,393,7],[394,1,394,7],[395,1,395,7],[384,1,384,7],[385,1,385,7],[386,1,386,7],[387,1,387,7],[388,1,388,7],[389,1,389,7],[402,1,402,7],[403,1,403,7],[404,1,404,7],[405,1,405,7],[406,1,406,7],[407,1,407,7],[396,1,396,7],[397,1,397,7],[398,1,398,7],[399,1,399,7],[400,1,400,7],[401,1,401,7],[414,1,414,7],[415,1,415,7],[416,1,416,7],[417,1,417,7],[418,1,418,7],[419,1,419,7],[408,1,408,7],[409,1,409,7],[410,1,410,7],[411,1,411,7],[412,1,412,7],[413,1,413,7],[426,1,426,7],[427,1,427,7],[428,1,428,7],[429,1,429,7],[430,1,430,7],[431,1,431,7],[420,1,420,7],[421,1,421,7],[422,1,422,7],[423,1,423,7],[424,1,424,7],[425,1,425,7],[438,1,438,7],[439,1,439,7],[440,1,440,7],[441,1,441,7],[442,1,442,7],[443,1,443,7],[432,1,432,7],[433,1,433,7],[434,1,434,7],[435,1,435,7],[436,1,436,7],[437,1,437,7],[450,1,450,7],[451,1,451,7],[452,1,452,7],[453,1,453,7],[454,1,454,7],[455,1,455,7],[444,1,444,7],[445,1,445,7],[446,1,446,7],[447,1,447,7],[448,1,448,7],[449,1,449,7],[462,1,462,7],[463,1,463,7],[464,1,464,7],[465,1,465,7],[466,1,466,7],[467,1,467,7],[456,1,456,7],[457,1,457,7],[458,1,458,7],[459,1,459,7],[460,1,460,7],[461,1,461,7],[474,1,474,7],[475,1,475,7],[476,1,476,7],[477,1,477,7],[478,1,478,7],[479,1,479,7],[468,1,468,7],[469,1,469,7],[470,1,470,7],[471,1,471,7],[472,1,472,7],[473,1,473,7],[486,1,486,7],[487,1,487,7],[488,1,488,7],[489,1,489,7],[490,1,490,7],[491,1,491,7],[480,1,480,7],[481,1,481,7],[482,1,482,7],[483,1,483,7],[484,1,484,7],[485,1,485,7],[498,1,498,7],[499,1,499,7],[500,1,500,7],[501,1,501,7],[502,1,502,7],[503,1,503,7],[492,1,492,7],[493,1,493,7],[494,1,494,7],[495,1,495,7],[496,1,496,7],[497,1,497,7],[510,1,510,7],[511,1,511,7],[512,1,512,7],[513,1,513,7],[514,1,514,7],[515,1,515,7],[504,1,504,7],[505,1,505,7],[506,1,506,7],[507,1,507,7],[508,1,508,7],[509,1,509,7],[522,1,522,7],[523,1,523,7],[524,1,524,7],[525,1,525,7],[526,1,526,7],[527,1,527,7],[516,1,516,7],[517,1,517,7],[518,1,518,7],[519,1,519,7],[520,1,520,7],[521,1,521,7],[534,1,534,7],[535,1,535,7],[536,1,536,7],[537,1,537,7],[538,1,538,7],[539,1,539,7],[528,1,528,7],[529,1,529,7],[530,1,530,7],[531,1,531,7],[532,1,532,7],[533,1,533,7],[546,1,546,7],[547,1,547,7],[548,1,548,7],[549,1,549,7],[550,1,550,7],[551,1,551,7],[540,1,540,7],[541,1,541,7],[542,1,542,7],[543,1,543,7],[544,1,544,7],[545,1,545,7],[558,1,558,7],[559,1,559,7],[560,1,560,7],[561,1,561,7],[562,1,562,7],[563,1,563,7],[552,1,552,7],[553,1,553,7],[554,1,554,7],[555,1,555,7],[556,1,556,7],[557,1,557,7],[570,1,570,7],[571,1,571,7],[572,1,572,7],[573,1,573,7],[574,1,574,7],[575,1,575,7],[564,1,564,7],[565,1,565,7],[566,1,566,7],[567,1,567,7],[568,1,568,7],[569,1,569,7],[582,1,582,7],[583,1,583,7],[584,1,584,7],[585,1,585,7],[586,1,586,7],[587,1,587,7],[576,1,576,7],[577,1,577,7],[578,1,578,7],[579,1,579,7],[580,1,580,7],[581,1,581,7],[594,1,594,7],[595,1,595,7],[596,1,596,7],[597,1,597,7],[598,1,598,7],[599,1,599,7],[588,1,588,7],[589,1,589,7],[590,1,590,7],[591,1,591,7],[592,1,592,7],[593,1,593,7],[606,1,606,7],[607,1,607,7],[608,1,608,7],[609,1,609,7],[610,1,610,7],[611,1,611,7],[600,1,600,7],[601,1,601,7],[602,1,602,7],[603,1,603,7],[604,1,604,7],[605,1,605,7],[618,1,618,7],[619,1,619,7],[620,1,620,7],[621,1,621,7],[622,1,622,7],[623,1,623,7],[612,1,612,7],[613,1,613,7],[614,1,614,7],[615,1,615,7],[616,1,616,7],[617,1,617,7],[630,1,630,7],[631,1,631,7],[632,1,632,7],[633,1,633,7],[634,1,634,7],[635,1,635,7],[624,1,624,7],[625,1,625,7],[626,1,626,7],[627,1,627,7],[628,1,628,7],[629,1,629,7],[642,1,642,7],[643,1,643,7],[644,1,644,7],[645,1,645,7],[646,1,646,7],[647,1,647,7],[636,1,636,7],[637,1,637,7],[638,1,638,7],[639,1,639,7],[640,1,640,7],[641,1,641,7],[660,1,660,7],[661,1,661,7],[654,1,654,7],[655,1,655,7],[656,1,656,7],[657,1,657,7],[658,1,658,7],[659,1,659,7],[648,1,648,7],[649,1,649,7],[650,1,650,7],[651,1,651,7],[652,1,652,7],[653,1,653,7]]}
[]
[]
[]
[]
[]
[null,"PRESUPUESTO DE EGRESOS 2022"]
[null,"FICHA TÉCNICA"]
[null,"Datos de Identificación del Programa Presupuestario (Pp)"]
[]
[null,"Unidad responsable del Pp ",null,"ALCALDÍA TLALPAN"]
[null,"Clasificación del Pp ",null,"S206"]
[null,"Denominación del Pp ",null,{"$f":"VLOOKUP(D11,Catálogo!AU1:AV333,2,0)","v":"FORMACIÓN MUSICAL, TLALPAN"}]
[null,"Nombre de la Matriz ",null,{"$f":"D11&\" \"&D12","v":"S206 FORMACIÓN MUSICAL, TLALPAN"}]
[]
[null,"Alineación con el PGD y sus Programas derivados "]
[]
[null,"Plan General de Desarrollo de la Ciudad de México"]
[]
[null,"Eje de política pública al que contribuye el Pp ",null,null,"Eje 4. Ciudad de México, capital cultural de America Latina"]
[]
[null,"Programas del Plan General de Desarrollo de la Ciudad de México"]
[]
[null,"Tipo de Programa ","Institucional","Programa ","Formación Musical, Tlalpan "]
[null,"Objetivo del Programa ",null,"Brindar educación musical a residentes de la Alcaldía Tlalpan."]
[]
[null,"Alineación con Objetivos del Desarrollo Sostenible"]
[]
[null,"Objetivo al que contribuye el Pp ",null,null,"10. Reducción de las desigualdades"]
[]
[null,"Matriz de Indicadores para Resultados "]
[]
[null,"Resumen Narrativo "]
[]
[null,"Resumen narrativo","Integrar los expedientes documentales de las personas facilitadoras de talleres musicales para personas mayores de 30 años.",null,null,null,"Nivel en la Matriz de Marco Lógico","Actividad"]
[]
[]
[]
[]
[null,"Datos de identificación del indicador "]
[]
[null,"Nombre del indicador ",null,"Porcentaje de expedientes documentales integrados por las  personas facilitadoras de los talleres de formación musical para mayores de 30 años y más de edad."]
[null,"Dimensión del indicador ",null,"Eficacia","Tipo de indicador para resultados ",null,null,"Gestión"]
[null,"Definición del indicador ",null,null,"Tipo de valor de la meta"]
[null,"Mide porcentaje de expedientes documentales integrados por las  personas facilitadoras de los talleres de formación musical para personas mayores de 30 años, respecto al número de expedientes programados.",null,null,"Relativa"]
[null,"Método de cálculo ",null,null,"Unidad de medida "]
[null,"(Número de expedientes documentales integrados / Número de expedientes programados a integrar)*100",null,null,"Porcentaje"]
[null,"Desagregación geográfica ",null,null,"Frecuencia de medición "]
[null,"Alcaldía",null,null,"Trimestral"]
[]
[null,"Serie de Información Disponible "]
[]
[null,"Información disponible "]
[null,"Informes del programa"]
[]
[null,"Criterios CREMAA"]
[]
[null,"Característica ","Calificación ","Justificación "]
[null,"Claridad","Cumple",{"$f":"IF(C58=\"Cumple\",Catálogo!AG2,Catálogo!AH2)","v":"El indicador es preciso y de fácil comprensión por usuarios no especializados, pues su formulación es sencilla."}]
[null,"Relevancia","Cumple",{"$f":"IF(C59=\"Cumple\",Catálogo!AG3,Catálogo!AH3)","v":"El indicador aporta información respecto a los efectos que tienen las acciones del Programa sobre los objetivos que este se ha planteado en el ejercicio presupuestal reportado, a su vez permite observar tendencias acerca de los impactos del Programa sobre la problemática que éste atiende en el mediano y largo plazo."}]
[null,"Economía","Cumple",{"$f":"IF(C60=\"Cumple\",Catálogo!AG4,Catálogo!AH4)","v":"El indicador no requiere recursos adicionales para su medición, pues la información se obtiene del desarrollo cotidiano del programa."}]
[null,"Monitoreable","Cumple",{"$f":"IF(C61=\"Cumple\",Catálogo!AG5,Catálogo!AH5)","v":"Se calcula a partir de las bases de datos generadas durante la operación del programa, por lo que se tienen datos a lo largo del ciclo presupuestal que permiten dar seguimiento al comportamiento del indicador."}]
[null,"Adecuado","Cumple",{"$f":"IF(C62=\"Cumple\",Catálogo!AG6,Catálogo!AH6)","v":"Se considera que el indicador es preciso para estimar el logro del objetivo."}]
[null,"Aporte marginal","No cumple",{"$f":"IF(C63=\"Cumple\",Catálogo!AG7,Catálogo!AH7)","v":"El indicador no proporciona información adicional a los demás indicadores."}]
[]
[null,"Contacto indicador "]
[]
[null,"Nombre ","Ma. Gabriela ","Apellido paterno ","Rodriguez ",null,"Apellido materno ","Valencia"]
[null,"Área ",null,"DIRECCIÓN GENERAL DE DERECHOS CULTURALES Y EDUCATIVOS"]
[null,"Puesto ",null,"COORDINADORA DE CULTURA"]
[null,"Correo electrónico ",null,"mrodriguezv@tlalpan.cdmx.gob.mx"]
[null,"Lada ",55,"Teléfono",54859048,null,"Extensión "]
[]
[null,"Viabilidad de la meta "]
[]
[null,"Meta acumulable ","Sí","Comportamiento del indicador ","Ascendente",null,"Factibilidad de la meta ","Alta"]
[null,"Justificación de la factibilidad "]
[null,"Es altamente factible alcanzar la meta, dado que se calculó con base en los recursos financieron, humanos y técnicos para alcanzarla."]
[]
[null,"Línea base "]
[]
[null,"Año ","Valor ",null,null,null,"Periodo al que corresponde el valor"]
[null,null,"Indicador\n(relativo)","Numerador\n(absoluto)","Denominador\n(universo de cobertura)"]
[null,2021,{"$f":"D83/E83","v":1},34,34,null,"Trimestral"]
[]
[null,"Justificación línea base"]
[null,"Sí se alcanzó la meta de 100% dadas las condiciones del programa."]
[]
[null,"Parámetros de semaforización "]
[]
[null,"Tipo de valor","Relativo"]
[null,"Umbral verde ","85% a 100%","Umbral amarillo","70% al 85%","Umbral rojo ","menos 70%"]
[]
[null,"Metas del ciclo presupuestario"]
[null,"Periodo (según la frecuencia de medición)","Valor",null,null,null,"Periodo al que corresponde el valor"]
[null,null,"Indicador (relativo)","Numerador (absoluto)","Denominador (universo de cobertura)"]
[null,"Trimestre 1",{"$f":"D96/E96","v":1},34,34,null,"Enero - marzo"]
[null,"Trimestre 2",{"$f":"D97/E97","v":1},34,34,null,"Abril - junio"]
[null,"Trimestre 3",1,34,34,null,"Julio - septiembre"]
[null," Trimestre 4",1,34,34,null,"Octubre - diciembre"]
[]
[null,"Características de las variables \n(Se debe llenar este conjunto tanta veces como número de variables existan)"]
[]
[null,"Nombre ",null,null,null,"Descripción de la variable "]
[null,"Número de expedientes documentales integrados",null,null,null,"Es el número de expedientes documentales integrados, respecto al número de expediente programados"]
[null,"Medios de verificación",null,null,null,"Unidad de medida"]
[null,"Informes trimestrales del programa",null,null,null,"Porcentaje "]
[null,"Desagregación geográfica ",null,null,null,"Frecuencia"]
[null,"Alcaldía",null,null,null,"Trimestral"]
[null,"Método de recopilación de datos ",null,null,null,"Fecha de disponibilidad de la información "]
[null,"Explotación de registros administrativos",null,null,null,2022]
[]
[null,"Nombre ",null,null,null,"Descripción de la variable "]
[null," Número de expedientes programados a integrar",null,null,null,"Es el número de expedientes programados a integrar, respecto al número de expedientes integrados"]
[null,"Medios de verificación ",null,null,null,"Unidad de medida"]
[null,"Informes trimestrales del programa",null,null,null,"Porcentaje"]
[null,"Desagregación geográfica ",null,null,null,"Frecuencia"]
[null,"Alcaldía",null,null,null,"Trimestral"]
[null,"Método de recopilación de datos ",null,null,null,"Fecha de disponibilidad de la información  "]
[null,"Explotación de registros administrativos",null,null,null,2022]
[]
[null,"Serie estadística "]
[]
[null,"Ciclo serie",null,"Valor serie",null,"Periodo de la serie"]
[null,2020,null,1,null,"Enero - diciembre"]
[null,2021,null,1,null,"Enero - diciembre"]
[]
[]
[]
[]
[]
[]
[]
[]
[]
[]
[]
[]
[null,"Instructivo de la Ficha Técnica"]
[null,"Datos de identificación del programa presupuestario (Pp)"]
[null,"Unidad responsable del Pp: Dependencia encargada del Programa"]
[null,"Clasificación del Pp: Categoría programática, que de acuerdo al catalogó emitido por la  Comisión  Nacional de Armonización Contable (CONAC), clasifica los programas presupuestarios  de acuerdo a su naturaleza generalmente con la inicial de una letra y seguida por números"]
[null,"Denominación del Pp: Nombre del Programa Presupuestario "]
[null,"Nombre de la Matriz: Conjunción de la clasificación y denominación del Programa"]
[]
[null,"Alineación con el PGD  y sus Programas derivados"]
[null,"Eje de política pública al que contribuye el Pp:   Se refiere a alguno de los 6 ejes del Plan General de Gobierno de la Ciudad de México"]
[null,"Tipo de Programa:  Los referidos en el Artículo 22 de la Ley de Planeación (Sectorial, Regional, Especial, Institucional)"]
[null,"Programa: Se especificará el nombre del programa según la clasificación arriba mencionada."]
[null,"Objetivo del Programa:  Se refiere a los objetivos del programa señalado en el inciso anterior."]
[]
[null,"Alineación con Objetivos del Desarrollo Sostenible"]
[null,"Objetivo al que contribuye el Pp: Se refiere al objetivo de desarrollo sostenible al que abona el programa"]
[]
[null,"Matriz de Indicadores para Resultados"]
[null,"Resumen Narrativo: Se registran los objetivos por cada nivel de la Matriz"]
[null,"Nivel en la Matriz de Marco Lógico: Se refiere al nviel del indicador, puede ser: Fin, Propósito, Componentes o Actividad, según sea el caso."]
[]
[null,"Datos de identificación del indicador"]
[null,"Nombre del indicador: denominación precisa y única con la que se distingue al indicador. "]
[null,"Dimensión del indicador: se refieren al aspecto particular del objetivo a ser medido mediante el indicador, puede ser:"]
[null,"• Eficacia: mide el grado de cumplimiento de los objetivos."]
[null,"• Eficiencia: mide la relación entre los productos y servicios generados con respecto a los insumos o recursos utilizados."]
[null,"• Economía: mide la capacidad del programa o de la institución para generar y movilizar adecuadamente los recursos financieros."]
[null,"• Calidad: mide los atributos, propiedades o características que deben tener los bienes y servicios para satisfacer los objetivos del programa."]
[null,"Tipo de indicador para Resultados: Se refiere a la naturaleza del indicador que corresponde a cada nivel de la Matriz de Indicadores para Resultados, puede ser:"]
[null,"• Estratégico.- Que está orientado a medir los efectos del Pp."]
[null,"• De gestión.- Qué está orientado a medir la forma en que trabaja el Pp."]
[null,"Considerar que según el nivel de la MIR los indicadores puedes ser:"]
[null,"• Para FIN y PROPÓSITO =  Estratégico."]
[null,"• Para COMPONENTE = Estratégico o Gestión."]
[null,"• Para ACTIVIDADES = Gestión."]
[null,"Definición del indicador: expresa al indicador en términos de su significado conceptual. Puede desde el punto de vista operativo, expresar al indicador en términos de las variables que en él intervienen."]
[null,"Tipo de valor de la Meta.- Indica si la meta es absoluta o relativa. Generalmente, la mayoría de los indicadores son expresados en números relativos, ya que por definición provienen de relacionar dos o más datos significativos, sin embargo, excepcionalmente se pueden utilizar indicadores referidos en números absolutos, tal es el caso del PIB. "]
[null,"Método de cálculo: se refiere a la expresión algebraica del indicador, a la explicación sencilla de la forma en que se relacionan las variables y a la metodología para calcular el indicador."]
[null,"Unidad de medida: magnitud de referencia que permite cuantificar y comparar elementos del indicador."]
[null,"Desagregación geográfica: indica los niveles territoriales para los que está disponible el indicador: ciudad, alcaldía"]
[null,"Frecuencia de medición: es el periodo de tiempo en el cual se calcula el indicador (mensual, bimestral, trimestral, cuatrimestral, semestral, anual o superior). La frecuencia de medición determinará la cantidad de periodos en los que se calendarizarán las metas para el indicador, por lo cual deberá tener precaución al seleccionar la frecuencia de medición. "]
[]
[null,"Serie de Información Disponible"]
[null,"Información disponible: Describe textualmente al conjunto de mediciones del indicador disponibles, se deben indicar cambios en la serie por cuestiones metodológicas u otras."]
[]
[null,"Criterios CREMAA"]
[null,"Claridad.- Es conveniente que los indicadores tengan una expresión sencilla con el propósito de que sean fácilmente comprensibles por los usuarios no especializados"]
[null,"Relevancia.- Un indicador debe expresar elementos de importancia o significativos en la medición de los avances y logros de un objetivo"]
[null,"Economía.- La información necesaria para generar el indicador deberá estar disponible a un costo razonable"]
[null,"Monitoreable.- El indicador debe poder sujetarse a una comprobación independiente"]
[null," Adecuado.- El indicador deberá aportar una base suficiente para evaluar el desempeño"]
[null,"Aporte marginal.- En el caso de que exista más de un indicador para medir el desempeño en determinado nivel de objetivo, el indicador debe proveer información adicional en comparación con los otros indicadores propuestos."]
[]
[null,"Contacto indicador  "]
[null,"Nombre:  Se deberá anotar el nombre del responsable directo de proporcionar información técnica sobre el indicador. "]
[null,"Apellido Paterno"]
[null,"Apellido Materno"]
[null,"Área"]
[null,"Puesto"]
[null,"Correo Electrónico"]
[null,"Teléfono (Lada, teléfono y extensión)"]
[]
[null,"Viabilidad de la meta"]
[null,"Meta acumulable: Se debe indicar si las características del indicador permiten que los valores de los diferentes periodos se sumen o no. "]
[null,"Comportamiento del indicador. Establece si el indicador a lo largo del tiempo tiene un comportamiento ascendente, descendente, regular o nominal. "]
[null,"• Ascendente.- si el resultado a lograr significa incrementar el valor del indicador."]
[null,"• Descendente.- si el resultado a lograr significa disminuir el valor del indicador."]
[null,"• Regular.- si el resultado a lograr significa mantener el valor del indicador dentro de determinado rango, y"]
[null,"• Nominal.- se tomará como un resultado independiente del historial del indicador."]
[null,"Factibilidad de la meta.- Establece, desde la perspectiva de la UR responsable del Pp la posibilidad real de alcanzar la meta"]
[null,"Alta"]
[null,"Media"]
[null,"Justificación de la Factibilidad.- Establece los argumentos que sirvieron de base para calificar la factibilidad de la meta."]
[]
[null,"Línea Base. \nEl valor inicial del indicador que se toma como referencia para comparar el avance del objetivo se llama Línea Base.\n"]
[null,"Año de la Línea Base.- Se deberá anotar el año que se toma como referencia para comparar los avances del Pp. Regularmente se recomienda tomar el año  en que terminó la administración anterior. Cuando un indicador vuelve a cero al término de cada ciclo, la línea base es 0.0 porque ese es el valor con el que inicia el nuevo ciclo."]
[null,"Indicador.- Se refiere al valor que tuvo el indicador en el momento de la medición inicial de referencia.  Cuando no se cuenta con línea base, se deberá anotar 0.0 y escribir la justificación en el campo correspondiente. "]
[null,"Numerador.- Se refiere al valor que tuvo el numerador del indicador en el momento de la medición inicial de referencia."]
[null,"Denominador.- Se refiere al valor que tuvo el denominador del indicador en el momento de la medición inicial de referencia."]
[null,"Periodo línea base.- Puede ser que en algunos casos, la línea base esté referida a un momento particular del año (inicio de cursos, trimestre II,  semana santa, etc.), en estas ocasiones deberá especificarse el periodo."]
[null,"Justificación línea base.- En este campo se deberá establecer cuando un indicador, por su reciente elaboración, no cuenta con una línea base. En este caso se deberá anotar aquí el año y periodo en que se tiene previsto realizar la primera medición, la cual será considerada como línea base."]
[]
[null,"Parámetros de semaforización\nSe refiere a los parámetros que la UR que opera el Pp establece como rango para calificar al avance como en semáforo verde, amarillo o rojo. "]
[null,"Tipo de valor.- Los umbrales de semaforización pueden definirse en términos absolutos o porcentuales"]
[null,"Umbral verde: Valor límite aceptable"]
[null,"Umbral amarillo: Valor en riesgo"]
[null,"Umbral rojo: Valor crítico"]
[]
[null,"Metas del ciclo presupuestario"]
[null,"Periodo: Asociado a la frecuencia de medición."]
[null,"Indicador.- Se refiere al valor del indicador en el periodo correspondiente."]
[null,"Numerador.- Se refiere al dividendo en el periodo correspondiente."]
[null,"Denominador.- Se refiere al valor que se estima alcanzará el divisor en el periodo correspondiente."]
[null,"Periodo al que corresponde el valor.- Se refiere al periodo de medición del indicador"]
[]
[null,"Características de las variables\nDescripción de las variables que componen el indicador, se agrega una sección por cada variable."]
[null,"Nombre: denominación de la variable."]
[null,"Descripción de la variable: expresa a la variable en términos de su significado conceptual "]
[null,"Medios de verificación: identifica las fuentes de información,  sistema o documentos en donde se origina la información, a efecto medir los indicadores y verificar que los objetivos se lograron. Si la fuente es un documento, debe incluir toda la información bibliográfica. Se debe anotar la información mínima necesaria para que el usuario pueda recuperar la información directamente."]
[null,"Unidad de medida: magnitud de referencia que permite cuantificar y comparar los elementos de las variables. "]
[null,"Desagregación geográfica: indica los niveles territoriales para los que está disponible la variable:  ciudad, alcaldía"]
[null,"Frecuencia: es el periodo de tiempo en el cual se calcula la variable (mensual, bimestral, trimestral, cuatrimestral, semestral, anual o superior). "]
[null,"Método de recopilación de datos: indica el método estadístico de recolección de datos, el cual puede ser: censo, encuesta o explotación de registros administrativos."]
[null,"Fecha de disponibilidad de la información: se refiere al momento en que la información puede ser consultada por los usuarios."]
[]
[null,"Serie estadística\nSon los valores del indicador para años previos, incluso más allá de la línea base."]
[null,"Ciclo serie: año al que está referido el dato de la serie."]
[null,"Valor serie: valor del indicador."]
[null,"Periodo de la serie: Cuando en un año se realizan diversas mediciones del indicador, se debe especificar a cuál de ellas corresponde el valor. (Ejemplo: matrícula escolar, se puede medir a inicio de cursos o a fin de cursos)"]
[]
[null,null,null,null,null,null,"Última actualización 08/10/2021"]
[null,null,null,null,null,null,null,{"$f":"MATCH(H34,Hoja2!F8:I8,0)","v":4}]

{"sheet":"C2 A2","index":7,"n_rows":248,"n_cols":8,"rows_kept":248,"cut":false,"hidden":false,"merged":[[5,1,5,7],[6,1,6,7],[7,1,7,7],[9,1,9,2],[9,3,9,7],[10,1,10,2],[10,3,10,7],[18,1,18,3],[18,4,18,7],[20,1,20,7],[22,4,22,7],[23,1,23,2],[23,3,23,7],[11,1,11,2],[11,3,11,7],[12,1,12,2],[12,3,12,7],[14,1,14,7],[16,1,16,7],[38,1,38,7],[40,1,40,2],[40,3,40,7],[41,1,41,2],[41,4,41,6],[42,1,42,3],[42,4,42,7],[25,1,25,7],[27,1,27,3],[27,4,27,7],[29,1,29,7],[31,1,31,7],[33,1,36,1],[33,2,36,5],[33,6,36,6],[33,7,36,7],[46,1,46,3],[46,4,46,7],[47,1,47,3],[47,4,47,7],[49,1,49,7],[51,1,51,7],[43,1,43,3],[43,4,43,7],[44,1,44,3],[44,4,44,7],[45,1,45,3],[45,4,45,7],[59,3,59,7],[60,3,60,7],[61,3,61,7],[62,3,62,7],[63,1,63,7],[64,1,64,7],[52,1,52,7],[54,1,54,7],[55,1,55,7],[56,3,56,7],[57,3,57,7],[58,3,58,7],[69,1,69,2],[69,3,69,7],[70,4,70,5],[71,1,71,7],[72,1,72,7],[73,1,73,7],[65,1,65,7],[66,4,66,5],[67,1,67,2],[67,3,67,7],[68,1,68,2],[68,3,68,7],[82,4,82,5],[82,6,82,7],[84,1,84,7],[85,1,85,7],[87,1,87,7],[89,2,89,7],[74,4,74,5],[75,1,75,7],[76,1,76,7],[78,1,78,7],[80,1,81,1],[80,2,80,5],[80,6,81,7],[81,4,81,5],[94,9,94,13],[95,4,95,5],[95,6,95,7],[96,4,96,5],[96,6,96,7],[97,4,97,5],[97,6,97,7],[90,6,90,7],[92,1,92,7],[93,1,94,1],[93,2,93,5],[93,6,94,7],[94,4,94,5],[104,1,104,3],[104,5,104,7],[105,1,105,3],[105,5,105,7],[106,1,106,3],[106,5,106,7],[98,4,98,5],[98,6,98,7],[100,1,100,7],[102,1,102,3],[102,5,102,7],[103,1,103,3],[103,5,103,7],[110,1,110,3],[110,5,110,7],[111,1,111,3],[111,5,111,7],[112,1,112,3],[112,5,112,7],[107,1,107,3],[107,5,107,7],[108,1,108,3],[108,5,108,7],[109,1,109,3],[109,5,109,7],[116,1,116,3],[116,5,116,7],[117,1,117,3],[117,5,117,7],[118,1,118,3],[118,5,118,7],[113,1,113,3],[113,5,113,7],[114,1,114,3],[114,5,114,7],[115,1,115,3],[115,5,115,7],[124,1,124,2],[124,3,124,4],[124,5,124,7],[125,1,125,2],[125,3,125,4],[125,5,125,7],[120,1,120,7],[122,1,122,2],[122,3,122,4],[122,5,122,7],[123,1,123,2],[123,3,123,4],[123,5,123,7],[128,1,128,2],[128,3,128,4],[128,5,128,7],[137,1,137,7],[138,1,138,7],[139,1,139,7],[126,1,126,2],[126,3,126,4],[126,5,126,7],[127,1,127,2],[127,3,127,4],[127,5,127,7],[147,1,147,7],[148,1,148,7],[150,1,150,7],[151,1,151,7],[153,1,153,7],[154,1,154,7],[140,1,140,7],[141,1,141,7],[142,1,142,7],[144,1,144,7],[145,1,145,7],[146,1,146,7],[162,1,162,7],[163,1,163,7],[164,1,164,7],[165,1,165,7],[166,1,166,7],[167,1,167,7],[155,1,155,7],[157,1,157,7],[158,1,158,7],[159,1,159,7],[160,1,160,7],[161,1,161,7],[174,1,174,7],[175,1,175,7],[176,1,176,7],[178,1,178,7],[179,1,179,7],[181,1,181,7],[168,1,168,7],[169,1,169,7],[170,1,170,7],[171,1,171,7],[172,1,172,7],[173,1,173,7],[189,1,189,7],[190,1,190,7],[191,1,191,7],[192,1,192,7],[193,1,193,7],[194,1,194,7],[182,1,182,7],[183,1,183,7],[184,1,184,7],[185,1,185,7],[186,1,186,7],[187,1,187,7],[202,1,202,7],[203,1,203,7],[204,1,204,7],[205,1,205,7],[208,1,208,7],[210,1,210,7],[195,1,195,7],[196,1,196,7],[198,1,198,7],[199,1,199,7],[200,1,200,7],[201,1,201,7],[218,1,218,7],[219,1,219,7],[220,1,220,7],[221,1,221,7],[222,1,222,7],[224,1,224,7],[211,1,211,7],[212,1,212,7],[213,1,213,7],[214,1,214,7],[215,1,215,7],[216,1,216,7],[232,1,232,7],[233,1,233,7],[234,1,234,7],[235,1,235,7],[236,1,236,7],[237,1,237,7],[225,1,225,7],[226,1,226,7],[227,1,227,7],[228,1,228,7],[229,1,229,7],[231,1,231,7],[245,1,245,7],[246,6,246,7],[248,1,248,7],[249,1,249,7],[250,1,250,7],[251,1,251,7],[238,1,238,7],[239,1,239,7],[241,1,241,7],[242,1,242,7],[243,1,243,7],[244,1,244,7],[258,1,258,7],[259,1,259,7],[260,1,260,7],[261,1,261,7],[262,1,262,7],[263,1,263,7],[252,1,252,7],[253,1,253,7],[254,1,254,7],[255,1,255,7],[256,1,256,7],[257,1,257,7],[270,1,270,7],[271,1,271,7],[272,1,272,7],[273,1,273,7],[274,1,274,7],[275,1,275,7],[264,1,264,7],[265,1,265,7],[266,1,266,7],[267,1,267,7],[268,1,268,7],[269,1,269,7],[282,1,282,7],[283,1,283,7],[284,1,284,7],[285,1,285,7],[286,1,286,7],[287,1,287,7],[276,1,276,7],[277,1,277,7],[278,1,278,7],[279,1,279,7],[280,1,280,7],[281,1,281,7],[294,1,294,7],[295,1,295,7],[296,1,296,7],[297,1,297,7],[298,1,298,7],[299,1,299,7],[288,1,288,7],[289,1,289,7],[290,1,290,7],[291,1,291,7],[292,1,292,7],[293,1,293,7],[306,1,306,7],[307,1,307,7],[308,1,308,7],[309,1,309,7],[310,1,310,7],[311,1,311,7],[300,1,300,7],[301,1,301,7],[302,1,302,7],[303,1,303,7],[304,1,304,7],[305,1,305,7],[318,1,318,7],[319,1,319,7],[320,1,320,7],[321,1,321,7],[322,1,322,7],[323,1,323,7],[312,1,312,7],[313,1,313,7],[314,1,314,7],[315,1,315,7],[316,1,316,7],[317,1,317,7],[330,1,330,7],[331,1,331,7],[332,1,332,7],[333,1,333,7],[334,1,334,7],[335,1,335,7],[324,1,324,7],[325,1,325,7],[326,1,326,7],[327,1,327,7],[328,1,328,7],[329,1,329,7],[342,1,342,7],[343,1,343,7],[344,1,344,7],[345,1,345,7],[346,1,346,7],[347,1,347,7],[336,1,336,7],[337,1,337,7],[338,1,338,7],[339,1,339,7],[340,1,340,7],[341,1,341,7],[354,1,354,7],[355,1,355,7],[356,1,356,7],[357,1,357,7],[358,1,358,7],[359,1,359,7],[348,1,348,7],[349,1,349,7],[350,1,350,7],[351,1,351,7],[352,1,352,7],[353,1,353,7],[366,1,366,7],[367,1,367,7],[368,1,368,7],[369,1,369,7],[370,1,370,7],[371,1,371,7],[360,1,360,7],[361,1,361,7],[362,1,362,7],[363,1,363,7],[364,1,364,7],[365,1,365,7],[378,1,378,7],[379,1,379,7],[380,1,380,7],[381,1,381,7],[382,1,382,7],[383,1,383,7],[372,1,372,7],[373,1,373,7],[374,1,374,7],[375,1,375,7],[376,1,376,7],[377,1,377,7],[390,1,390,7],[391,1,391,7],[392,1,392,7],[393,1,393,7],[394,1,394,7],[395,1,395,7],[384,1,384,7],[385,1,385,7],[386,1,386,7],[387,1,387,7],[388,1,388,7],[389,1,389,7],[402,1,402,7],[403,1,403,7],[404,1,404,7],[405,1,405,7],[406,1,406,7],[407,1,407,7],[396,1,396,7],[397,1,397,7],[398,1,398,7],[399,1,399,7],[400,1,400,7],[401,1,401,7],[414,1,414,7],[415,1,415,7],[416,1,416,7],[417,1,417,7],[418,1,418,7],[419,1,419,7],[408,1,408,7],[409,1,409,7],[410,1,410,7],[411,1,411,7],[412,1,412,7],[413,1,413,7],[426,1,426,7],[427,1,427,7],[428,1,428,7],[429,1,429,7],[430,1,430,7],[431,1,431,7],[420,1,420,7],[421,1,421,7],[422,1,422,7],[423,1,423,7],[424,1,424,7],[425,1,425,7],[438,1,438,7],[439,1,439,7],[440,1,440,7],[441,1,441,7],[442,1,442,7],[443,1,443,7],[432,1,432,7],[433,1,433,7],[434,1,434,7],[435,1,435,7],[436,1,436,7],[437,1,437,7],[450,1,450,7],[451,1,451,7],[452,1,452,7],[453,1,453,7],[454,1,454,7],[455,1,455,7],[444,1,444,7],[445,1,445,7],[446,1,446,7],[447,1,447,7],[448,1,448,7],[449,1,449,7],[462,1,462,7],[463,1,463,7],[464,1,464,7],[465,1,465,7],[466,1,466,7],[467,1,467,7],[456,1,456,7],[457,1,457,7],[458,1,458,7],[459,1,459,7],[460,1,460,7],[461,1,461,7],[474,1,474,7],[475,1,475,7],[476,1,476,7],[477,1,477,7],[478,1,478,7],[479,1,479,7],[468,1,468,7],[469,1,469,7],[470,1,470,7],[471,1,471,7],[472,1,472,7],[473,1,473,7],[486,1,486,7],[487,1,487,7],[488,1,488,7],[489,1,489,7],[490,1,490,7],[491,1,491,7],[480,1,480,7],[481,1,481,7],[482,1,482,7],[483,1,483,7],[484,1,484,7],[485,1,485,7],[498,1,498,7],[499,1,499,7],[500,1,500,7],[501,1,501,7],[502,1,502,7],[503,1,503,7],[492,1,492,7],[493,1,493,7],[494,1,494,7],[495,1,495,7],[496,1,496,7],[497,1,497,7],[510,1,510,7],[511,1,511,7],[512,1,512,7],[513,1,513,7],[514,1,514,7],[515,1,515,7],[504,1,504,7],[505,1,505,7],[506,1,506,7],[507,1,507,7],[508,1,508,7],[509,1,509,7],[522,1,522,7],[523,1,523,7],[524,1,524,7],[525,1,525,7],[526,1,526,7],[527,1,527,7],[516,1,516,7],[517,1,517,7],[518,1,518,7],[519,1,519,7],[520,1,520,7],[521,1,521,7],[534,1,534,7],[535,1,535,7],[536,1,536,7],[537,1,537,7],[538,1,538,7],[539,1,539,7],[528,1,528,7],[529,1,529,7],[530,1,530,7],[531,1,531,7],[532,1,532,7],[533,1,533,7],[546,1,546,7],[547,1,547,7],[548,1,548,7],[549,1,549,7],[550,1,550,7],[551,1,551,7],[540,1,540,7],[541,1,541,7],[542,1,542,7],[543,1,543,7],[544,1,544,7],[545,1,545,7],[558,1,558,7],[559,1,559,7],[560,1,560,7],[561,1,561,7],[562,1,562,7],[563,1,563,7],[552,1,552,7],[553,1,553,7],[554,1,554,7],[555,1,555,7],[556,1,556,7],[557,1,557,7],[570,1,570,7],[571,1,571,7],[572,1,572,7],[573,1,573,7],[574,1,574,7],[575,1,575,7],[564,1,564,7],[565,1,565,7],[566,1,566,7],[567,1,567,7],[568,1,568,7],[569,1,569,7],[582,1,582,7],[583,1,583,7],[584,1,584,7],[585,1,585,7],[586,1,586,7],[587,1,587,7],[576,1,576,7],[577,1,577,7],[578,1,578,7],[579,1,579,7],[580,1,580,7],[581,1,581,7],[594,1,594,7],[595,1,595,7],[596,1,596,7],[597,1,597,7],[598,1,598,7],[599,1,599,7],[588,1,588,7],[589,1,589,7],[590,1,590,7],[591,1,591,7],[592,1,592,7],[593,1,593,7],[606,1,606,7],[607,1,607,7],[608,1,608,7],[609,1,609,7],[610,1,610,7],[611,1,611,7],[600,1,600,7],[601,1,601,7],[602,1,602,7],[603,1,603,7],[604,1,604,7],[605,1,605,7],[618,1,618,7],[619,1,619,7],[620,1,620,7],[621,1,621,7],[622,1,622,7],[623,1,623,7],[612,1,612,7],[613,1,613,7],[614,1,614,7],[615,1,615,7],[616,1,616,7],[617,1,617,7],[630,1,630,7],[631,1,631,7],[632,1,632,7],[633,1,633,7],[634,1,634,7],[635,1,635,7],[624,1,624,7],[625,1,625,7],[626,1,626,7],[627,1,627,7],[628,1,628,7],[629,1,629,7],[642,1,642,7],[643,1,643,7],[644,1,644,7],[645,1,645,7],[646,1,646,7],[647,1,647,7],[636,1,636,7],[637,1,637,7],[638,1,638,7],[639,1,639,7],[640,1,640,7],[641,1,641,7],[660,1,660,7],[661,1,661,7],[654,1,654,7],[655,1,655,7],[656,1,656,7],[657,1,657,7],[658,1,658,7],[659,1,659,7],[648,1,648,7],[649,1,649,7],[650,1,650,7],[651,1,651,7],[652,1,652,7],[653,1,653,7]]}
[]
[]
[]
[]
[]
[null,"PRESUPUESTO DE EGRESOS 2022"]
[null,"FICHA TÉCNICA"]
[null,"Datos de Identificación del Programa Presupuestario (Pp)"]
[]
[null,"Unidad responsable del Pp ",null,"ALCALDÍA TLALPAN"]
[null,"Clasificación del Pp ",null,"S206"]
[null,"Denominación del Pp ",null,{"$f":"VLOOKUP(D11,Catálogo!AU1:AV333,2,0)","v":"FORMACIÓN MUSICAL, TLALPAN"}]
[null,"Nombre de la Matriz ",null,{"$f":"D11&\" \"&D12","v":"S206 FORMACIÓN MUSICAL, TLALPAN"}]
[]
[null,"Alineación con el PGD y sus Programas derivados "]
[]
[null,"Plan General de Desarrollo de la Ciudad de México"]
[]
[null,"Eje de política pública al que contribuye el Pp ",null,null,"Eje 4. Ciudad de México, capital cultural de America Latina"]
[]
[null,"Programas del Plan General de Desarrollo de la Ciudad de México"]
[]
[null,"Tipo de Programa ","Institucional","Programa ","Formación Musical, Tlalpan "]
[null,"Objetivo del Programa ",null,"Brindar educación musical a residentes de la Alcaldía Tlalpan."]
[]
[null,"Alineación con Objetivos del Desarrollo Sostenible"]
[]
[null,"Objetivo al que contribuye el Pp ",null,null,"10. Reducción de las desigualdades"]
[]
[null,"Matriz de Indicadores para Resultados "]
[]
[null,"Resumen Narrativo "]
[]
[null,"Resumen narrativo","Registrar la asistencia de personas mayores de 30 años inscritas a los talleres de formación musical.",null,null,null,"Nivel en la Matriz de Marco Lógico","Actividad"]
[]
[]
[]
[]
[null,"Datos de identificación del indicador "]
[]
[null,"Nombre del indicador ",null,"Porcentaje de personas mayores de 30 años  que asisten a los talleres de formación musical."]
[null,"Dimensión del indicador ",null,"Eficacia","Tipo de indicador para resultados ",null,null,"Gestión"]
[null,"Definición del indicador ",null,null,"Tipo de valor de la meta"]
[null,"Mide el porcentaje de personas mayores de 30 años que asisten a los talleres de formación musical, respecto a las que se inscribieron.",null,null,"Relativa"]
[null,"Método de cálculo ",null,null,"Unidad de medida "]
[null,"(Número de personas mayores de 30 años  que asisten a los talleres de formación musical / Número de personas mayores de 30 años inscritas en los talleres de formación musical)*100",null,null,"Porcentaje"]
[null,"Desagregación geográfica ",null,null,"Frecuencia de medición "]
[null,"Alcaldía",null,null,"Trimestral"]
[]
[null,"Serie de Información Disponible "]
[]
[null,"Información disponible "]
[null,"Informes del programa"]
[]
[null,"Criterios CREMAA"]
[]
[null,"Característica ","Calificación ","Justificación "]
[null,"Claridad","Cumple",{"$f":"IF(C58=\"Cumple\",Catálogo!AG2,Catálogo!AH2)","v":"El indicador es preciso y de fácil comprensión por usuarios no especializados, pues su formulación es sencilla."}]
[null,"Relevancia","Cumple",{"$f":"IF(C59=\"Cumple\",Catálogo!AG3,Catálogo!AH3)","v":"El indicador aporta información respecto a los efectos que tienen las acciones del Programa sobre los objetivos que este se ha planteado en el ejercicio presupuestal reportado, a su vez permite observar tendencias acerca de los impactos del Programa sobre la problemática que éste atiende en el mediano y largo plazo."}]
[null,"Economía","Cumple",{"$f":"IF(C60=\"Cumple\",Catálogo!AG4,Catálogo!AH4)","v":"El indicador no requiere recursos adicionales para su medición, pues la información se obtiene del desarrollo cotidiano del programa."}]
[null,"Monitoreable","Cumple",{"$f":"IF(C61=\"Cumple\",Catálogo!AG5,Catálogo!AH5)","v":"Se calcula a partir de las bases de datos generadas durante la operación del programa, por lo que se tienen datos a lo largo del ciclo presupuestal que permiten dar seguimiento al comportamiento del indicador."}]
[null,"Adecuado","Cumple",{"$f":"IF(C62=\"Cumple\",Catálogo!AG6,Catálogo!AH6)","v":"Se considera que el indicador es preciso para estimar el logro del objetivo."}]
[null,"Aporte marginal","No cumple",{"$f":"IF(C63=\"Cumple\",Catálogo!AG7,Catálogo!AH7)","v":"El indicador no proporciona información adicional a los demás indicadores."}]
[]
[null,"Contacto indicador "]
[]
[null,"Nombre ","Ma. Gabriela ","Apellido paterno ","Rodriguez ",null,"Apellido materno ","Valencia"]
[null,"Área ",null,"DIRECCIÓN GENERAL DE DERECHOS CULTURALES Y EDUCATIVOS"]
[null,"Puesto ",null,"COORDINADORA DE CULTURA"]
[null,"Correo electrónico ",null,"mrodriguezv@tlalpan.cdmx.gob.mx"]
[null,"Lada ",55,"Teléfono",54859048,null,"Extensión "]
[]
[null,"Viabilidad de la meta "]
[]
[null,"Meta acumulable ","Sí","Comportamiento del indicador ","Ascendente",null,"Factibilidad de la meta ","Alta"]
[null,"Justificación de la factibilidad "]
[null,"Es altamente factible alcanzar la meta, dado que se calculó con base en los recursos financieron, humanos y técnicos para alcanzarla."]
[]
[null,"Línea base "]
[]
[null,"Año ","Valor ",null,null,null,"Periodo al que corresponde el valor"]
[null,null,"Indicador\n(relativo)","Numerador\n(absoluto)","Denominador\n(universo de cobertura)"]
[null,2021,{"$f":"D83/E83","v":1},50,50,null,"Trimestral"]
[]
[null,"Justificación línea base"]
[null,"Sí se alcanzó la meta de 100% dadas las condiciones del programa."]
[]
[null,"Parámetros de semaforización "]
[]
[null,"Tipo de valor","Relativo"]
[null,"Umbral verde ","85% a 100%","Umbral amarillo","70% al 85%","Umbral rojo ","menos 70%"]
[]
[null,"Metas del ciclo presupuestario"]
[null,"Periodo (según la frecuencia de medición)","Valor",null,null,null,"Periodo al que corresponde el valor"]
[null,null,"Indicador (relativo)","Numerador (absoluto)","Denominador (universo de cobertura)"]
[null,"Trimestre 1",{"$f":"D96/E96","v":1},34,34,null,"Enero - marzo"]
[null,"Trimestre 2",{"$f":"D97/E97","v":1},34,34,null,"Abril - junio"]
[null,"Trimestre 3",1,34,34,null,"Julio - septiembre"]
[null," Trimestre 4",1,34,34,null,"Octubre - diciembre"]
[]
[null,"Características de las variables \n(Se debe llenar este conjunto tanta veces como número de variables existan)"]
[]
[null,"Nombre ",null,null,null,"Descripción de la variable "]
[null,"Número de personas mayores de 30 años que asisten a los talleres de formación musical ",null,null,null,"Es el número de personas mayores de 30 años que asisten a los talleres de formación musical, respecto al número de personas inscritas"]
[null,"Medios de verificación",null,null,null,"Unidad de medida"]
[null,"Informes trimestrales del programa",null,null,null,"Porcentaje "]
[null,"Desagregación geográfica ",null,null,null,"Frecuencia"]
[null,"Alcaldía",null,null,null,"Trimestral"]
[null,"Método de recopilación de datos ",null,null,null,"Fecha de disponibilidad de la información "]
[null,"Explotación de registros administrativos",null,null,null,2022]
[]
[null,"Nombre ",null,null,null,"Descripción de la variable "]
[null,"Número de personas mayores de 30 años inscritas en los talleres de formación musical",null,null,null,"Es el número de personas mayores de 30 años inscritas en los talleres de formación musical, respecto al número de personas que asisten a los talleres"]
[null,"Medios de verificación ",null,null,null,"Unidad de medida"]
[null,"Informes trimestrales del programa",null,null,null,"Porcentaje"]
[null,"Desagregación geográfica ",null,null,null,"Frecuencia"]
[null,"Alcaldía",null,null,null,"Trimestral"]
[null,"Método de recopilación de datos ",null,null,null,"Fecha de disponibilidad de la información  "]
[null,"Explotación de registros administrativos",null,null,null,2022]
[]
[null,"Serie estadística "]
[]
[null,"Ciclo serie",null,"Valor serie",null,"Periodo de la serie"]
[null,2020,null,1,null,"Enero - diciembre"]
[null,2021,null,1,null,"Enero - diciembre"]
[]
[]
[]
[]
[]
[]
[]
[]
[]
[]
[]
[]
[null,"Instructivo de la Ficha Técnica"]
[null,"Datos de identificación del programa presupuestario (Pp)"]
[null,"Unidad responsable del Pp: Dependencia encargada del Programa"]
[null,"Clasificación del Pp: Categoría programática, que de acuerdo al catalogó emitido por la  Comisión  Nacional de Armonización Contable (CONAC), clasifica los programas presupuestarios  de acuerdo a su naturaleza generalmente con la inicial de una letra y seguida por números"]
[null,"Denominación del Pp: Nombre del Programa Presupuestario "]
[null,"Nombre de la Matriz: Conjunción de la clasificación y denominación del Programa"]
[]
[null,"Alineación con el PGD  y sus Programas derivados"]
[null,"Eje de política pública al que contribuye el Pp:   Se refiere a alguno de los 6 ejes del Plan General de Gobierno de la Ciudad de México"]
[null,"Tipo de Programa:  Los referidos en el Artículo 22 de la Ley de Planeación (Sectorial, Regional, Especial, Institucional)"]
[null,"Programa: Se especificará el nombre del programa según la clasificación arriba mencionada."]
[null,"Objetivo del Programa:  Se refiere a los objetivos del programa señalado en el inciso anterior."]
[]
[null,"Alineación con Objetivos del Desarrollo Sostenible"]
[null,"Objetivo al que contribuye el Pp: Se refiere al objetivo de desarrollo sostenible al que abona el programa"]
[]
[null,"Matriz de Indicadores para Resultados"]
[null,"Resumen Narrativo: Se registran los objetivos por cada nivel de la Matriz"]
[null,"Nivel en la Matriz de Marco Lógico: Se refiere al nviel del indicador, puede ser: Fin, Propósito, Componentes o Actividad, según sea el caso."]
[]
[null,"Datos de identificación del indicador"]
[null,"Nombre del indicador: denominación precisa y única con la que se distingue al indicador. "]
[null,"Dimensión del indicador: se refieren al aspecto particular del objetivo a ser medido mediante el indicador, puede ser:"]
[null,"• Eficacia: mide el grado de cumplimiento de los objetivos."]
[null,"• Eficiencia: mide la relación entre los productos y servicios generados con respecto a los insumos o recursos utilizados."]
[null,"• Economía: mide la capacidad del programa o de la institución para generar y movilizar adecuadamente los recursos financieros."]
[null,"• Calidad: mide los atributos, propiedades o características que deben tener los bienes y servicios para satisfacer los objetivos del programa."]
[null,"Tipo de indicador para Resultados: Se refiere a la naturaleza del indicador que corresponde a cada nivel de la Matriz de Indicadores para Resultados, puede ser:"]
[null,"• Estratégico.- Que está orientado a medir los efectos del Pp."]
[null,"• De gestión.- Qué está orientado a medir la forma en que trabaja el Pp."]
[null,"Considerar que según el nivel de la MIR los indicadores puedes ser:"]
[null,"• Para FIN y PROPÓSITO =  Estratégico."]
[null,"• Para COMPONENTE = Estratégico o Gestión."]
[null,"• Para ACTIVIDADES = Gestión."]
[null,"Definición del indicador: expresa al indicador en términos de su significado conceptual. Puede desde el punto de vista operativo, expresar al indicador en términos de las variables que en él intervienen."]
[null,"Tipo de valor de la Meta.- Indica si la meta es absoluta o relativa. Generalmente, la mayoría de los indicadores son expresados en números relativos, ya que por definición provienen de relacionar dos o más datos significativos, sin embargo, excepcionalmente se pueden utilizar indicadores referidos en números absolutos, tal es el caso del PIB. "]
[null,"Método de cálculo: se refiere a la expresión algebraica del indicador, a la explicación sencilla de la forma en que se relacionan las variables y a la metodología para calcular el indicador."]
[null,"Unidad de medida: magnitud de referencia que permite cuantificar y comparar elementos del indicador."]
[null,"Desagregación geográfica: indica los niveles territoriales para los que está disponible el indicador: ciudad, alcaldía"]
[null,"Frecuencia de medición: es el periodo de tiempo en el cual se calcula el indicador (mensual, bimestral, trimestral, cuatrimestral, semestral, anual o superior). La frecuencia de medición determinará la cantidad de periodos en los que se calendarizarán las metas para el indicador, por lo cual deberá tener precaución al seleccionar la frecuencia de medición. "]
[]
[null,"Serie de Información Disponible"]
[null,"Información disponible: Describe textualmente al conjunto de mediciones del indicador disponibles, se deben indicar cambios en la serie por cuestiones metodológicas u otras."]
[]
[null,"Criterios CREMAA"]
[null,"Claridad.- Es conveniente que los indicadores tengan una expresión sencilla con el propósito de que sean fácilmente comprensibles por los usuarios no especializados"]
[null,"Relevancia.- Un indicador debe expresar elementos de importancia o significativos en la medición de los avances y logros de un objetivo"]
[null,"Economía.- La información necesaria para generar el indicador deberá estar disponible a un costo razonable"]
[null,"Monitoreable.- El indicador debe poder sujetarse a una comprobación independiente"]
[null," Adecuado.- El indicador deberá aportar una base suficiente para evaluar el desempeño"]
[null,"Aporte marginal.- En el caso de que exista más de un indicador para medir el desempeño en determinado nivel de objetivo, el indicador debe proveer información adicional en comparación con los otros indicadores propuestos."]
[]
[null,"Contacto indicador  "]
[null,"Nombre:  Se deberá anotar el nombre del responsable directo de proporcionar información técnica sobre el indicador. "]
[null,"Apellido Paterno"]
[null,"Apellido Materno"]
[null,"Área"]
[null,"Puesto"]
[null,"Correo Electrónico"]
[null,"Teléfono (Lada, teléfono y extensión)"]
[]
[null,"Viabilidad de la meta"]
[null,"Meta acumulable: Se debe indicar si las características del indicador permiten que los valores de los diferentes periodos se sumen o no. "]
[null,"Comportamiento del indicador. Establece si el indicador a lo largo del tiempo tiene un comportamiento ascendente, descendente, regular o nominal. "]
[null,"• Ascendente.- si el resultado a lograr significa incrementar el valor del indicador."]
[null,"• Descendente.- si el resultado a lograr significa disminuir el valor del indicador."]
[null,"• Regular.- si el resultado a lograr significa mantener el valor del indicador dentro de determinado rango, y"]
[null,"• Nominal.- se tomará como un resultado independiente del historial del indicador."]
[null,"Factibilidad de la meta.- Establece, desde la perspectiva de la UR responsable del Pp la posibilidad real de alcanzar la meta"]
[null,"Alta"]
[null,"Media"]
[null,"Justificación de la Factibilidad.- Establece los argumentos que sirvieron de base para calificar la factibilidad de la meta."]
[]
[null,"Línea Base. \nEl valor inicial del indicador que se toma como referencia para comparar el avance del objetivo se llama Línea Base.\n"]
[null,"Año de la Línea Base.- Se deberá anotar el año que se toma como referencia para comparar los avances del Pp. Regularmente se recomienda tomar el año  en que terminó la administración anterior. Cuando un indicador vuelve a cero al término de cada ciclo, la línea base es 0.0 porque ese es el valor con el que inicia el nuevo ciclo."]
[null,"Indicador.- Se refiere al valor que tuvo el indicador en el momento de la medición inicial de referencia.  Cuando no se cuenta con línea base, se deberá anotar 0.0 y escribir la justificación en el campo correspondiente. "]
[null,"Numerador.- Se refiere al valor que tuvo el numerador del indicador en el momento de la medición inicial de referencia."]
[null,"Denominador.- Se refiere al valor que tuvo el denominador del indicador en el momento de la medición inicial de referencia."]
[null,"Periodo línea base.- Puede ser que en algunos casos, la línea base esté referida a un momento particular del año (inicio de cursos, trimestre II,  semana santa, etc.), en estas ocasiones deberá especificarse el periodo."]
[null,"Justificación línea base.- En este campo se deberá establecer cuando un indicador, por su reciente elaboración, no cuenta con una línea base. En este caso se deberá anotar aquí el año y periodo en que se tiene previsto realizar la primera medición, la cual será considerada como línea base."]
[]
[null,"Parámetros de semaforización\nSe refiere a los parámetros que la UR que opera el Pp establece como rango para calificar al avance como en semáforo verde, amarillo o rojo. "]
[null,"Tipo de valor.- Los umbrales de semaforización pueden definirse en términos absolutos o porcentuales"]
[null,"Umbral verde: Valor límite aceptable"]
[null,"Umbral amarillo: Valor en riesgo"]
[null,"Umbral rojo: Valor crítico"]
[]
[null,"Metas del ciclo presupuestario"]
[null,"Periodo: Asociado a la frecuencia de medición."]
[null,"Indicador.- Se refiere al valor del indicador en el periodo correspondiente."]
[null,"Numerador.- Se refiere al dividendo en el periodo correspondiente."]
[null,"Denominador.- Se refiere al valor que se estima alcanzará el divisor en el periodo correspondiente."]
[null,"Periodo al que corresponde el valor.- Se refiere al periodo de medición del indicador"]
[]
[null,"Características de las variables\nDescripción de las variables que componen el indicador, se agrega una sección por cada variable."]
[null,"Nombre: denominación de la variable."]
[null,"Descripción de la variable: expresa a la variable en términos de su significado conceptual "]
[null,"Medios de verificación: identifica las fuentes de información,  sistema o documentos en donde se origina la información, a efecto medir los indicadores y verificar que los objetivos se lograron. Si la fuente es un documento, debe incluir toda la información bibliográfica. Se debe anotar la información mínima necesaria para que el usuario pueda recuperar la información directamente."]
[null,"Unidad de medida: magnitud de referencia que permite cuantificar y comparar los elementos de las variables. "]
[null,"Desagregación geográfica: indica los niveles territoriales para los que está disponible la variable:  ciudad, alcaldía"]
[null,"Frecuencia: es el periodo de tiempo en el cual se calcula la variable (mensual, bimestral, trimestral, cuatrimestral, semestral, anual o superior). "]
[null,"Método de recopilación de datos: indica el método estadístico de recolección de datos, el cual puede ser: censo, encuesta o explotación de registros administrativos."]
[null,"Fecha de disponibilidad de la información: se refiere al momento en que la información puede ser consultada por los usuarios."]
[]
[null,"Serie estadística\nSon los valores del indicador para años previos, incluso más allá de la línea base."]
[null,"Ciclo serie: año al que está referido el dato de la serie."]
[null,"Valor serie: valor del indicador."]
[null,"Periodo de la serie: Cuando en un año se realizan diversas mediciones del indicador, se debe especificar a cuál de ellas corresponde el valor. (Ejemplo: matrícula escolar, se puede medir a inicio de cursos o a fin de cursos)"]
[]
[null,null,null,null,null,null,"Última actualización 08/10/2021"]
[null,null,null,null,null,null,null,{"$f":"MATCH(H34,Hoja2!F8:I8,0)","v":4}]

{"sheet":"Catálogo","index":8,"n_rows":333,"n_cols":48,"rows_kept":333,"cut":false,"hidden":true,"merged":[]}
["URG",null,"Eje de política pública del Plan General de Desarrollo del Distrito Federal",null,"Tipo de Programa ",null,"Tipo","Programas derivados del PGDDF",null,"Objetivo ODS",null,"Nivel",null,"Dimensión del indicador ",null,"Tipo de indicador para resultados ",null,"Tipo valor de la meta ",null,"Unidad de medida indicador",null,"Unidad de medida variables",null,"Frecuencia",null,"Desagregación geográfica ",null,"Serie de Información Disponible ",null,"Criterios CREMAA",null,"Caracteristica","Cumple","No cumple",null,"Meta acumulable ",null,"Comportamiento del indicador ",null,"Factibilidad de la meta ",null,"Tipo de valor",null,null,"Método de recopilación de datos",null,"Clave Pp","Nombre Pp"]
["AGENCIA DE ATENCIÓN ANIMAL",null,"Eje 1. Igualdad y Derechos",null,"Especial",null,"Institucional","Programa Institucional del Instituto de Educación Media Superior del Distrito Federal 2013-2018",null,"1. Fin de la pobreza",null,"Fin",null,"Eficacia",null,"Estratégico",null,"Absoluta",null,"Tasa",null,"Año",null,"Mensual",null,"Ciudad",null,2000,null,"Cumple",null,"Claridad","El indicador es preciso y de fácil comprensión por usuarios no especializados, pues su formulación es sencilla.","El indicador es de difícil comprensión.",null,"Sí",null,"Ascendente",null,"Alta",null,"Absoluto",null,null,"Censo",null,"B001","PRODUCCIÓN Y COMERCIALIZACIÓN DE MEZCLAS ASFÁLTICAS"]
["AGENCIA DE PROTECCIÓN SANITARIA",null,"Eje 2. Ciudad Sustentable",null,"Institucional",null,"Institucional","Programa Institucional de la Caja de Previsión para Trabajadores a Lista de Raya del Gobierno de la Ciudad de México",null,"2. Hambre cero",null,"Propósito",null,"Eficiencia",null,"Gestión",null,"Relativa",null,"Porcentaje",null,"Artículo",null,"Bimestral",null,"Alcaldía",null,2001,null,"No cumple",null,"Relevancia","El indicador aporta información respecto a los efectos que tienen las acciones del Programa sobre los objetivos que este se ha planteado en el ejercicio presupuestal reportado, a su vez permite observar tendencias acerca de los impactos del Programa sobre la problemática que éste atiende en el mediano y largo plazo.","El indicador no aporta información respecto a los efectos que tienen las acciones del Programa sobre los objetivos que este se ha planteado en el ejercicio presupuestal reportado.",null,"No",null,"Descendente",null,"Media",null,"Relativo",null,null,"Encuesta",null,"D001","SERVICIO DE LA DEUDA"]
["AGENCIA DIGITAL DE INNOVACIÓN PÚBLICA",null,"Eje 3. Más y Mejor Movilidad",null,"Sectorial",null,"Institucional","Programa Institucional de la Oficialía Mayor 2014-2018",null,"3. Salud y bienestar",null,"Componente",null,"Economía",null,null,null,null,null,"Índice",null,"Botella",null,"Trimestral",null,null,null,2002,null,null,null,"Economía","El indicador no requiere recursos adicionales para su medición, pues la información se obtiene del desarrollo cotidiano del programa.","Se requieren recursos adicionales para la medición del indicador.",null,null,null,"Regular",null,null,null,null,null,null,"Explotación de registros administrativos",null,"D002","DEVOLUCIÓN DE INGRESOS PERCIBIDOS INDEBIDAMENTE"]
["ALCALDÍA ÁLVARO OBREGÓN",null,"Eje 4. Ciudad de México, capital cultural de America Latina",null,"Regional",null,"Institucional","Programa Institucional del Fondo de Desarrollo Económico de la Ciudad de México",null,"4. Educación de calidad",null,"Actividad",null,"Calidad",null,null,null,null,null,"Variación porcentual",null,"Byte",null,"Cuatrimestral",null,null,null,2003,null,null,null,"Monitoreable","Se calcula a partir de las bases de datos generadas durante la operación del programa, por lo que se tienen datos a lo largo del ciclo presupuestal que permiten dar seguimiento al comportamiento del indicador.","No es posible dar un seguimiento al comportamiento del indicador durante el ciclo presupuestal.",null,null,null,"Nominal",null,null,null,"Umbral verde ","90%- 110%",null,null,null,"E001","ACCESO A LA JUSTICIA PARA LAS MUJERES Y NIÑAS VÍCTIMAS DE VIOLENCIA Y DISCRIMINACIÓN DE GÉNERO"]
["ALCALDÍA AZCAPOTZALCO",null,"Eje 5. Cero Agresión y Más Seguridad",null,null,null,"Institucional","Programa Institucional de la Comisión de Filmaciones de la Ciudad de México 2013-2018",null,"5. Igualdad de género",null,null,null,null,null,null,null,null,null,null,null,"Caja",null,"Semestral",null,null,null,2004,null,null,null,"Adecuado","Se considera que el indicador es preciso para estimar el logro del objetivo.","El indicador no contribuye al logro del objetivo del Programa.",null,null,null,null,null,null,null,"Umbral amarillo","80%- 120%",null,null,null,"E002","ACCIONES DE FORTALECIMIENTO PARA LA PROCURACIÓN DE JUSTICIA"]
["ALCALDÍA BENITO JUÁREZ",null,"Eje 6. Ciencia, Innovación y Transparencia",null,null,null,"Institucional","Programa Institucional de Salud del Distrito Federal 2013-2018",null,"6. Agua limpia y saneamiento",null,null,null,null,null,null,null,null,null,null,null,"Centímetro",null,"Anual",null,null,null,2005,null,null,null,"Aporte marginal","El indicador proporciona información adicional a los demás indicadores.","El indicador no proporciona información adicional a los demás indicadores.",null,null,null,null,null,null,null,"Umbral rojo",">80%- <120%",null,null,null,"E003","ACCIONES DE OBRAS Y SERVICIOS PARA LA RECUPERACIÓN, PROMOCIÓN Y PROTECCIÓN DEL CENTRO HISTÓRICO"]
["ALCALDÍA COYOACÁN",null,null,null,null,null,"Institucional","Programa Institucional de la Autoridad de la Zona Patrimonio Mundial, Natural y Cultural de la Humanidad en Xochimilco, Tláhuac y Milpa Alta, AZP, de la Ciudad de México 2013-2018 \n",null,"7. Energía asequible y no contaminante",null,null,null,null,null,null,null,null,null,null,null,"Certificado",null,null,null,null,null,2006,null,null,null,null,null,null,null,null,null,null,null,null,null,null,null,null,null,null,"E004","PREVENCIÓN DE CÁNCER DE MAMA Y CERVICOUTERINO"]
["ALCALDÍA CUAJIMALPA DE MORELOS",null,null,null,null,null,"Institucional","Programa Institucional de la Consejería Jurídica y de Servicios Legales de la Ciudad de México",null,"8. Trabajo decente y crecimiento económico",null,null,null,null,null,null,null,null,null,null,null,"Ciento",null,null,null,null,null,2007,null,null,null,null,null,null,null,null,null,null,null,null,null,null,null,null,null,null,"E005","ACCIONES PARA MEJORAR LA GOBERNANZA DIGITAL"]
["ALCALDIA CUAUHTÉMOC",null,null,null,null,null,"Institucional","Programa Institucional del Sistema de Transporte Colectivo 2013-2018",null,"9. Industria, innovación e infraestructura",null,null,null,null,null,null,null,null,null,null,null,"Cuartilla",null,null,null,null,null,2008,null,null,null,null,null,null,null,null,null,null,null,null,null,null,null,null,null,null,"E006","ACCIONES PARA PROYECTOS AMBIENTALES"]
["ALCALDÍA GUSTAVO A. MADERO",null,null,null,null,null,"Institucional","Programa Institucional de la Agencia de Protección Sanitaria",null,"10. Reducción de las desigualdades",null,null,null,null,null,null,null,null,null,null,null,"Cubeta",null,null,null,null,null,2009,null,null,null,null,null,null,null,null,null,null,null,null,null,null,null,null,null,null,"E007","PREVENCIÓN DEL DELITO"]
["ALCALDÍA IZTACALCO",null,null,null,null,null,"Institucional","Programa Institucional de la Secretaria de Gobierno de la Ciudad de México 2013-2018",null,"11. Ciudades y comunidades sostenibles",null,null,null,null,null,null,null,null,null,null,null,"Día",null,null,null,null,null,2010,null,null,null,null,null,null,null,null,null,null,null,null,null,null,null,null,null,null,"E011","FORTALECIMIENTO EN MATERIA JURÍDICA"]
["ALCALDÍA IZTAPALAPA",null,null,null,null,null,"Institucional","Programa Institucional del Instituto Técnico de Formación Policial 2013-2018",null,"12. Producción y consumo responsable",null,null,null,null,null,null,null,null,null,null,null,"Documentos",null,null,null,null,null,2011,null,null,null,null,null,null,null,null,null,null,null,null,null,null,null,null,null,null,"E012","ATENCIÓN MEDICA"]
["ALCALDÍA LA MAGDALENA CONTRERAS",null,null,null,null,null,"Institucional","Programa Institucional de la Agencia de Gestión Urbana de la Ciudad de México",null,"13. Acción por el clima",null,null,null,null,null,null,null,null,null,null,null,"Empresas",null,null,null,null,null,2012,null,null,null,null,null,null,null,null,null,null,null,null,null,null,null,null,null,null,"E014","ATENCIÓN A PERSONAS ADULTAS PRIVADAS DE SU LIBERTAD Y EN PROCEDIMIENTO LEGAL"]
["ALCALDÍA MIGUEL HIDALGO",null,null,null,null,null,"Institucional","Programa Institucional de Vivienda 2013-2018",null,"14. Vida submarina",null,null,null,null,null,null,null,null,null,null,null,"Fuentes fijas",null,null,null,null,null,2013,null,null,null,null,null,null,null,null,null,null,null,null,null,null,null,null,null,null,"E016","ATENCIÓN INTEGRAL Y TRATAMIENTO DE ADICCIONES"]
["ALCALDÍA MILPA ALTA",null,null,null,null,null,"Institucional","Programa Institucional a cargo de Servicios Metropolitanos, S.A. de C.V.",null,"15. Vida de ecosistemas terrestres",null,null,null,null,null,null,null,null,null,null,null,"Galón",null,null,null,null,null,2014,null,null,null,null,null,null,null,null,null,null,null,null,null,null,null,null,null,null,"E017","ATENCIÓN MÉDICA A PERSONAS PRIVADAS DE SU LIBERTAD Y EN PROCEDIMIENTO LEGAL"]
["ALCALDÍA TLÁHUAC",null,null,null,null,null,"Institucional","Programa Institucional de la Secretaría de Seguridad Pública de la Ciudad de México 2014-2018",null,"16. Paz, justicia e instituciones sólidas",null,null,null,null,null,null,null,null,null,null,null,"Gigabyte",null,null,null,null,null,2015,null,null,null,null,null,null,null,null,null,null,null,null,null,null,null,null,null,null,"E018","ATENCIÓN VETERINARIA"]
["ALCALDÍA TLALPAN",null,null,null,null,null,"Institucional","Programa Institucional del Centro de Comando, Control, Cómputo, Comunicaciones y Contacto Ciudadano de la Ciudad de México 2013-2018",null,"17. Alianzas para lograr los objetivos",null,null,null,null,null,null,null,null,null,null,null,"Gramo",null,null,null,null,null,2016,null,null,null,null,null,null,null,null,null,null,null,null,null,null,null,null,null,null,"E019"," PREVENCIÓN Y ATENCIÓN  DE LA VIOLENCIA CONTRA LAS MUJERES"]
["ALCALDÍA VENUSTIANO CARRANZA",null,null,null,null,null,"Institucional","Programa Institucional de la Secretaría Ejecutiva del Mecanismo de Seguimiento y Evaluación del Programa de Derechos Humanos de la Ciudad de México",null,null,null,null,null,null,null,null,null,null,null,null,null,"Hoja",null,null,null,null,null,2017,null,null,null,null,null,null,null,null,null,null,null,null,null,null,null,null,null,null,"E020","CENTROS DE ATENCIÓN LUNAS"]
["ALCALDÍA XOCHIMILCO",null,null,null,null,null,"Institucional","Programa Institucional del Fideicomiso Museo del Estanquillo \n",null,null,null,null,null,null,null,null,null,null,null,null,null,"Hora",null,null,null,null,null,2018,null,null,null,null,null,null,null,null,null,null,null,null,null,null,null,null,null,null,"E021","SEGURIDAD CIUDADANA EN CUADRANTES"]
["AUDITORÍA SUPERIOR DE LA CIUDAD DE MÉXICO",null,null,null,null,null,"Institucional","Programa Institucional del Sistema para el Desarrollo Integral de la Familia de la Ciudad de México 2014-2018",null,null,null,null,null,null,null,null,null,null,null,null,null,"Incidencia delictiva",null,null,null,null,null,2019,null,null,null,null,null,null,null,null,null,null,null,null,null,null,null,null,null,null,"E022","CUIDADO Y CONSERVACIÓN DE LOS BOSQUES, ÁREAS  DE VALOR AMBIENTAL Y SUELO DE CONSERVACIÓN"]
["AUTORIDAD DEL CENTRO HISTÓRICO",null,null,null,null,null,"Institucional","Programa Institucional para el Desarrollo Integral de las Juventudes en la Ciudad de México 2013-2018",null,null,null,null,null,null,null,null,null,null,null,null,null,"Inmueble",null,null,null,null,null,2020,null,null,null,null,null,null,null,null,null,null,null,null,null,null,null,null,null,null,"E025","FORMACIÓN CONTINÚA PARA POLICÍAS PREVENTIVOS"]
["CAJA DE PREVISIÓN DE LA POLICÍA AUXILIAR",null,null,null,null,null,"Institucional","Programa Institucional del Fideicomiso Centro Histórico de la Ciudad de México",null,null,null,null,null,null,null,null,null,null,null,null,null,"Kilobyte",null,null,null,null,null,null,null,null,null,null,null,null,null,null,null,null,null,null,null,null,null,null,null,null,"E026","FORMACIÓN DE ASPIRANTES A POLICÍAS"]
["CAJA DE PREVISIÓN DE LA POLICÍA PREVENTIVA",null,null,null,null,null,"Institucional","Programa Institucional del Instituto del Deporte de la Ciudad de México",null,null,null,null,null,null,null,null,null,null,null,null,null,"Kilogramo",null,null,null,null,null,null,null,null,null,null,null,null,null,null,null,null,null,null,null,null,null,null,null,null,"E027","FORTALECIMIENTO A LA EDUCACIÓN COMPLEMENTARIA"]
["CAJA DE PREVISIÓN PARA TRABAJADORES A LISTA DE RAYA",null,null,null,null,null,"Institucional","Programa Institucional del Instituto de Capacitación para el Trabajo de la Ciudad de México (ICAT CDMX)",null,null,null,null,null,null,null,null,null,null,null,null,null,"Kilometro",null,null,null,null,null,null,null,null,null,null,null,null,null,null,null,null,null,null,null,null,null,null,null,null,"E028","OPERACIÓN DEL MUSEO DE ARTE POPULAR"]
["CENTRO DE COMANDO, CONTROL, CÓMPUTO, COMUNICACIONES Y CONTACTO CIUDADANO",null,null,null,null,null,"Institucional","Programa Institucional de la Autoridad del Centro Histórico 2013-2018",null,null,null,null,null,null,null,null,null,null,null,null,null,"Licencia amiental única",null,null,null,null,null,null,null,null,null,null,null,null,null,null,null,null,null,null,null,null,null,null,null,null,"E031","PRESTACIÓN DE SERVICIOS PARA LOS TRAMITES DE IDENTIDAD Y PROPIEDAD"]
["COMISIÓN DE BUSQUEDA DE PERSONAS DE LA CIUDAD DE MÉXICO",null,null,null,null,null,"Institucional","Programa Institucional de la Secretaría de Educación de la Ciudad de México",null,null,null,null,null,null,null,null,null,null,null,null,null,"Litro",null,null,null,null,null,null,null,null,null,null,null,null,null,null,null,null,null,null,null,null,null,null,null,null,"E034","MANTENIMIENTO DE ESPACIOS PÚBLICOS"]
["COMISIÓN DE DERECHOS HUMANOS",null,null,null,null,null,"Institucional","Programa Institucional de Protección Civil del Distrito Federal 2013-2018",null,null,null,null,null,null,null,null,null,null,null,null,null,"Lote",null,null,null,null,null,null,null,null,null,null,null,null,null,null,null,null,null,null,null,null,null,null,null,null,"E038","MEDIDAS DE PREVENCIÓN Y PROTECCIÓN DE LOS DEFENSORES DE DERECHOS HUMANOS Y PERIODISTAS"]
["COMISIÓN EJECUTIVA DE ATENCIÓN A VÍCTIMAS DE LA CIUDAD DE MÉXICO",null,null,null,null,null,"Institucional","Programa Institucional del Instituto de Verificación Administrativa del Distrito Federal",null,null,null,null,null,null,null,null,null,null,null,null,null,"Megabyte",null,null,null,null,null,null,null,null,null,null,null,null,null,null,null,null,null,null,null,null,null,null,null,null,"E039","MEJORAS A LA INFRAESTRUCTURA PARA MOVILIDAD NO MOTORIZADA Y PEATONAL"]
["CONGRESO DE LA CIUDAD DE MÉXICO",null,null,null,null,null,"Institucional","Programa Institucional de la Autoridad del Espacio Público de la Ciudad de México 2013-2018",null,null,null,null,null,null,null,null,null,null,null,null,null,"Mes",null,null,null,null,null,null,null,null,null,null,null,null,null,null,null,null,null,null,null,null,null,null,null,null,"E042","OPERACIÓN Y MANTENIMIENTO DEL TRANSPORTE PÚBLICO MASIVO, CONCESIONADO Y ALTERNO"]
["CONSEJERÍA JURÍDICA Y DE SERVICIOS LEGALES",null,null,null,null,null,"Institucional","Programa Institucional del Instituto para la Seguridad de las Construcciones en el Distrito Federal 2013-2018",null,null,null,null,null,null,null,null,null,null,null,null,null,"Metro",null,null,null,null,null,null,null,null,null,null,null,null,null,null,null,null,null,null,null,null,null,null,null,null,"E043","POLICÍA AUXILIAR"]
["CONSEJO DE EVALUACIÓN",null,null,null,null,null,"Institucional","Programa Institucional 2014 – 2018 de la Caja de Previsión de la Policía Preventiva de la Ciudad de México",null,null,null,null,null,null,null,null,null,null,null,null,null,"Metro cuadrado",null,null,null,null,null,null,null,null,null,null,null,null,null,null,null,null,null,null,null,null,null,null,null,null,"E044","PRESTACIÓN DE SERVICIOS PARA LAS CAJAS DE PREVISIÓN"]
["CONSEJO DE LA JUDICATURA",null,null,null,null,null,"Institucional","Programa Institucional de la Secretaría de Educación de la Ciudad de México",null,null,null,null,null,null,null,null,null,null,null,null,null,"Metro cúbico",null,null,null,null,null,null,null,null,null,null,null,null,null,null,null,null,null,null,null,null,null,null,null,null,"E046","PREVENCIÓN Y ATENCIÓN DE LA DISCRIMINACIÓN"]
["CONSEJO PARA PREVENIR Y ELIMINAR LA DISCRIMINACIÓN",null,null,null,null,null,"Institucional","Programa Institucional del Fondo para el Desarrollo Económico y Social Ciudad de México 2013-2018 \n",null,null,null,null,null,null,null,null,null,null,null,null,null,"Miligramo",null,null,null,null,null,null,null,null,null,null,null,null,null,null,null,null,null,null,null,null,null,null,null,null,"E047","PREVENCIÓN Y TRATAMIENTO DE LAS ADICCIONES"]
["CORPORACIÓN MEXICANA DE IMPRESIÓN, S.A. DE C.V.",null,null,null,null,null,"Institucional","Programa Institucional del Sistema de Movilidad 1 (Sistema M1) \n",null,null,null,null,null,null,null,null,null,null,null,null,null,"Mililitro",null,null,null,null,null,null,null,null,null,null,null,null,null,null,null,null,null,null,null,null,null,null,null,null,"E048","PRODUCCIÓN DE CONTENIDO CULTURAL Y ARTÍSTICO"]
["DEUDA PÚBLICA",null,null,null,null,null,"Institucional","Programa Institucional de la Secretaría de Desarrollo Urbano y Vivienda 2013-2018",null,null,null,null,null,null,null,null,null,null,null,null,null,"Milímetro",null,null,null,null,null,null,null,null,null,null,null,null,null,null,null,null,null,null,null,null,null,null,null,null,"E049","PRODUCCIÓN Y SERVICIOS FÍLMICOS Y CINEMATOGRÁFICOS"]
["ESCUELA DE ADMINISTRACIÓN PÚBLICA",null,null,null,null,null,"Institucional","Programa Institucional 2014-2018 de la Secretaría de Desarrollo Rural y Equidad para las Comunidades de la Ciudad de México \n",null,null,null,null,null,null,null,null,null,null,null,null,null,"Millar",null,null,null,null,null,null,null,null,null,null,null,null,null,null,null,null,null,null,null,null,null,null,null,null,"E053","PROTECCIÓN CIUDADANA ORDEN PÚBLICO Y PAZ SOCIAL"]
["FIDEICOMISO DE PROMOCION Y DESARROLLO DEL CINE MEXICANO",null,null,null,null,null,"Institucional","Programa Institucional de la Escuela de Administración Pública del Distrito Federal 2016-2018",null,null,null,null,null,null,null,null,null,null,null,null,null,"Onza",null,null,null,null,null,null,null,null,null,null,null,null,null,null,null,null,null,null,null,null,null,null,null,null,"E054","PROTECCIÓN Y VIGILANCIA DEL SECTOR PÚBLICO Y PRIVADO"]
["FIDEICOMISO DE RECUPERACIÓN CREDITICIA",null,null,null,null,null,"Institucional","Programa Institucional de la Secretaría de Desarrollo Económico 2013-2018",null,null,null,null,null,null,null,null,null,null,null,null,null,"Página",null,null,null,null,null,null,null,null,null,null,null,null,null,null,null,null,null,null,null,null,null,null,null,null,"E057","REINSERCIÓN POS PENITENCIARIA"]
["FIDEICOMISO DEL CENTRO HISTÓRICO",null,null,null,null,null,"Institucional","Programa Institucional de la Secretaría del Medio Ambiente 2013-2018",null,null,null,null,null,null,null,null,null,null,null,null,null,"Paquete",null,null,null,null,null,null,null,null,null,null,null,null,null,null,null,null,null,null,null,null,null,null,null,null,"E059","REPRESENTACIÓN Y DEFENSA DEL GOBIERNO EN MATERIA FISCAL Y HACENDARIA"]
["FIDEICOMISO EDUCACIÓN GARANTIZADA",null,null,null,null,null,"Institucional","Programa Institucional de la Secretaría de Turismo del Distrito Federal",null,null,null,null,null,null,null,null,null,null,null,null,null,"Persona",null,null,null,null,null,null,null,null,null,null,null,null,null,null,null,null,null,null,null,null,null,null,null,null,"E061","SALUD MATERNA, SEXUAL Y REPRODUCTIVA"]
["FIDEICOMISO FONDO DE APOYO A LA PROCURACIÓN DE JUSTICIA",null,null,null,null,null,"Institucional","Programa Institucional de la Secretaría de Cultura del Distrito Federal",null,null,null,null,null,null,null,null,null,null,null,null,null,"Pie",null,null,null,null,null,null,null,null,null,null,null,null,null,null,null,null,null,null,null,null,null,null,null,null,"E063","SEGURIDAD PROCESAL"]
["FIDEICOMISO MUSEO DE ARTE POPULAR MEXICANO",null,null,null,null,null,"Institucional","Programa Institucional de la Contraloría General del Distrito Federal a 2018",null,null,null,null,null,null,null,null,null,null,null,null,null,"Pieza",null,null,null,null,null,null,null,null,null,null,null,null,null,null,null,null,null,null,null,null,null,null,null,null,"E065","SERVICIO INTEGRAL DE OPERACIÓN Y ATENCIÓN A EMERGENCIAS"]
["FIDEICOMISO MUSEO DEL ESTANQUILLO",null,null,null,null,null,"Institucional","Programa Institucional de la Secretaría de Ciencia, Tecnología e Innovación\ndel Distrito Federal para el Periodo 2013-2018",null,null,null,null,null,null,null,null,null,null,null,null,null,"Pliego",null,null,null,null,null,null,null,null,null,null,null,null,null,null,null,null,null,null,null,null,null,null,null,null,"E066","SERVICIOS DE SALUD DEL PRIMER NIVEL"]
["FIDEICOMISO PARA EL FONDO DE PROMOCIÓN PARA EL FINANCIAMIENTO DEL TRANSPORTE PÚBLICO",null,null,null,null,null,"Institucional","Programa Institucional\ndel Fideicomiso Público “Educación Garantizada” del Distrito Federal 2013-2018",null,null,null,null,null,null,null,null,null,null,null,null,null,"Proyectos",null,null,null,null,null,null,null,null,null,null,null,null,null,null,null,null,null,null,null,null,null,null,null,null,"E067","OPERACIÓN DEL  SISTEMA PARA LA SEGURIDAD DE LAS CONSTRUCCIONES DE LA CIUDAD DE MÉXICO"]
["FISCALÍA GENERAL DE JUSTICIA",null,null,null,null,null,"Institucional","Programa Institucional de Desarrollo de la Secretaría de Trabajo y Fomento al Empleo 2014 - 2018",null,null,null,null,null,null,null,null,null,null,null,null,null,"Pulgada",null,null,null,null,null,null,null,null,null,null,null,null,null,null,null,null,null,null,null,null,null,null,null,null,"E068","PREVENCIÓN Y ATENCIÓN A MENORES INFRACTORES"]
["FONDO AMBIENTAL PÚBLICO",null,null,null,null,null,"Sectorial","Programa Sectorial de Capacitación; Certificación y Profesionalización de los servidores públicos 2013 - 2018",null,null,null,null,null,null,null,null,null,null,null,null,null,"Resolución",null,null,null,null,null,null,null,null,null,null,null,null,null,null,null,null,null,null,null,null,null,null,null,null,"E070","CONSERVACIÓN Y MANTENIMIENTO MENOR DE INMUEBLES Y EQUIPOS"]
["FONDO DE DESARROLLO ECONÓMICO",null,null,null,null,null,"Sectorial","Programa Sectorial de Educación y Cultura 2013 - 2018",null,null,null,null,null,null,null,null,null,null,null,null,null,"Segundo",null,null,null,null,null,null,null,null,null,null,null,null,null,null,null,null,null,null,null,null,null,null,null,null,"E072","PRESERVACIÓN Y CUIDADO DEL PATRIMONIO MATERIAL E INMATERIAL"]
["FONDO MIXTO DE PROMOCIÓN TURÍSTICA",null,null,null,null,null,"Sectorial","Programa Sectorial de Desarrollo Económico y Empleo 2013 - 2018",null,null,null,null,null,null,null,null,null,null,null,null,null,"Semana",null,null,null,null,null,null,null,null,null,null,null,null,null,null,null,null,null,null,null,null,null,null,null,null,"E073","OPERACIÓN DEL MUSEO DEL ESTANQUILLO"]
["FONDO PARA EL DESARROLLO ECONÓMICO Y SOCIAL",null,null,null,null,null,"Sectorial","Programa Sectorial de Salud 2013 - 2018",null,null,null,null,null,null,null,null,null,null,null,null,null,"Servicio",null,null,null,null,null,null,null,null,null,null,null,null,null,null,null,null,null,null,null,null,null,null,null,null,"E075","GESTIÓN Y OPERACIÓN DEL MUSEO DE HISTORIA NATURAL Y CULTURA AMBIENTAL"]
["FONDO PARA EL DESARROLLO SOCIAL",null,null,null,null,null,"Sectorial","Programa Sectorial de Desarrollo Social con Equidad E Inclusión 2013 - 2018",null,null,null,null,null,null,null,null,null,null,null,null,null,"Terabyte",null,null,null,null,null,null,null,null,null,null,null,null,null,null,null,null,null,null,null,null,null,null,null,null,"E076","SERVICIOS INTEGRALES A JUBILADOS Y PENSIONADOS"]
["FONDO PÚBLICO DE ATENCIÓN AL CICLISTA Y AL PEATÓN",null,null,null,null,null,"Sectorial","Programa Sectorial de Desarrollo Agropecuario y Rural Sustentable 2013 - 2018",null,null,null,null,null,null,null,null,null,null,null,null,null,"Tonelada",null,null,null,null,null,null,null,null,null,null,null,null,null,null,null,null,null,null,null,null,null,null,null,null,"E077","SERVICIOS DE IMPRENTA DE LA CIUDAD DE MÉXICO"]
["HEROICO CUERPO DE BOMBEROS",null,null,null,null,null,"Sectorial","Programa Sectorial de Seguridad Ciudadana para el Periodo 2013 - 2018",null,null,null,null,null,null,null,null,null,null,null,null,null,"Unidad  ",null,null,null,null,null,null,null,null,null,null,null,null,null,null,null,null,null,null,null,null,null,null,null,null,"E078","ATENCIÓN MÉDICA DE URGENCIAS"]
["INSTANCIA EJECUTORA DEL SISTEMA INTEGRAL DE DERECHOS HUMANOS",null,null,null,null,null,"Sectorial","Programa Sectorial de Protección Civil 2013 - 2018",null,null,null,null,null,null,null,null,null,null,null,null,null,"Otros",null,null,null,null,null,null,null,null,null,null,null,null,null,null,null,null,null,null,null,null,null,null,null,null,"E079","PROMOCIÓN Y OPERACIÓN INTEGRAL DE LA ORQUESTA FILARMÓNICA DE LA CIUDAD DE MÉXICO"]
["INSTITUTO DE CAPACITACIÓN PARA EL TRABAJO",null,null,null,null,null,"Sectorial","Programa Sectorial de Turismo 2013 - 2018",null,null,null,null,null,null,null,null,null,null,null,null,null,null,null,null,null,null,null,null,null,null,null,null,null,null,null,null,null,null,null,null,null,null,null,null,null,null,"E080","PROFESIONALIZACIÓN DE SERVIDORES PÚBLICOS E INVESTIGACIÓN APLICADA PARA LA BUENA ADMINISTRACIÓN"]
["INSTITUTO DE EDUCACIÓN MEDIA SUPERIOR",null,null,null,null,null,"Sectorial","Programa Sectorial Ambiental y de Sustentabilidad 2013 - 2018",null,null,null,null,null,null,null,null,null,null,null,null,null,null,null,null,null,null,null,null,null,null,null,null,null,null,null,null,null,null,null,null,null,null,null,null,null,null,"E081","SERVICIOS INTEGRALES DE ASISTENCIA SOCIAL"]
["INSTITUTO DE ESTUDIOS SUPERIORES DE LA CIUDAD DE MÉXICO \"ROSARIO CASTELLANOS\"",null,null,null,null,null,"Sectorial","Programa Sectorial de Trabajo Empleo y Seguridad Social 2010-2012",null,null,null,null,null,null,null,null,null,null,null,null,null,null,null,null,null,null,null,null,null,null,null,null,null,null,null,null,null,null,null,null,null,null,null,null,null,null,"E082","REGULARIZACIÓN DE LA TENENCIA DE LA TIERRA"]
["INSTITUTO DE LA JUVENTUD",null,null,null,null,null,"Especial","Programa Integral de Movilidad 2013 - 2018",null,null,null,null,null,null,null,null,null,null,null,null,null,null,null,null,null,null,null,null,null,null,null,null,null,null,null,null,null,null,null,null,null,null,null,null,null,null,"E083","VALUACIÓN DE LOS BIENES INMUEBLES"]
["INSTITUTO DE LAS PERSONAS CON DISCAPACIDAD",null,null,null,null,null,"Especial","Programa Hoy No Circula en el Distrito Federal",null,null,null,null,null,null,null,null,null,null,null,null,null,null,null,null,null,null,null,null,null,null,null,null,null,null,null,null,null,null,null,null,null,null,null,null,null,null,"E084","SERVICIOS INTEGRALES METROPOLITANOS"]
["INSTITUTO DE TRANSPARENCIA, ACCESO A LA INFORMACIÓN PÚBLICA, PROTECCIÓN DE DATOS PERSONALES Y RENDICIÓN DE CUENTAS",null,null,null,null,null,"Especial","Programa General de Desarrollo del Distrito Federal 2013-2018",null,null,null,null,null,null,null,null,null,null,null,null,null,null,null,null,null,null,null,null,null,null,null,null,null,null,null,null,null,null,null,null,null,null,null,null,null,null,"E086","FORTALECIMIENTO A LA EDUCACIÓN MEDIA SUPERIOR"]
["INSTITUTO DE VERIFICACIÓN ADMINISTRATIVA",null,null,null,null,null,"Especial","Programa integral para la regularización y mejoramiento del servicio de transporte público colectivo de pasajeros, en el Distrito Federal",null,null,null,null,null,null,null,null,null,null,null,null,null,null,null,null,null,null,null,null,null,null,null,null,null,null,null,null,null,null,null,null,null,null,null,null,null,null,"E087","FORTALECIMIENTO A LA EDUCACIÓN BÁSICA"]
["INSTITUTO DE VIVIENDA",null,null,null,null,null,"Especial","Programa integral para la regularización y mejoramiento del transporte público colectivo de pasajeros metropolitano, de unidades matriculadas en el Distrito Federal",null,null,null,null,null,null,null,null,null,null,null,null,null,null,null,null,null,null,null,null,null,null,null,null,null,null,null,null,null,null,null,null,null,null,null,null,null,null,"E088","OPERACIÓN Y MANTENIMIENTO DE LA RED DE TRANSPORTE DE PASAJEROS (RTP)"]
["INSTITUTO DEL DEPORTE",null,null,null,null,null,"Especial","Segundo Programa General de Igualdad de Oportunidades y No Discriminación hacia las Mujeres de la Ciudad de México",null,null,null,null,null,null,null,null,null,null,null,null,null,null,null,null,null,null,null,null,null,null,null,null,null,null,null,null,null,null,null,null,null,null,null,null,null,null,"E090","ACCIONES PARA EL BIENESTAR ANIMAL"]
["INSTITUTO ELECTORAL",null,null,null,null,null,"Especial","Programa General de Regularización Fiscal por el que se condona el pago de los conceptos que se indican",null,null,null,null,null,null,null,null,null,null,null,null,null,null,null,null,null,null,null,null,null,null,null,null,null,null,null,null,null,null,null,null,null,null,null,null,null,null,"E091","OPERACIÓN Y MANTENIMIENTO DE LA CENTRAL DE ABASTOS"]
["INSTITUTO LOCAL DE LA INFRAESTRUCTURA FÍSICA EDUCATIVA",null,null,null,null,null,"Especial","Programa General de Regularización Fiscal por el que se condonan las multas, recargos y gastos de ejecución, así como la actualización en el pago de los derechos por el suministro de agua a los contribuyentes que se indican",null,null,null,null,null,null,null,null,null,null,null,null,null,null,null,null,null,null,null,null,null,null,null,null,null,null,null,null,null,null,null,null,null,null,null,null,null,null,"E092","OPERACIÓN Y MANTENIMIENTO DE MERCADOS PÚBLICOS"]
["INSTITUTO PARA LA ATENCIÓN Y PREVENCIÓN DE LAS ADICCIONES",null,null,null,null,null,"Especial","Programa de Manejo del Área Natural Protegida \"Bosque de Tlalpan\"",null,null,null,null,null,null,null,null,null,null,null,null,null,null,null,null,null,null,null,null,null,null,null,null,null,null,null,null,null,null,null,null,null,null,null,null,null,null,"E093","MANEJO INTEGRAL DE RESIDUOS SÓLIDOS URBANOS"]
["INSTITUTO PARA LA SEGURIDAD DE LAS CONSTRUCCIONES",null,null,null,null,null,"Especial","Programa General de Regularización Fiscal por el que se Condona el Pago de los Derechos Causados con motivo del Registro Ordinario o Extemporáneo de Nacimiento de las personas que se indican",null,null,null,null,null,null,null,null,null,null,null,null,null,null,null,null,null,null,null,null,null,null,null,null,null,null,null,null,null,null,null,null,null,null,null,null,null,null,"E094","FORTALECIMIENTO PARA EL ACCESO A LA EDUCACIÓN SUPERIOR"]
["JEFATURA DE GOBIERNO",null,null,null,null,null,"Especial","Programa General de Regularización Fiscal por el que se Condona el Pago de los Derechos que se indican",null,null,null,null,null,null,null,null,null,null,null,null,null,null,null,null,null,null,null,null,null,null,null,null,null,null,null,null,null,null,null,null,null,null,null,null,null,null,"E095","FORTALECIMIENTO PARA EL ACCESO A POSGRADOS E INVESTIGACIÓN"]
["JUNTA LOCAL DE CONCILIACIÓN Y ARBITRAJE",null,null,null,null,null,"Especial","Programa General de Regularización Fiscal por el que se Condona el Pago de los Derechos Causados con motivo de la Inscripción de los Hechos o Actos del Estado Civil de los Mexicanos en el Extranjero, así como la búsqueda y expedición de copias certificadas de documentos que acrediten el Estado Civil de los migrantes y sus familiares",null,null,null,null,null,null,null,null,null,null,null,null,null,null,null,null,null,null,null,null,null,null,null,null,null,null,null,null,null,null,null,null,null,null,null,null,null,null,"E097","ACCIONES DE BÚSQUEDA, LOCALIZACIÓN E IDENTIFICACIÓN DE PERSONAS"]
["MECANISMO PARA LA PROTECCIÓN INTEGRAL DE PERSONAS DEFENSORAS DE DERECHOS HUMANOS Y PERIODISTAS",null,null,null,null,null,"Especial","Programa Social especifico denominado \u0094Programa de Desarrollo Rural en Tláhuac\u0094",null,null,null,null,null,null,null,null,null,null,null,null,null,null,null,null,null,null,null,null,null,null,null,null,null,null,null,null,null,null,null,null,null,null,null,null,null,null,"E098","SUPERVISIÓN Y PROMOCIÓN DE LOS DERECHOS LABORALES"]
["METROBÚS",null,null,null,null,null,"Especial","Programa Delegacional de Desarrollo Urbano en Álvaro Obregón",null,null,null,null,null,null,null,null,null,null,null,null,null,null,null,null,null,null,null,null,null,null,null,null,null,null,null,null,null,null,null,null,null,null,null,null,null,null,"E099","ACCIONES JURÍDICAS EN MATERIA LABORAL"]
["ÓRGANISMO REGULADOR DE TRANSPORTE",null,null,null,null,null,"Especial","Programa de Mediano plazo \"Programa Integral de Seguridad Vial\" 2016-2018 para la Ciudad de México",null,null,null,null,null,null,null,null,null,null,null,null,null,null,null,null,null,null,null,null,null,null,null,null,null,null,null,null,null,null,null,null,null,null,null,null,null,null,"E100","CAPACITACIÓN A LA POBLACIÓN OCUPADA Y DESOCUPADA DE LA CIUDAD DE MÉXICO"]
["PLANTA DE MEZCLAS ASFÁLTICAS",null,null,null,null,null,"Especial","Programa Especial de Innovación, Ciencia y Tecnología 2015-2018",null,null,null,null,null,null,null,null,null,null,null,null,null,null,null,null,null,null,null,null,null,null,null,null,null,null,null,null,null,null,null,null,null,null,null,null,null,null,"E101","ATENCIÓN INTEGRAL EN ESPACIOS DE REFUGIO A MUJERES, HIJAS E HIJOS EN SITUACIÓN DE VIOLENCIA EXTREMA Y PROMOVER EL EJERCICIO DE SUS DERECHOS"]
["POLICÍA AUXILIAR",null,null,null,null,null,"Especial","Programa para Contingencias Ambientales Atmosféricas en la Ciudad de México",null,null,null,null,null,null,null,null,null,null,null,null,null,null,null,null,null,null,null,null,null,null,null,null,null,null,null,null,null,null,null,null,null,null,null,null,null,null,"E102","PROFESIONALIZACIÓN DE SERVIDORES PÚBLICOS DE LA SALUD"]
["POLICÍA BANCARIA E INDUSTRIAL",null,null,null,null,null,"Especial","Programa Especial de Acción Internacional",null,null,null,null,null,null,null,null,null,null,null,null,null,null,null,null,null,null,null,null,null,null,null,null,null,null,null,null,null,null,null,null,null,null,null,null,null,null,"E103","ACCIONES DE GABINETE DE SEGURIDAD"]
["PROCDMX, S.A. DE C.V.",null,null,null,null,null,"Especial","Programa de Sustentabilidad y Gestión de los Servicios Hídricos (PSGSH) 2013-2018",null,null,null,null,null,null,null,null,null,null,null,null,null,null,null,null,null,null,null,null,null,null,null,null,null,null,null,null,null,null,null,null,null,null,null,null,null,null,"E104","PROFESIONALIZACIÓN  Y EVALUACIÓN DEL SERVIDOR PÚBLICO PARA EL BUEN GOBIERNO"]
["PROCURADURÍA AMBIENTAL Y DEL ORDENAMIENTO TERRITORIAL",null,null,null,null,null,"Especial","Programa de Derechos Humanos de la Ciudad de México ",null,null,null,null,null,null,null,null,null,null,null,null,null,null,null,null,null,null,null,null,null,null,null,null,null,null,null,null,null,null,null,null,null,null,null,null,null,null,"E107","CONSERVACIÓN Y OPERACIÓN DE ZOOLÓGICOS"]
["PROCURADURÍA SOCIAL",null,null,null,null,null,null,null,null,null,null,null,null,null,null,null,null,null,null,null,null,null,null,null,null,null,null,null,null,null,null,null,null,null,null,null,null,null,null,null,null,null,null,null,null,null,"E108","CIUDAD SEGURA Y AMIGABLE PARA LAS MUJERES Y NIÑAS"]
["RED DE TRANSPORTE DE PASAJEROS (RTP)",null,null,null,null,null,null,null,null,null,null,null,null,null,null,null,null,null,null,null,null,null,null,null,null,null,null,null,null,null,null,null,null,null,null,null,null,null,null,null,null,null,null,null,null,null,"E109","APOYO INTEGRAL A VICTIMAS"]
["SECRETARÍA DE ADMINISTRACIÓN Y FINANZAS",null,null,null,null,null,null,null,null,null,null,null,null,null,null,null,null,null,null,null,null,null,null,null,null,null,null,null,null,null,null,null,null,null,null,null,null,null,null,null,null,null,null,null,null,null,"E110","ATENCIÓN TELEFÓNICA SOBRE SERVICIOS DE NO EMERGENCIA"]
["SECRETARÍA DE CULTURA",null,null,null,null,null,null,null,null,null,null,null,null,null,null,null,null,null,null,null,null,null,null,null,null,null,null,null,null,null,null,null,null,null,null,null,null,null,null,null,null,null,null,null,null,null,"E111","ASESORAMIENTO EN MATERIA JURÍDICA"]
["SECRETARÍA DE DESARROLLO ECONÓMICO",null,null,null,null,null,null,null,null,null,null,null,null,null,null,null,null,null,null,null,null,null,null,null,null,null,null,null,null,null,null,null,null,null,null,null,null,null,null,null,null,null,null,null,null,null,"E112","OPERACIÓN Y PROMOCIÓN DE MOVILIDAD SUSTENTABLE"]
["SECRETARÍA DE DESARROLLO URBANO Y VIVIENDA",null,null,null,null,null,null,null,null,null,null,null,null,null,null,null,null,null,null,null,null,null,null,null,null,null,null,null,null,null,null,null,null,null,null,null,null,null,null,null,null,null,null,null,null,null,"E113","GESTIÓN INTEGRAL DE RIESGOS"]
["SECRETARÍA DE EDUCACIÓN, CIENCIA, TECNOLOGÍA E INNOVACIÓN",null,null,null,null,null,null,null,null,null,null,null,null,null,null,null,null,null,null,null,null,null,null,null,null,null,null,null,null,null,null,null,null,null,null,null,null,null,null,null,null,null,null,null,null,null,"E114","ATENCIÓN Y SEGUIMIENTO ESPECIAL A GRUPOS VULNERABLES VÍCTIMAS DE LA VIOLENCIA"]
["SECRETARÍA DE GESTIÓN INTEGRAL DE RIESGOS Y PROTECCIÓN CIVIL",null,null,null,null,null,null,null,null,null,null,null,null,null,null,null,null,null,null,null,null,null,null,null,null,null,null,null,null,null,null,null,null,null,null,null,null,null,null,null,null,null,null,null,null,null,"E115","ATENCIÓN Y PREVENCIÓN DE LA VIOLENCIA CONTRA LAS MUJERES"]
["SECRETARÍA DE GOBIERNO",null,null,null,null,null,null,null,null,null,null,null,null,null,null,null,null,null,null,null,null,null,null,null,null,null,null,null,null,null,null,null,null,null,null,null,null,null,null,null,null,null,null,null,null,null,"E116","PROGRAMA PILARES"]
["SECRETARÍA DE INCLUSIÓN Y BIENESTAR SOCIAL",null,null,null,null,null,null,null,null,null,null,null,null,null,null,null,null,null,null,null,null,null,null,null,null,null,null,null,null,null,null,null,null,null,null,null,null,null,null,null,null,null,null,null,null,null,"E117","MANTENIMIENTO DE ESPACIOS PÚBLICOS"]
["SECRETARÍA DE LA CONTRALORÍA GENERAL",null,null,null,null,null,null,null,null,null,null,null,null,null,null,null,null,null,null,null,null,null,null,null,null,null,null,null,null,null,null,null,null,null,null,null,null,null,null,null,null,null,null,null,null,null,"E118","ACCIONES POLICIALES Y PREVENCIÓN DEL DELITO"]
["SECRETARÍA DE LAS MUJERES",null,null,null,null,null,null,null,null,null,null,null,null,null,null,null,null,null,null,null,null,null,null,null,null,null,null,null,null,null,null,null,null,null,null,null,null,null,null,null,null,null,null,null,null,null,"E119","FORTALECIMIENTO EN MATERIA JURÍDICA"]
["SECRETARÍA DE MOVILIDAD",null,null,null,null,null,null,null,null,null,null,null,null,null,null,null,null,null,null,null,null,null,null,null,null,null,null,null,null,null,null,null,null,null,null,null,null,null,null,null,null,null,null,null,null,null,"E120","ATENCIÓN VETERINARIA"]
["SECRETARÍA DE OBRAS Y SERVICIOS",null,null,null,null,null,null,null,null,null,null,null,null,null,null,null,null,null,null,null,null,null,null,null,null,null,null,null,null,null,null,null,null,null,null,null,null,null,null,null,null,null,null,null,null,null,"E122","REFORESTACIÓN EN SUELO DE CONSERVACIÓN"]
["SECRETARÍA DE PUEBLOS Y BARRIOS ORIGINARIOS Y COMUNIDADES INDÍGENAS RESIDENTES",null,null,null,null,null,null,null,null,null,null,null,null,null,null,null,null,null,null,null,null,null,null,null,null,null,null,null,null,null,null,null,null,null,null,null,null,null,null,null,null,null,null,null,null,null,"E123","MANEJO INTEGRAL DE RESIDUOS SÓLIDOS URBANOS"]
["SECRETARÍA DE SALUD",null,null,null,null,null,null,null,null,null,null,null,null,null,null,null,null,null,null,null,null,null,null,null,null,null,null,null,null,null,null,null,null,null,null,null,null,null,null,null,null,null,null,null,null,null,"E124","PROGRAMA INTEGRAL DE MOVILIDAD INTELIGENTE"]
["SECRETARÍA DE SEGURIDAD CIUDADANA",null,null,null,null,null,null,null,null,null,null,null,null,null,null,null,null,null,null,null,null,null,null,null,null,null,null,null,null,null,null,null,null,null,null,null,null,null,null,null,null,null,null,null,null,null,"E125","ACCIONES PARA PROYECTOS AMBIENTALES"]
["SECRETARÍA DE TRABAJO Y FOMENTO AL EMPLEO",null,null,null,null,null,null,null,null,null,null,null,null,null,null,null,null,null,null,null,null,null,null,null,null,null,null,null,null,null,null,null,null,null,null,null,null,null,null,null,null,null,null,null,null,null,"E126","PRODUCCIÓN DE CONTENIDO CULTURAL Y ARTÍSTICO"]
["SECRETARÍA DE TURISMO",null,null,null,null,null,null,null,null,null,null,null,null,null,null,null,null,null,null,null,null,null,null,null,null,null,null,null,null,null,null,null,null,null,null,null,null,null,null,null,null,null,null,null,null,null,"E127","PREVENCIÓN Y CONTROL DE ENFERMEDADES"]
["SECRETARÍA DEL MEDIO AMBIENTE",null,null,null,null,null,null,null,null,null,null,null,null,null,null,null,null,null,null,null,null,null,null,null,null,null,null,null,null,null,null,null,null,null,null,null,null,null,null,null,null,null,null,null,null,null,"E128","MANTENIMIENTO Y REHABILITACIÓN DE ÁREAS VERDES"]
["SERVICIO DE TRANSPORTES ELÉCTRICOS",null,null,null,null,null,null,null,null,null,null,null,null,null,null,null,null,null,null,null,null,null,null,null,null,null,null,null,null,null,null,null,null,null,null,null,null,null,null,null,null,null,null,null,null,null,"E129","PROVISIÓN EMERGENTE DE AGUA POTABLE"]
["SERVICIOS DE SALUD PÚBLICA",null,null,null,null,null,null,null,null,null,null,null,null,null,null,null,null,null,null,null,null,null,null,null,null,null,null,null,null,null,null,null,null,null,null,null,null,null,null,null,null,null,null,null,null,null,"E130","OPERACIÓN DE PANTEONES PÚBLICOS"]
["SERVICIOS METROPOLITANOS, S.A. DE C.V.",null,null,null,null,null,null,null,null,null,null,null,null,null,null,null,null,null,null,null,null,null,null,null,null,null,null,null,null,null,null,null,null,null,null,null,null,null,null,null,null,null,null,null,null,null,"E131","RESCATE, REHABILITACIÓN Y MANTENIMIENTO DE ESPACIOS DEPORTIVOS"]
["SISTEMA DE AGUAS",null,null,null,null,null,null,null,null,null,null,null,null,null,null,null,null,null,null,null,null,null,null,null,null,null,null,null,null,null,null,null,null,null,null,null,null,null,null,null,null,null,null,null,null,null,"E134","ATENCIÓN INTEGRAL PARA EL DESARROLLO INFANTIL"]
["SISTEMA DE TRANSPORTE COLECTIVO METRO",null,null,null,null,null,null,null,null,null,null,null,null,null,null,null,null,null,null,null,null,null,null,null,null,null,null,null,null,null,null,null,null,null,null,null,null,null,null,null,null,null,null,null,null,null,"E136","OPERACIÓN DE VIVEROS"]
["SISTEMA PARA EL DESARROLLO INTEGRAL DE LA FAMILIA",null,null,null,null,null,null,null,null,null,null,null,null,null,null,null,null,null,null,null,null,null,null,null,null,null,null,null,null,null,null,null,null,null,null,null,null,null,null,null,null,null,null,null,null,null,"E137","OPERACIÓN DE CENTROS DE DESARROLLO INFANTIL"]
["SISTEMA PÚBLICO DE RADIO DIFUSIÓN",null,null,null,null,null,null,null,null,null,null,null,null,null,null,null,null,null,null,null,null,null,null,null,null,null,null,null,null,null,null,null,null,null,null,null,null,null,null,null,null,null,null,null,null,null,"E138","ATENCIÓN Y PREVENCIÓN DE LA VIOLENCIA INTRAFAMILIAR"]
["TESORERÍA ",null,null,null,null,null,null,null,null,null,null,null,null,null,null,null,null,null,null,null,null,null,null,null,null,null,null,null,null,null,null,null,null,null,null,null,null,null,null,null,null,null,null,null,null,null,"E142","APOYO INTEGRAL PARA PERSONAS CON DISCAPACIDAD"]
["TRIBUNAL DE JUSTICIA ADMINISTRATIVA",null,null,null,null,null,null,null,null,null,null,null,null,null,null,null,null,null,null,null,null,null,null,null,null,null,null,null,null,null,null,null,null,null,null,null,null,null,null,null,null,null,null,null,null,null,"E144","APOYO INTEGRAL PARA MUJERES EMBARAZADAS Y MADRES EN SITUACIÓN DE VULNERABILIDAD"]
["TRIBUNAL ELECTORAL",null,null,null,null,null,null,null,null,null,null,null,null,null,null,null,null,null,null,null,null,null,null,null,null,null,null,null,null,null,null,null,null,null,null,null,null,null,null,null,null,null,null,null,null,null,"E145","APRENDE Y CREA DIFERENTE"]
["TRIBUNAL SUPERIOR DE JUSTICIA",null,null,null,null,null,null,null,null,null,null,null,null,null,null,null,null,null,null,null,null,null,null,null,null,null,null,null,null,null,null,null,null,null,null,null,null,null,null,null,null,null,null,null,null,null,"E146","PROTECCIÓN Y DEFENSA DE NIÑAS, NIÑOS Y ADOLECENTES"]
["UNIVERSIDAD AUTÓNOMA DE LA CIUDAD DE MÉXICO",null,null,null,null,null,null,null,null,null,null,null,null,null,null,null,null,null,null,null,null,null,null,null,null,null,null,null,null,null,null,null,null,null,null,null,null,null,null,null,null,null,null,null,null,null,"E147","ATENCIÓN SOCIAL INMEDIATA A POBLACIONES PRIORITARIAS (ASIPP)"]
["UNIVERSIDAD DE LA POLICÍA",null,null,null,null,null,null,null,null,null,null,null,null,null,null,null,null,null,null,null,null,null,null,null,null,null,null,null,null,null,null,null,null,null,null,null,null,null,null,null,null,null,null,null,null,null,"E148","ENTRE LA CALLE Y EL HOGAR"]
["UNIVERSIDAD DE LA SALUD",null,null,null,null,null,null,null,null,null,null,null,null,null,null,null,null,null,null,null,null,null,null,null,null,null,null,null,null,null,null,null,null,null,null,null,null,null,null,null,null,null,null,null,null,null,"E150","FOMENTO Y MEJORAMIENTO DE LOS MERCADOS PÚBLICOS DE LA CIUDAD DE MÉXICO"]
[null,null,null,null,null,null,null,null,null,null,null,null,null,null,null,null,null,null,null,null,null,null,null,null,null,null,null,null,null,null,null,null,null,null,null,null,null,null,null,null,null,null,null,null,null,null,"E152","PROMOCIÓN DE AUTOCUIDADO Y ENVEGECIMIENTO DIGNO DE LAS PERSONAS MAYORES Y GRUPOS DE ATENCIÓN PRIORITARIA"]
[null,null,null,null,null,null,null,null,null,null,null,null,null,null,null,null,null,null,null,null,null,null,null,null,null,null,null,null,null,null,null,null,null,null,null,null,null,null,null,null,null,null,null,null,null,null,"E153","PROGRAMA PARA LA FORMACION DE PROFESIONALES DE LA SALUD"]
[null,null,null,null,null,null,null,null,null,null,null,null,null,null,null,null,null,null,null,null,null,null,null,null,null,null,null,null,null,null,null,null,null,null,null,null,null,null,null,null,null,null,null,null,null,null,"E154","Acceso a la justicia ambiental, urbana y de protección y bienestar animal"]
[null,null,null,null,null,null,null,null,null,null,null,null,null,null,null,null,null,null,null,null,null,null,null,null,null,null,null,null,null,null,null,null,null,null,null,null,null,null,null,null,null,null,null,null,null,null,"F001","ALIANZA PARA LA PRESERVACIÓN DEL PATRIMONIO CULTURAL DE LA CIUDAD DE MÉXICO"]
[null,null,null,null,null,null,null,null,null,null,null,null,null,null,null,null,null,null,null,null,null,null,null,null,null,null,null,null,null,null,null,null,null,null,null,null,null,null,null,null,null,null,null,null,null,null,"F003","CONVENIOS EN MATERIA DE EDUCACIÓN, INNOVACIÓN, CIENCIA Y TECNOLOGÍA"]
[null,null,null,null,null,null,null,null,null,null,null,null,null,null,null,null,null,null,null,null,null,null,null,null,null,null,null,null,null,null,null,null,null,null,null,null,null,null,null,null,null,null,null,null,null,null,"F005","DESARROLLO Y PROMOCIÓN DE PRODUCTOS Y PROYECTOS TURÍSTICOS SUSTENTABLES"]
[null,null,null,null,null,null,null,null,null,null,null,null,null,null,null,null,null,null,null,null,null,null,null,null,null,null,null,null,null,null,null,null,null,null,null,null,null,null,null,null,null,null,null,null,null,null,"F006","FINANCIAMIENTO A MICROCRÉDITOS PARA EL AUTOEMPLEO, ATENCIÓN A LAS MEDIANAS Y PEQUEÑAS EMPRESAS Y COMERCIALIZACIÓN DE PRODUCTOS RURALES"]
[null,null,null,null,null,null,null,null,null,null,null,null,null,null,null,null,null,null,null,null,null,null,null,null,null,null,null,null,null,null,null,null,null,null,null,null,null,null,null,null,null,null,null,null,null,null,"F008","PROMOCIÓN DE LA INVERSIÓN, EL DESARROLLO, COMPETITIVIDAD E INNOVACIÓN DE LOS SECTORES INDUSTRIAL, COMERCIAL Y DE SERVICIOS"]
[null,null,null,null,null,null,null,null,null,null,null,null,null,null,null,null,null,null,null,null,null,null,null,null,null,null,null,null,null,null,null,null,null,null,null,null,null,null,null,null,null,null,null,null,null,null,"F012","PROMOCIÓN Y FOMENTO DE LOS DERECHOS HUMANOS DE LA ADOLESCENCIA Y LA INFANCIA"]
[null,null,null,null,null,null,null,null,null,null,null,null,null,null,null,null,null,null,null,null,null,null,null,null,null,null,null,null,null,null,null,null,null,null,null,null,null,null,null,null,null,null,null,null,null,null,"F013","OPERACIÓN DE CENTROS CULTURALES, MUSEOS, TEATROS Y ESPACIOS PARA EL ARTE Y CULTURA"]
[null,null,null,null,null,null,null,null,null,null,null,null,null,null,null,null,null,null,null,null,null,null,null,null,null,null,null,null,null,null,null,null,null,null,null,null,null,null,null,null,null,null,null,null,null,null,"F014","PROMOCIÓN Y FOMENTO DE LAS SOCIEDADES COOPERATIVAS"]
[null,null,null,null,null,null,null,null,null,null,null,null,null,null,null,null,null,null,null,null,null,null,null,null,null,null,null,null,null,null,null,null,null,null,null,null,null,null,null,null,null,null,null,null,null,null,"F016","PROMOCIÓN Y FORTALECIMIENTO DE LA PARTICIPACIÓN CIUDADANA"]
[null,null,null,null,null,null,null,null,null,null,null,null,null,null,null,null,null,null,null,null,null,null,null,null,null,null,null,null,null,null,null,null,null,null,null,null,null,null,null,null,null,null,null,null,null,null,"F017","PROGRAMA DE CULTURA FÍSICA Y EVENTOS DEPORTIVOS"]
[null,null,null,null,null,null,null,null,null,null,null,null,null,null,null,null,null,null,null,null,null,null,null,null,null,null,null,null,null,null,null,null,null,null,null,null,null,null,null,null,null,null,null,null,null,null,"F018","VINCULACIÓN Y FORTALECIMIENTO DE LA CULTURA Y LAS ARTES"]
[null,null,null,null,null,null,null,null,null,null,null,null,null,null,null,null,null,null,null,null,null,null,null,null,null,null,null,null,null,null,null,null,null,null,null,null,null,null,null,null,null,null,null,null,null,null,"F021","DIVULGACIÓN DE CONOCIMIENTO CIENTÍFICO TECNOLÓGICO Y DE INNOVACIÓN"]
[null,null,null,null,null,null,null,null,null,null,null,null,null,null,null,null,null,null,null,null,null,null,null,null,null,null,null,null,null,null,null,null,null,null,null,null,null,null,null,null,null,null,null,null,null,null,"F022","DESARROLLO, PROMOCIÓN Y POSICIONAMIENTO DE LA CIUDAD DE MÉXICO Y SU MARCA CDMX"]
[null,null,null,null,null,null,null,null,null,null,null,null,null,null,null,null,null,null,null,null,null,null,null,null,null,null,null,null,null,null,null,null,null,null,null,null,null,null,null,null,null,null,null,null,null,null,"F023","PROMOCIÓN Y DIFUSIÓN DE ACCIONES DE GOBIERNO"]
[null,null,null,null,null,null,null,null,null,null,null,null,null,null,null,null,null,null,null,null,null,null,null,null,null,null,null,null,null,null,null,null,null,null,null,null,null,null,null,null,null,null,null,null,null,null,"F024","ACCIONES DE EDUCACIÓN, PREVENCIÓN Y ATENCIÓN DE POLÍTICAS DE SEGURIDAD VIAL"]
[null,null,null,null,null,null,null,null,null,null,null,null,null,null,null,null,null,null,null,null,null,null,null,null,null,null,null,null,null,null,null,null,null,null,null,null,null,null,null,null,null,null,null,null,null,null,"F026","FOMENTO SANITARIO EN ESTABLECIMIENTOS, PRODUCTOS, ACTIVIDADES, SERVICIOS Y PERSONAS"]
[null,null,null,null,null,null,null,null,null,null,null,null,null,null,null,null,null,null,null,null,null,null,null,null,null,null,null,null,null,null,null,null,null,null,null,null,null,null,null,null,null,null,null,null,null,null,"F027","PROMOCIÓN Y FORTALECIMIENTO DE LA PARTICIPACIÓN CIUDADANA"]
[null,null,null,null,null,null,null,null,null,null,null,null,null,null,null,null,null,null,null,null,null,null,null,null,null,null,null,null,null,null,null,null,null,null,null,null,null,null,null,null,null,null,null,null,null,null,"F029","FINANCIAMIENTO A LAS MIPYMES"]
[null,null,null,null,null,null,null,null,null,null,null,null,null,null,null,null,null,null,null,null,null,null,null,null,null,null,null,null,null,null,null,null,null,null,null,null,null,null,null,null,null,null,null,null,null,null,"F031","ORGANIZACIÓN DE EVENTOS CÍVICOS, FESTIVIDADES PATRIAS Y TRADICIONES"]
[null,null,null,null,null,null,null,null,null,null,null,null,null,null,null,null,null,null,null,null,null,null,null,null,null,null,null,null,null,null,null,null,null,null,null,null,null,null,null,null,null,null,null,null,null,null,"F032","PROMOCIÓN DE LA CULTURA FÍSICA Y DEPORTIVA"]
[null,null,null,null,null,null,null,null,null,null,null,null,null,null,null,null,null,null,null,null,null,null,null,null,null,null,null,null,null,null,null,null,null,null,null,null,null,null,null,null,null,null,null,null,null,null,"F033","PROYECTOS DE DESARROLLO Y  FOMENTO AGROPECUARIO"]
[null,null,null,null,null,null,null,null,null,null,null,null,null,null,null,null,null,null,null,null,null,null,null,null,null,null,null,null,null,null,null,null,null,null,null,null,null,null,null,null,null,null,null,null,null,null,"F034","FORTALECIMIENTO DE COMPETENCIAS EN ENERGÍA SOLAR"]
[null,null,null,null,null,null,null,null,null,null,null,null,null,null,null,null,null,null,null,null,null,null,null,null,null,null,null,null,null,null,null,null,null,null,null,null,null,null,null,null,null,null,null,null,null,null,"G002","DISEÑO URBANO Y REGULACIÓN DE LOS ESPACIOS PÚBLICOS"]
[null,null,null,null,null,null,null,null,null,null,null,null,null,null,null,null,null,null,null,null,null,null,null,null,null,null,null,null,null,null,null,null,null,null,null,null,null,null,null,null,null,null,null,null,null,null,"G005","REGULACIÓN DE CORREDORES DE TRANSPORTE PÚBLICO Y CENTROS DE TRANSFERENCIA MODAL"]
[null,null,null,null,null,null,null,null,null,null,null,null,null,null,null,null,null,null,null,null,null,null,null,null,null,null,null,null,null,null,null,null,null,null,null,null,null,null,null,null,null,null,null,null,null,null,"G009","DICTAMINACIÓN DE LAS ESTRUCTURAS ORGANIZACIONALES"]
[null,null,null,null,null,null,null,null,null,null,null,null,null,null,null,null,null,null,null,null,null,null,null,null,null,null,null,null,null,null,null,null,null,null,null,null,null,null,null,null,null,null,null,null,null,null,"G010"," RECUPERACIÓN ÓPTIMA DE LOS CRÉDITOS"]
[null,null,null,null,null,null,null,null,null,null,null,null,null,null,null,null,null,null,null,null,null,null,null,null,null,null,null,null,null,null,null,null,null,null,null,null,null,null,null,null,null,null,null,null,null,null,"G011","ACCIONES PARA EL CUMPLIMIENTO  DE LAS DISPOSICIONES MERCANTILES, JURÍDICAS Y ADMINISTRATIVAS"]
[null,null,null,null,null,null,null,null,null,null,null,null,null,null,null,null,null,null,null,null,null,null,null,null,null,null,null,null,null,null,null,null,null,null,null,null,null,null,null,null,null,null,null,null,null,null,"G013","INSPECCIÓN Y VIGILANCIA MEDIOAMBIENTAL"]
[null,null,null,null,null,null,null,null,null,null,null,null,null,null,null,null,null,null,null,null,null,null,null,null,null,null,null,null,null,null,null,null,null,null,null,null,null,null,null,null,null,null,null,null,null,null,"G014","REGULACIÓN Y REGISTRO DE ESTABLECIMIENTOS MERCANTILES EN MATERIA ECONÓMICA"]
[null,null,null,null,null,null,null,null,null,null,null,null,null,null,null,null,null,null,null,null,null,null,null,null,null,null,null,null,null,null,null,null,null,null,null,null,null,null,null,null,null,null,null,null,null,null,"G016","CONTROL Y REGULACIÓN SANITARIA"]
[null,null,null,null,null,null,null,null,null,null,null,null,null,null,null,null,null,null,null,null,null,null,null,null,null,null,null,null,null,null,null,null,null,null,null,null,null,null,null,null,null,null,null,null,null,null,"G017","VIGILANCIA SANITARIA EN ESTABLECIMIENTOS, PRODUCTOS, ACTIVIDADES, SERVICIOS Y PERSONAS"]
[null,null,null,null,null,null,null,null,null,null,null,null,null,null,null,null,null,null,null,null,null,null,null,null,null,null,null,null,null,null,null,null,null,null,null,null,null,null,null,null,null,null,null,null,null,null,"G018","GESTIÓN Y REGULACIÓN DE SISTEMAS DE MOVILIDAD Y TRANSPORTE, Y ESTACIONAMIENTOS"]
[null,null,null,null,null,null,null,null,null,null,null,null,null,null,null,null,null,null,null,null,null,null,null,null,null,null,null,null,null,null,null,null,null,null,null,null,null,null,null,null,null,null,null,null,null,null,"G019","CONTROL, ORDENAMIENTO Y SISTEMATIZACIÓN DEL TRANSPORTE"]
[null,null,null,null,null,null,null,null,null,null,null,null,null,null,null,null,null,null,null,null,null,null,null,null,null,null,null,null,null,null,null,null,null,null,null,null,null,null,null,null,null,null,null,null,null,null,"G021","VERIFICACIÓN, INSPECCIÓN  Y VIGILANCIA AMBIENTAL"]
[null,null,null,null,null,null,null,null,null,null,null,null,null,null,null,null,null,null,null,null,null,null,null,null,null,null,null,null,null,null,null,null,null,null,null,null,null,null,null,null,null,null,null,null,null,null,"G022","ACCIONES PARA EL CUMPLIMIENTO  DE LAS DISPOSICIONES MERCANTILES, JURÍDICAS Y ADMINISTRATIVAS"]
[null,null,null,null,null,null,null,null,null,null,null,null,null,null,null,null,null,null,null,null,null,null,null,null,null,null,null,null,null,null,null,null,null,null,null,null,null,null,null,null,null,null,null,null,null,null,"G023","PROTECCIÓN Y REGULACIÓN ANIMAL"]
[null,null,null,null,null,null,null,null,null,null,null,null,null,null,null,null,null,null,null,null,null,null,null,null,null,null,null,null,null,null,null,null,null,null,null,null,null,null,null,null,null,null,null,null,null,null,"G072","INVESTIGACIÓN Y SEGUIMIENTO DE DELITOS FINANCIEROS"]
[null,null,null,null,null,null,null,null,null,null,null,null,null,null,null,null,null,null,null,null,null,null,null,null,null,null,null,null,null,null,null,null,null,null,null,null,null,null,null,null,null,null,null,null,null,null,"J001","PAGO DE PENSIONES Y JUBILACIONES"]
[null,null,null,null,null,null,null,null,null,null,null,null,null,null,null,null,null,null,null,null,null,null,null,null,null,null,null,null,null,null,null,null,null,null,null,null,null,null,null,null,null,null,null,null,null,null,"K001","CONSTRUCCIÓN Y MEJORAMIENTO DE LA INFRAESTRUCTURA DE SALUD"]
[null,null,null,null,null,null,null,null,null,null,null,null,null,null,null,null,null,null,null,null,null,null,null,null,null,null,null,null,null,null,null,null,null,null,null,null,null,null,null,null,null,null,null,null,null,null,"K002","CONSTRUCCIÓN Y MEJORAMIENTO DE LA INFRAESTRUCTURA EDUCATIVA"]
[null,null,null,null,null,null,null,null,null,null,null,null,null,null,null,null,null,null,null,null,null,null,null,null,null,null,null,null,null,null,null,null,null,null,null,null,null,null,null,null,null,null,null,null,null,null,"K003","INFRAESTRUCTURA DE AGUA POTABLE, ALCANTARILLADO Y SANEAMIENTO"]
[null,null,null,null,null,null,null,null,null,null,null,null,null,null,null,null,null,null,null,null,null,null,null,null,null,null,null,null,null,null,null,null,null,null,null,null,null,null,null,null,null,null,null,null,null,null,"K004","INFRAESTRUCTURA DE TRANSPORTE PÚBLICO"]
[null,null,null,null,null,null,null,null,null,null,null,null,null,null,null,null,null,null,null,null,null,null,null,null,null,null,null,null,null,null,null,null,null,null,null,null,null,null,null,null,null,null,null,null,null,null,"K005","MEJORAMIENTO Y MANTENIMIENTO DE LA INFRAESTRUCTURA URBANA"]
[null,null,null,null,null,null,null,null,null,null,null,null,null,null,null,null,null,null,null,null,null,null,null,null,null,null,null,null,null,null,null,null,null,null,null,null,null,null,null,null,null,null,null,null,null,null,"K006","MEJORAMIENTO Y MANTENIMIENTO DE LA INFRAESTRUCTURA VIAL"]
[null,null,null,null,null,null,null,null,null,null,null,null,null,null,null,null,null,null,null,null,null,null,null,null,null,null,null,null,null,null,null,null,null,null,null,null,null,null,null,null,null,null,null,null,null,null,"K007","SISTEMA DE TRANSPORTE PÚBLICO CABLEBÚS"]
[null,null,null,null,null,null,null,null,null,null,null,null,null,null,null,null,null,null,null,null,null,null,null,null,null,null,null,null,null,null,null,null,null,null,null,null,null,null,null,null,null,null,null,null,null,null,"K008","AMPLIACIÓN, OPERACIÓN Y MANTENIMIENTO DEL ALUMBRADO PÚBLICO"]
[null,null,null,null,null,null,null,null,null,null,null,null,null,null,null,null,null,null,null,null,null,null,null,null,null,null,null,null,null,null,null,null,null,null,null,null,null,null,null,null,null,null,null,null,null,null,"K010","CONSTRUCCIÓN, MANTENIMIENTO Y AMPLIACIÓN DE EDIFICIOS PÚBLICOS"]
[null,null,null,null,null,null,null,null,null,null,null,null,null,null,null,null,null,null,null,null,null,null,null,null,null,null,null,null,null,null,null,null,null,null,null,null,null,null,null,null,null,null,null,null,null,null,"K012","REHABILITACIÓN, EQUIPAMIENTO Y CONSTRUCCIÓN DE INFRAESTRUCTURA EDUCATIVA"]
[null,null,null,null,null,null,null,null,null,null,null,null,null,null,null,null,null,null,null,null,null,null,null,null,null,null,null,null,null,null,null,null,null,null,null,null,null,null,null,null,null,null,null,null,null,null,"K014","INFRAESTRUCTURA DE AGUA POTABLE, ALCANTARILLADO Y SANEAMIENTO"]
[null,null,null,null,null,null,null,null,null,null,null,null,null,null,null,null,null,null,null,null,null,null,null,null,null,null,null,null,null,null,null,null,null,null,null,null,null,null,null,null,null,null,null,null,null,null,"K015","CONSTRUCCIÓN DE INFRAESTRUCTURA PÚBLICA"]
[null,null,null,null,null,null,null,null,null,null,null,null,null,null,null,null,null,null,null,null,null,null,null,null,null,null,null,null,null,null,null,null,null,null,null,null,null,null,null,null,null,null,null,null,null,null,"K016","REHABILITACIÓN Y MANTENIMIENTO DE INFRAESTRUCTURA PÚBLICA"]
[null,null,null,null,null,null,null,null,null,null,null,null,null,null,null,null,null,null,null,null,null,null,null,null,null,null,null,null,null,null,null,null,null,null,null,null,null,null,null,null,null,null,null,null,null,null,"K017","ACCIONES DE OBRAS Y SERVICIOS PARA LA REGENERACIÓN DE BARRIOS"]
[null,null,null,null,null,null,null,null,null,null,null,null,null,null,null,null,null,null,null,null,null,null,null,null,null,null,null,null,null,null,null,null,null,null,null,null,null,null,null,null,null,null,null,null,null,null,"M001","ACTIVIDADES DE APOYO ADMINISTRATIVO"]
[null,null,null,null,null,null,null,null,null,null,null,null,null,null,null,null,null,null,null,null,null,null,null,null,null,null,null,null,null,null,null,null,null,null,null,null,null,null,null,null,null,null,null,null,null,null,"N001","CUMPLIMIENTO DE LOS PROGRAMAS DE PROTECCIÓN CIVIL"]
[null,null,null,null,null,null,null,null,null,null,null,null,null,null,null,null,null,null,null,null,null,null,null,null,null,null,null,null,null,null,null,null,null,null,null,null,null,null,null,null,null,null,null,null,null,null,"N004","PREVENCIÓN Y COMBATE DE INCENDIOS"]
[null,null,null,null,null,null,null,null,null,null,null,null,null,null,null,null,null,null,null,null,null,null,null,null,null,null,null,null,null,null,null,null,null,null,null,null,null,null,null,null,null,null,null,null,null,null,"O001","ACTIVIDADES DE APOYO A LA FUNCIÓN PÚBLICA Y BUEN GOBIERNO"]
[null,null,null,null,null,null,null,null,null,null,null,null,null,null,null,null,null,null,null,null,null,null,null,null,null,null,null,null,null,null,null,null,null,null,null,null,null,null,null,null,null,null,null,null,null,null,"O002","IMPULSO A LA TRANSPARENCIA Y RENDICIÓN DE CUENTAS"]
[null,null,null,null,null,null,null,null,null,null,null,null,null,null,null,null,null,null,null,null,null,null,null,null,null,null,null,null,null,null,null,null,null,null,null,null,null,null,null,null,null,null,null,null,null,null,"O003","INHIBICIÓN Y SANCIÓN DE LAS PRÁCTICAS DE CORRUPCIÓN"]
[null,null,null,null,null,null,null,null,null,null,null,null,null,null,null,null,null,null,null,null,null,null,null,null,null,null,null,null,null,null,null,null,null,null,null,null,null,null,null,null,null,null,null,null,null,null,"O004","INTEGRACIÓN DE SERVICIOS TECNOLÓGICOS E INFORMÁTICOS"]
[null,null,null,null,null,null,null,null,null,null,null,null,null,null,null,null,null,null,null,null,null,null,null,null,null,null,null,null,null,null,null,null,null,null,null,null,null,null,null,null,null,null,null,null,null,null,"O005","PROMOCIÓN DE LA CULTURA A LEGALIDAD"]
[null,null,null,null,null,null,null,null,null,null,null,null,null,null,null,null,null,null,null,null,null,null,null,null,null,null,null,null,null,null,null,null,null,null,null,null,null,null,null,null,null,null,null,null,null,null,"O006","FISCALIZACIÓN A LA GESTIÓN PÚBLICA"]
[null,null,null,null,null,null,null,null,null,null,null,null,null,null,null,null,null,null,null,null,null,null,null,null,null,null,null,null,null,null,null,null,null,null,null,null,null,null,null,null,null,null,null,null,null,null,"O016","INTEGRACIÓN DE SERVICIOS TECNOLÓGICOS E INFORMÁTICOS"]
[null,null,null,null,null,null,null,null,null,null,null,null,null,null,null,null,null,null,null,null,null,null,null,null,null,null,null,null,null,null,null,null,null,null,null,null,null,null,null,null,null,null,null,null,null,null,"P001","PROMOCIÓN INTEGRAL PARA EL CUMPLIMIENTO DE LOS DERECHOS HUMANOS DE LAS NIÑAS Y MUJERES"]
[null,null,null,null,null,null,null,null,null,null,null,null,null,null,null,null,null,null,null,null,null,null,null,null,null,null,null,null,null,null,null,null,null,null,null,null,null,null,null,null,null,null,null,null,null,null,"P002","PROMOCIÓN INTEGRAL PARA EL CUMPLIMIENTO DE LOS DERECHOS HUMANOS"]
[null,null,null,null,null,null,null,null,null,null,null,null,null,null,null,null,null,null,null,null,null,null,null,null,null,null,null,null,null,null,null,null,null,null,null,null,null,null,null,null,null,null,null,null,null,null,"P003","PLANEACIÓN, SEGUIMIENTO Y EVALUACIÓN A POLÍTICAS PÚBLICAS"]
[null,null,null,null,null,null,null,null,null,null,null,null,null,null,null,null,null,null,null,null,null,null,null,null,null,null,null,null,null,null,null,null,null,null,null,null,null,null,null,null,null,null,null,null,null,null,"P004","PROMOCIÓN INTEGRAL PARA EL CUMPLIMIENTO DE LOS DERECHOS DE LA NIÑEZ Y DE LA ADOLESCENCIA "]
[null,null,null,null,null,null,null,null,null,null,null,null,null,null,null,null,null,null,null,null,null,null,null,null,null,null,null,null,null,null,null,null,null,null,null,null,null,null,null,null,null,null,null,null,null,null,"P005","CALIDAD DEL AIRE"]
[null,null,null,null,null,null,null,null,null,null,null,null,null,null,null,null,null,null,null,null,null,null,null,null,null,null,null,null,null,null,null,null,null,null,null,null,null,null,null,null,null,null,null,null,null,null,"P007","GOBERNABILIDAD Y MEJORAMIENTO DE LOS NIVELES DE VIDA DE LOS HABITANTES DE LA CIUDAD DE MÉXICO"]
[null,null,null,null,null,null,null,null,null,null,null,null,null,null,null,null,null,null,null,null,null,null,null,null,null,null,null,null,null,null,null,null,null,null,null,null,null,null,null,null,null,null,null,null,null,null,"P014","DISEÑO DE LA POLÍTICA DE EGRESOS"]
[null,null,null,null,null,null,null,null,null,null,null,null,null,null,null,null,null,null,null,null,null,null,null,null,null,null,null,null,null,null,null,null,null,null,null,null,null,null,null,null,null,null,null,null,null,null,"P016","DISEÑO E INSTRUMENTACIÓN DE ACCIONES EN MATERIA DE COMPETITIVIDAD, EMPRENDIMIENTO, COMPETENCIA Y POLÍTICA REGULATORIA"]
[null,null,null,null,null,null,null,null,null,null,null,null,null,null,null,null,null,null,null,null,null,null,null,null,null,null,null,null,null,null,null,null,null,null,null,null,null,null,null,null,null,null,null,null,null,null,"P017"," ACCIONES PARA LA TRANSVERSALIZACIÓN DEL ENFOQUE DE DERECHOS HUMANOS"]
[null,null,null,null,null,null,null,null,null,null,null,null,null,null,null,null,null,null,null,null,null,null,null,null,null,null,null,null,null,null,null,null,null,null,null,null,null,null,null,null,null,null,null,null,null,null,"P019","PLANEACIÓN DE LA POLÍTICA DE TURISMO"]
[null,null,null,null,null,null,null,null,null,null,null,null,null,null,null,null,null,null,null,null,null,null,null,null,null,null,null,null,null,null,null,null,null,null,null,null,null,null,null,null,null,null,null,null,null,null,"P020","PLANEACIÓN Y SEGUIMIENTO DE LA POLÍTICA GUBERNAMENTAL"]
[null,null,null,null,null,null,null,null,null,null,null,null,null,null,null,null,null,null,null,null,null,null,null,null,null,null,null,null,null,null,null,null,null,null,null,null,null,null,null,null,null,null,null,null,null,null,"P022","PLANEACIÓN DE POLÍTICAS PÚBLICAS PARA MEJORAR LA ATENCIÓN DE LAS ADICCIONES"]
[null,null,null,null,null,null,null,null,null,null,null,null,null,null,null,null,null,null,null,null,null,null,null,null,null,null,null,null,null,null,null,null,null,null,null,null,null,null,null,null,null,null,null,null,null,null,"P023","PLANEACIÓN Y GESTIÓN DEL ORDENAMIENTO TERRITORIAL Y ASENTAMIENTOS HUMANOS"]
[null,null,null,null,null,null,null,null,null,null,null,null,null,null,null,null,null,null,null,null,null,null,null,null,null,null,null,null,null,null,null,null,null,null,null,null,null,null,null,null,null,null,null,null,null,null,"P025","PLANEACIÓN, ELABORACIÓN Y SEGUIMIENTO DE LA POLÍTICA DE DESARROLLO ECONÓMICO"]
[null,null,null,null,null,null,null,null,null,null,null,null,null,null,null,null,null,null,null,null,null,null,null,null,null,null,null,null,null,null,null,null,null,null,null,null,null,null,null,null,null,null,null,null,null,null,"P026","DISEÑO, COORDINACIÓN Y OPERACIÓN DE LA POLÍTICA FISCAL Y HACENDARIA"]
[null,null,null,null,null,null,null,null,null,null,null,null,null,null,null,null,null,null,null,null,null,null,null,null,null,null,null,null,null,null,null,null,null,null,null,null,null,null,null,null,null,null,null,null,null,null,"P027","POLÍTICAS PARA LA PREVENCIÓN Y COMBATE A LA DISCRIMINACIÓN"]
[null,null,null,null,null,null,null,null,null,null,null,null,null,null,null,null,null,null,null,null,null,null,null,null,null,null,null,null,null,null,null,null,null,null,null,null,null,null,null,null,null,null,null,null,null,null,"P029","EVALUACIÓN DE LA POLÍTICA DE DESARROLLO SOCIAL DE LA CIUDAD DE MÉXICO"]
[null,null,null,null,null,null,null,null,null,null,null,null,null,null,null,null,null,null,null,null,null,null,null,null,null,null,null,null,null,null,null,null,null,null,null,null,null,null,null,null,null,null,null,null,null,null,"P031","PLANEACIÓN, SEGUIMIENTO Y EVALUACIÓN A POLÍTICAS PÚBLICAS PARA EL DESARROLLO DE LAS PERSONAS CON DISCAPACIDAD"]
[null,null,null,null,null,null,null,null,null,null,null,null,null,null,null,null,null,null,null,null,null,null,null,null,null,null,null,null,null,null,null,null,null,null,null,null,null,null,null,null,null,null,null,null,null,null,"P034","PROYECTOS Y SERVICIOS ESTRATÉGICOS PARA BENEFICIO DE LA POBLACIÓN"]
[null,null,null,null,null,null,null,null,null,null,null,null,null,null,null,null,null,null,null,null,null,null,null,null,null,null,null,null,null,null,null,null,null,null,null,null,null,null,null,null,null,null,null,null,null,null,"P036","PLANEACIÓN DE POLÍTICAS PÚBLICAS ENFOCADAS AL DESARROLLO DE LOS PUEBLOS Y BARRIOS ORIGINARIOS Y COMUNIDADES INDÍGENAS RESIDENTES"]
[null,null,null,null,null,null,null,null,null,null,null,null,null,null,null,null,null,null,null,null,null,null,null,null,null,null,null,null,null,null,null,null,null,null,null,null,null,null,null,null,null,null,null,null,null,null,"P041","PLANEACIÓN, ELABORACIÓN,  SEGUIMIENTO  Y EVALUACIÓN DE LAS POLÍTICAS PÚBLICAS Y NORMATIVIDAD EN MATERIA DE DESARROLLO ECONÓMICO, SOCIAL Y AMBIENTAL"]
[null,null,null,null,null,null,null,null,null,null,null,null,null,null,null,null,null,null,null,null,null,null,null,null,null,null,null,null,null,null,null,null,null,null,null,null,null,null,null,null,null,null,null,null,null,null,"P044","ACCIONES PARA LA INTEGRACIÓN DEL TRANSPORTE PÚBLICO"]
[null,null,null,null,null,null,null,null,null,null,null,null,null,null,null,null,null,null,null,null,null,null,null,null,null,null,null,null,null,null,null,null,null,null,null,null,null,null,null,null,null,null,null,null,null,null,"P045"," DISEÑO INTEGRAL DE INFRAESTRUCTURA PEATONAL Y CICLISTA"]
[null,null,null,null,null,null,null,null,null,null,null,null,null,null,null,null,null,null,null,null,null,null,null,null,null,null,null,null,null,null,null,null,null,null,null,null,null,null,null,null,null,null,null,null,null,null,"P046","PLANEACIÓN INTEGRAL DE LAS POLÍTICAS PÚBLICAS DE LA ALCALDÍA"]
[null,null,null,null,null,null,null,null,null,null,null,null,null,null,null,null,null,null,null,null,null,null,null,null,null,null,null,null,null,null,null,null,null,null,null,null,null,null,null,null,null,null,null,null,null,null,"P047","PLANEACIÓN DE LA POLÍTICA DE TURISMO EN LAS ALCALDÍAS"]
[null,null,null,null,null,null,null,null,null,null,null,null,null,null,null,null,null,null,null,null,null,null,null,null,null,null,null,null,null,null,null,null,null,null,null,null,null,null,null,null,null,null,null,null,null,null,"P048","PLANEACIÓN, SEGUIMIENTO Y EVALUACIÓN A POLÍTICAS PÚBLICAS"]
[null,null,null,null,null,null,null,null,null,null,null,null,null,null,null,null,null,null,null,null,null,null,null,null,null,null,null,null,null,null,null,null,null,null,null,null,null,null,null,null,null,null,null,null,null,null,"P049","PLANEACIÓN Y GESTIÓN DEL ORDENAMIENTO TERRITORIAL Y ASENTAMIENTOS HUMANOS"]
[null,null,null,null,null,null,null,null,null,null,null,null,null,null,null,null,null,null,null,null,null,null,null,null,null,null,null,null,null,null,null,null,null,null,null,null,null,null,null,null,null,null,null,null,null,null,"P050","PLANEACIÓN Y GESTIÓN  PARA EL DESARROLLO SOCIAL INTEGRAL E INCLUYENTE"]
[null,null,null,null,null,null,null,null,null,null,null,null,null,null,null,null,null,null,null,null,null,null,null,null,null,null,null,null,null,null,null,null,null,null,null,null,null,null,null,null,null,null,null,null,null,null,"S004","APOYOS PARA EL DESARROLLO INTEGRAL DE LOS JÓVENES"]
[null,null,null,null,null,null,null,null,null,null,null,null,null,null,null,null,null,null,null,null,null,null,null,null,null,null,null,null,null,null,null,null,null,null,null,null,null,null,null,null,null,null,null,null,null,null,"S005","ATENCIÓN PRIORITARIA A PERSONAS EGRESADAS DEL SISTEMA DE JUSTICIA PENAL"]
[null,null,null,null,null,null,null,null,null,null,null,null,null,null,null,null,null,null,null,null,null,null,null,null,null,null,null,null,null,null,null,null,null,null,null,null,null,null,null,null,null,null,null,null,null,null,"S007","CAPACITACIÓN A LA POBLACIÓN OCUPADA Y DESOCUPADA DE LA CIUDAD DE MÉXICO"]
[null,null,null,null,null,null,null,null,null,null,null,null,null,null,null,null,null,null,null,null,null,null,null,null,null,null,null,null,null,null,null,null,null,null,null,null,null,null,null,null,null,null,null,null,null,null,"S008","CIBERESCUELAS EN PILARES"]
[null,null,null,null,null,null,null,null,null,null,null,null,null,null,null,null,null,null,null,null,null,null,null,null,null,null,null,null,null,null,null,null,null,null,null,null,null,null,null,null,null,null,null,null,null,null,"S010","COINVERSIÓN PARA LA INCLUSIÓN Y EL BIENESTAR SOCIAL"]
[null,null,null,null,null,null,null,null,null,null,null,null,null,null,null,null,null,null,null,null,null,null,null,null,null,null,null,null,null,null,null,null,null,null,null,null,null,null,null,null,null,null,null,null,null,null,"S011","COINVERSIÓN PARA IGUALDAD DE LA CIUDAD DE MÉXICO"]
[null,null,null,null,null,null,null,null,null,null,null,null,null,null,null,null,null,null,null,null,null,null,null,null,null,null,null,null,null,null,null,null,null,null,null,null,null,null,null,null,null,null,null,null,null,null,"S012","COLECTIVOS CULTURALES COMUNITARIOS CIUDAD DE MÉXICO"]
[null,null,null,null,null,null,null,null,null,null,null,null,null,null,null,null,null,null,null,null,null,null,null,null,null,null,null,null,null,null,null,null,null,null,null,null,null,null,null,null,null,null,null,null,null,null,"S013","COMEDORES SOCIALES DE LA CIUDAD DE MÉXICO"]
[null,null,null,null,null,null,null,null,null,null,null,null,null,null,null,null,null,null,null,null,null,null,null,null,null,null,null,null,null,null,null,null,null,null,null,null,null,null,null,null,null,null,null,null,null,null,"S014","COMIDA PARA LOS CAI'S"]
[null,null,null,null,null,null,null,null,null,null,null,null,null,null,null,null,null,null,null,null,null,null,null,null,null,null,null,null,null,null,null,null,null,null,null,null,null,null,null,null,null,null,null,null,null,null,"S016","EDUCACIÓN PARA LA AUTONOMÍA ECONÓMICA EN PILARES"]
[null,null,null,null,null,null,null,null,null,null,null,null,null,null,null,null,null,null,null,null,null,null,null,null,null,null,null,null,null,null,null,null,null,null,null,null,null,null,null,null,null,null,null,null,null,null,"S018","ESTÍMULOS ECONÓMICOS A LAS ASOCIACIONES DEPORTIVAS QUE PARTICIPAN EN LA OLIMPIADA, PARALIMPIADA Y NACIONAL JUVENIL"]
[null,null,null,null,null,null,null,null,null,null,null,null,null,null,null,null,null,null,null,null,null,null,null,null,null,null,null,null,null,null,null,null,null,null,null,null,null,null,null,null,null,null,null,null,null,null,"S019","ESTÍMULOS ECONÓMICOS A DEPORTISTAS DESTACADOS REPRESENTATIVOS DE LA CIUDAD DE MÉXICO"]
[null,null,null,null,null,null,null,null,null,null,null,null,null,null,null,null,null,null,null,null,null,null,null,null,null,null,null,null,null,null,null,null,null,null,null,null,null,null,null,null,null,null,null,null,null,null,"S022","FOMENTO AL TRABAJO DIGNO"]
[null,null,null,null,null,null,null,null,null,null,null,null,null,null,null,null,null,null,null,null,null,null,null,null,null,null,null,null,null,null,null,null,null,null,null,null,null,null,null,null,null,null,null,null,null,null,"S023","FOMENTO, CONSTITUCIÓN Y FORTALECIMIENTO DE LAS EMPRESAS SOCIALES Y SOLIDARIAS DE LA CIUDAD DE MÉXICO (FOCOFESS)"]
[null,null,null,null,null,null,null,null,null,null,null,null,null,null,null,null,null,null,null,null,null,null,null,null,null,null,null,null,null,null,null,null,null,null,null,null,null,null,null,null,null,null,null,null,null,null,"S025","LOS JÓVENES UNEN AL BARRIO"]
[null,null,null,null,null,null,null,null,null,null,null,null,null,null,null,null,null,null,null,null,null,null,null,null,null,null,null,null,null,null,null,null,null,null,null,null,null,null,null,null,null,null,null,null,null,null,"S026","MEJOR ESCUELA"]
[null,null,null,null,null,null,null,null,null,null,null,null,null,null,null,null,null,null,null,null,null,null,null,null,null,null,null,null,null,null,null,null,null,null,null,null,null,null,null,null,null,null,null,null,null,null,"S027","MEJORAMIENTO DE LA VIVIENDA"]
[null,null,null,null,null,null,null,null,null,null,null,null,null,null,null,null,null,null,null,null,null,null,null,null,null,null,null,null,null,null,null,null,null,null,null,null,null,null,null,null,null,null,null,null,null,null,"S029","PONTE PILA, DEPORTE COMUNITARIO"]
[null,null,null,null,null,null,null,null,null,null,null,null,null,null,null,null,null,null,null,null,null,null,null,null,null,null,null,null,null,null,null,null,null,null,null,null,null,null,null,null,null,null,null,null,null,null,"S030","PROGRAMA APOYO ECONÓMICO A POLICÍAS Y BOMBEROS PENSIONADOS DE LA CAPREPOL CON DISCAPACIDAD PERMANENTE"]
[null,null,null,null,null,null,null,null,null,null,null,null,null,null,null,null,null,null,null,null,null,null,null,null,null,null,null,null,null,null,null,null,null,null,null,null,null,null,null,null,null,null,null,null,null,null,"S033","PROGRAMA BECAS ESCOLARES PARA NIÑAS Y NIÑOS EN CONDICIONES DE VULNERABILIDAD SOCIAL (MÁS BECAS, MEJOR EDUCACIÓN)"]
[null,null,null,null,null,null,null,null,null,null,null,null,null,null,null,null,null,null,null,null,null,null,null,null,null,null,null,null,null,null,null,null,null,null,null,null,null,null,null,null,null,null,null,null,null,null,"S034","PROGRAMA SISTEMAS DE CAPTACIÓN DE AGUA DE LLUVIA EN VIVIENDAS DE LA CIUDAD DE MÉXICO"]
[null,null,null,null,null,null,null,null,null,null,null,null,null,null,null,null,null,null,null,null,null,null,null,null,null,null,null,null,null,null,null,null,null,null,null,null,null,null,null,null,null,null,null,null,null,null,"S035","PROGRAMA ALIMENTOS ESCOLARES"]
[null,null,null,null,null,null,null,null,null,null,null,null,null,null,null,null,null,null,null,null,null,null,null,null,null,null,null,null,null,null,null,null,null,null,null,null,null,null,null,null,null,null,null,null,null,null,"S036","PROGRAMA ALTEPETL"]
[null,null,null,null,null,null,null,null,null,null,null,null,null,null,null,null,null,null,null,null,null,null,null,null,null,null,null,null,null,null,null,null,null,null,null,null,null,null,null,null,null,null,null,null,null,null,"S037","PROGRAMA ATENCIÓN A PERSONAS CON DISCAPACIDAD EN UNIDADES BÁSICAS DE REHABILITACIÓN"]
[null,null,null,null,null,null,null,null,null,null,null,null,null,null,null,null,null,null,null,null,null,null,null,null,null,null,null,null,null,null,null,null,null,null,null,null,null,null,null,null,null,null,null,null,null,null,"S039","PROGRAMA DE BECAS DEL INSTITUTO DE EDUCACIÓN MEDIA SUPERIOR DE LA CIUDAD DE MÉXICO"]
[null,null,null,null,null,null,null,null,null,null,null,null,null,null,null,null,null,null,null,null,null,null,null,null,null,null,null,null,null,null,null,null,null,null,null,null,null,null,null,null,null,null,null,null,null,null,"S042","PROGRAMA PARA EL FORTALECIMIENTO Y APOYO A LAS COMUNIDADES INDÍGENAS"]
[null,null,null,null,null,null,null,null,null,null,null,null,null,null,null,null,null,null,null,null,null,null,null,null,null,null,null,null,null,null,null,null,null,null,null,null,null,null,null,null,null,null,null,null,null,null,"S047","PROGRAMA MEJORAMIENTO BARRIAL Y COMUNITARIO, TEQUIO BARRIO"]
[null,null,null,null,null,null,null,null,null,null,null,null,null,null,null,null,null,null,null,null,null,null,null,null,null,null,null,null,null,null,null,null,null,null,null,null,null,null,null,null,null,null,null,null,null,null,"S050","PROMOCIÓN DE ACTIVIDADES CULTURALES Y RECREATIVAS"]
[null,null,null,null,null,null,null,null,null,null,null,null,null,null,null,null,null,null,null,null,null,null,null,null,null,null,null,null,null,null,null,null,null,null,null,null,null,null,null,null,null,null,null,null,null,null,"S051","PROMOTORES CULTURALES CIUDAD DE MÉXICO"]
[null,null,null,null,null,null,null,null,null,null,null,null,null,null,null,null,null,null,null,null,null,null,null,null,null,null,null,null,null,null,null,null,null,null,null,null,null,null,null,null,null,null,null,null,null,null,"S053","RESCATE INNOVADOR Y PARTICIPATIVO EN UNIDADES HABITACIONALES"]
[null,null,null,null,null,null,null,null,null,null,null,null,null,null,null,null,null,null,null,null,null,null,null,null,null,null,null,null,null,null,null,null,null,null,null,null,null,null,null,null,null,null,null,null,null,null,"S054","SEGURO DE DESEMPLEO"]
[null,null,null,null,null,null,null,null,null,null,null,null,null,null,null,null,null,null,null,null,null,null,null,null,null,null,null,null,null,null,null,null,null,null,null,null,null,null,null,null,null,null,null,null,null,null,"S055","SEGURO CONTRA ACCIDENTES PERSONALES DE ESCOLARES, \"VA SEGUR@\""]
[null,null,null,null,null,null,null,null,null,null,null,null,null,null,null,null,null,null,null,null,null,null,null,null,null,null,null,null,null,null,null,null,null,null,null,null,null,null,null,null,null,null,null,null,null,null,"S056","APOYO A MUJERES EN SITUACIÓN DE VIOLENCIA DE GÉNERO"]
[null,null,null,null,null,null,null,null,null,null,null,null,null,null,null,null,null,null,null,null,null,null,null,null,null,null,null,null,null,null,null,null,null,null,null,null,null,null,null,null,null,null,null,null,null,null,"S057","TALLERES DE ARTES Y OFICIOS COMUNITARIOS"]
[null,null,null,null,null,null,null,null,null,null,null,null,null,null,null,null,null,null,null,null,null,null,null,null,null,null,null,null,null,null,null,null,null,null,null,null,null,null,null,null,null,null,null,null,null,null,"S061","VIVIENDA  EN CONJUNTO"]
[null,null,null,null,null,null,null,null,null,null,null,null,null,null,null,null,null,null,null,null,null,null,null,null,null,null,null,null,null,null,null,null,null,null,null,null,null,null,null,null,null,null,null,null,null,null,"S064","DESARROLLO INTEGRAL DE LAS PERSONAS CON DISCAPACIDAD"]
[null,null,null,null,null,null,null,null,null,null,null,null,null,null,null,null,null,null,null,null,null,null,null,null,null,null,null,null,null,null,null,null,null,null,null,null,null,null,null,null,null,null,null,null,null,null,"S066","CENTROS PARA EL DESARROLLO INFANTIL"]
[null,null,null,null,null,null,null,null,null,null,null,null,null,null,null,null,null,null,null,null,null,null,null,null,null,null,null,null,null,null,null,null,null,null,null,null,null,null,null,null,null,null,null,null,null,null,"S071","SERVIDORES DE LA CIUDAD (SERCDMX)"]
[null,null,null,null,null,null,null,null,null,null,null,null,null,null,null,null,null,null,null,null,null,null,null,null,null,null,null,null,null,null,null,null,null,null,null,null,null,null,null,null,null,null,null,null,null,null,"S072","ATENCIÓN INTEGRAL AL ADULTO MAYOR"]
[null,null,null,null,null,null,null,null,null,null,null,null,null,null,null,null,null,null,null,null,null,null,null,null,null,null,null,null,null,null,null,null,null,null,null,null,null,null,null,null,null,null,null,null,null,null,"S073","BECA PILARES"]
[null,null,null,null,null,null,null,null,null,null,null,null,null,null,null,null,null,null,null,null,null,null,null,null,null,null,null,null,null,null,null,null,null,null,null,null,null,null,null,null,null,null,null,null,null,null,"S074","PROGRAMA MI BECA PARA EMPEZAR"]
[null,null,null,null,null,null,null,null,null,null,null,null,null,null,null,null,null,null,null,null,null,null,null,null,null,null,null,null,null,null,null,null,null,null,null,null,null,null,null,null,null,null,null,null,null,null,"S076","PROMOTORES DEL DESARROLLO SOCIAL"]
[null,null,null,null,null,null,null,null,null,null,null,null,null,null,null,null,null,null,null,null,null,null,null,null,null,null,null,null,null,null,null,null,null,null,null,null,null,null,null,null,null,null,null,null,null,null,"S079","APOYO A UNIDADES HABITACIONALES"]
[null,null,null,null,null,null,null,null,null,null,null,null,null,null,null,null,null,null,null,null,null,null,null,null,null,null,null,null,null,null,null,null,null,null,null,null,null,null,null,null,null,null,null,null,null,null,"S080","APOYO  A CUIDADORAS  Y  CUIDADORES DE 58 A 64 AÑOS"]
[null,null,null,null,null,null,null,null,null,null,null,null,null,null,null,null,null,null,null,null,null,null,null,null,null,null,null,null,null,null,null,null,null,null,null,null,null,null,null,null,null,null,null,null,null,null,"S081","ALIMENTACIÓN A NIÑAS, NIÑOS Y PERSONAL ADSCRITO A LA JEFATURA DE LOS CENTROS DE DESARROLLO INFANTIL ICENDIS"]
[null,null,null,null,null,null,null,null,null,null,null,null,null,null,null,null,null,null,null,null,null,null,null,null,null,null,null,null,null,null,null,null,null,null,null,null,null,null,null,null,null,null,null,null,null,null,"S082","EMPODERAMIENTO MUJERES AZCAPOTZALCO"]
[null,null,null,null,null,null,null,null,null,null,null,null,null,null,null,null,null,null,null,null,null,null,null,null,null,null,null,null,null,null,null,null,null,null,null,null,null,null,null,null,null,null,null,null,null,null,"S083","INICIATIVAS JUVENILES AZCAPOTZALCO"]
[null,null,null,null,null,null,null,null,null,null,null,null,null,null,null,null,null,null,null,null,null,null,null,null,null,null,null,null,null,null,null,null,null,null,null,null,null,null,null,null,null,null,null,null,null,null,"S084","JUNTOS HAGAMOS DEPORTE"]
[null,null,null,null,null,null,null,null,null,null,null,null,null,null,null,null,null,null,null,null,null,null,null,null,null,null,null,null,null,null,null,null,null,null,null,null,null,null,null,null,null,null,null,null,null,null,"S085","APOYO ECONÓMICO A MÚSICOS DE LA SINFÓNICA DE AZCAPOTZALCO"]
[null,null,null,null,null,null,null,null,null,null,null,null,null,null,null,null,null,null,null,null,null,null,null,null,null,null,null,null,null,null,null,null,null,null,null,null,null,null,null,null,null,null,null,null,null,null,"S092","PONGAMOS  EL  EJEMPLO  CON  DEPORTE  EN  CUAUHTÉMOC"]
[null,null,null,null,null,null,null,null,null,null,null,null,null,null,null,null,null,null,null,null,null,null,null,null,null,null,null,null,null,null,null,null,null,null,null,null,null,null,null,null,null,null,null,null,null,null,"S093","APOYO  ECONÓMICO  PARA  EL  RECONOCIMIENTO  DE  LAS  PERSONAS CUIDADORAS"]
[null,null,null,null,null,null,null,null,null,null,null,null,null,null,null,null,null,null,null,null,null,null,null,null,null,null,null,null,null,null,null,null,null,null,null,null,null,null,null,null,null,null,null,null,null,null,"S095","APOYO ECONÓMICO PARA EL COMBATE AL REZAGO EDUCATIVO DE LAS INFANCIAS INDÍGENAS"]
[null,null,null,null,null,null,null,null,null,null,null,null,null,null,null,null,null,null,null,null,null,null,null,null,null,null,null,null,null,null,null,null,null,null,null,null,null,null,null,null,null,null,null,null,null,null,"S097","APOYO  ECONÓMICO  A PERSONAS  NO ASALARIADAS  QUE  POR  MOTIVO DE SECUELAS DE ENFERMEDADES CRÓNICO DEGENERATIVAS NO TRANSMISIBLES Y/O TERMINALES, ESTÉN IMPOSIBILITADAS DE TRABAJAR Y RESIDAN EN LA ALCALDÍA CUAUHTÉMOC"]
[null,null,null,null,null,null,null,null,null,null,null,null,null,null,null,null,null,null,null,null,null,null,null,null,null,null,null,null,null,null,null,null,null,null,null,null,null,null,null,null,null,null,null,null,null,null,"S098","APOYO  ECONÓMICO A JEFAS DE FAMILIA PARA SU INCLUSIÓN LABORAL"]
[null,null,null,null,null,null,null,null,null,null,null,null,null,null,null,null,null,null,null,null,null,null,null,null,null,null,null,null,null,null,null,null,null,null,null,null,null,null,null,null,null,null,null,null,null,null,"S100","PARTICIPACIÓN, ARTE Y CULTURA INCLUYENTE"]
[null,null,null,null,null,null,null,null,null,null,null,null,null,null,null,null,null,null,null,null,null,null,null,null,null,null,null,null,null,null,null,null,null,null,null,null,null,null,null,null,null,null,null,null,null,null,"S101","APOYO ECONÓMICO PARA LA ATENCIÓN  EMERGENTE EN MATERIA DE SALUD DE LAS PERSONAS TRANS"]
[null,null,null,null,null,null,null,null,null,null,null,null,null,null,null,null,null,null,null,null,null,null,null,null,null,null,null,null,null,null,null,null,null,null,null,null,null,null,null,null,null,null,null,null,null,null,"S102","FACILITADORES CULTURALES Y DEPORTIVOS"]
[null,null,null,null,null,null,null,null,null,null,null,null,null,null,null,null,null,null,null,null,null,null,null,null,null,null,null,null,null,null,null,null,null,null,null,null,null,null,null,null,null,null,null,null,null,null,"S103","AYUDA ECONÓMICA Y BIENESTAR INTEGRAL PARA PERSONAS ADULTAS MAYORES DE 60 A 64 AÑOS QUE RESIDEN EN IZTAPALAPA"]
[null,null,null,null,null,null,null,null,null,null,null,null,null,null,null,null,null,null,null,null,null,null,null,null,null,null,null,null,null,null,null,null,null,null,null,null,null,null,null,null,null,null,null,null,null,null,"S107","MUJERES ESTUDIANDO EN LA ALCALDÍA DE IZTAPALAPA"]
[null,null,null,null,null,null,null,null,null,null,null,null,null,null,null,null,null,null,null,null,null,null,null,null,null,null,null,null,null,null,null,null,null,null,null,null,null,null,null,null,null,null,null,null,null,null,"S109","DIÁLOGOS POR EL BIENESTAR Y LA PAZ EN IZTAPALAPA"]
[null,null,null,null,null,null,null,null,null,null,null,null,null,null,null,null,null,null,null,null,null,null,null,null,null,null,null,null,null,null,null,null,null,null,null,null,null,null,null,null,null,null,null,null,null,null,"S110","SISTEMA PÚBLICO DE CUIDADO, ALCALDÍA DE IZTAPALAPA"]
[null,null,null,null,null,null,null,null,null,null,null,null,null,null,null,null,null,null,null,null,null,null,null,null,null,null,null,null,null,null,null,null,null,null,null,null,null,null,null,null,null,null,null,null,null,null,"S111","IZTAPALAPA LA MÁS DEPORTIVA"]
[null,null,null,null,null,null,null,null,null,null,null,null,null,null,null,null,null,null,null,null,null,null,null,null,null,null,null,null,null,null,null,null,null,null,null,null,null,null,null,null,null,null,null,null,null,null,"S113","EN  COMUNIDAD   LA FAMILIA ES PRIMERO  "]
[null,null,null,null,null,null,null,null,null,null,null,null,null,null,null,null,null,null,null,null,null,null,null,null,null,null,null,null,null,null,null,null,null,null,null,null,null,null,null,null,null,null,null,null,null,null,"S116","APOYO A LA FORMACIÓN ARTÍSTICA DE NIÑAS, NIÑOS, ADOLESCENTES  Y"]
[null,null,null,null,null,null,null,null,null,null,null,null,null,null,null,null,null,null,null,null,null,null,null,null,null,null,null,null,null,null,null,null,null,null,null,null,null,null,null,null,null,null,null,null,null,null,"S117","EL GOBIERNO DE LOS PUEBLOS EN APOYO A UNIVERSITARIOS"]
[null,null,null,null,null,null,null,null,null,null,null,null,null,null,null,null,null,null,null,null,null,null,null,null,null,null,null,null,null,null,null,null,null,null,null,null,null,null,null,null,null,null,null,null,null,null,"S119","ALIMÉNTATE BIEN"]
[null,null,null,null,null,null,null,null,null,null,null,null,null,null,null,null,null,null,null,null,null,null,null,null,null,null,null,null,null,null,null,null,null,null,null,null,null,null,null,null,null,null,null,null,null,null,"S121","PROGRAMA    DE    MEJORAMIENTO    SUSTENTABLE    EN    SUELO    DE CONSERVACIÓN DE MILPA ALTA"]
[null,null,null,null,null,null,null,null,null,null,null,null,null,null,null,null,null,null,null,null,null,null,null,null,null,null,null,null,null,null,null,null,null,null,null,null,null,null,null,null,null,null,null,null,null,null,"S122","PROGRAMA  INTEGRAL  DE  APOYO  A  LOS  PRODUCTORES  DE  NOPAL PIAPRON"]
[null,null,null,null,null,null,null,null,null,null,null,null,null,null,null,null,null,null,null,null,null,null,null,null,null,null,null,null,null,null,null,null,null,null,null,null,null,null,null,null,null,null,null,null,null,null,"S123","PROGRAMA DE FORTALECIMIENTO SECTORIAL (PROFOSEC)"]
[null,null,null,null,null,null,null,null,null,null,null,null,null,null,null,null,null,null,null,null,null,null,null,null,null,null,null,null,null,null,null,null,null,null,null,null,null,null,null,null,null,null,null,null,null,null,"S126","COMUNIDAD   HUEHUEYOTL,  APOYO   A  COLECTIVOS   DE  PERSONAS ADULTAS MAYORES"]
[null,null,null,null,null,null,null,null,null,null,null,null,null,null,null,null,null,null,null,null,null,null,null,null,null,null,null,null,null,null,null,null,null,null,null,null,null,null,null,null,null,null,null,null,null,null,"S127","MOCHILA DE DERECHOS"]
[null,null,null,null,null,null,null,null,null,null,null,null,null,null,null,null,null,null,null,null,null,null,null,null,null,null,null,null,null,null,null,null,null,null,null,null,null,null,null,null,null,null,null,null,null,null,"S128","DEFENSORÍA  DE  LOS  DERECHOS  Y  APOYOS  ECONÓMICOS  A NIÑAS  Y NIÑOS DE TLALPAN"]
[null,null,null,null,null,null,null,null,null,null,null,null,null,null,null,null,null,null,null,null,null,null,null,null,null,null,null,null,null,null,null,null,null,null,null,null,null,null,null,null,null,null,null,null,null,null,"S129","ASESORÍAS   PARA  EL   EXAMEN  DE   INGRESO  A   LA   EDUCACIÓN  MEDIA SUPERIOR"]
[null,null,null,null,null,null,null,null,null,null,null,null,null,null,null,null,null,null,null,null,null,null,null,null,null,null,null,null,null,null,null,null,null,null,null,null,null,null,null,null,null,null,null,null,null,null,"S130","EDUCARNOS EN COMUNIDAD PARA EL BIENESTAR SOCIAL"]
[null,null,null,null,null,null,null,null,null,null,null,null,null,null,null,null,null,null,null,null,null,null,null,null,null,null,null,null,null,null,null,null,null,null,null,null,null,null,null,null,null,null,null,null,null,null,"S132","APOYO  PROFESIONAL A LA POBLACIÓN EN SUS TAREAS EDUCATIVAS EN LAS BIBLIOTECAS PÚBLICAS"]
[null,null,null,null,null,null,null,null,null,null,null,null,null,null,null,null,null,null,null,null,null,null,null,null,null,null,null,null,null,null,null,null,null,null,null,null,null,null,null,null,null,null,null,null,null,null,"S133","IMAGEN URBANA PARA CULTIVAR COMUNIDAD"]
[null,null,null,null,null,null,null,null,null,null,null,null,null,null,null,null,null,null,null,null,null,null,null,null,null,null,null,null,null,null,null,null,null,null,null,null,null,null,null,null,null,null,null,null,null,null,"S134","HUELLAS: SEMBRANDO COMPAÑÍA EN COMUNIDAD"]
[null,null,null,null,null,null,null,null,null,null,null,null,null,null,null,null,null,null,null,null,null,null,null,null,null,null,null,null,null,null,null,null,null,null,null,null,null,null,null,null,null,null,null,null,null,null,"S135","UNIDAD-ES TLALPAN"]
[null,null,null,null,null,null,null,null,null,null,null,null,null,null,null,null,null,null,null,null,null,null,null,null,null,null,null,null,null,null,null,null,null,null,null,null,null,null,null,null,null,null,null,null,null,null,"S136","JÓVENES CULTIVANDO LA MOVILIDAD"]
[null,null,null,null,null,null,null,null,null,null,null,null,null,null,null,null,null,null,null,null,null,null,null,null,null,null,null,null,null,null,null,null,null,null,null,null,null,null,null,null,null,null,null,null,null,null,"S137","CULTIVANDO COMUNIDAD CON LA PARTICIPACIÓN CIUDADANA"]
[null,null,null,null,null,null,null,null,null,null,null,null,null,null,null,null,null,null,null,null,null,null,null,null,null,null,null,null,null,null,null,null,null,null,null,null,null,null,null,null,null,null,null,null,null,null,"S138","CULTIVANDO ACTIVIDADES DEPORTIVAS"]
[null,null,null,null,null,null,null,null,null,null,null,null,null,null,null,null,null,null,null,null,null,null,null,null,null,null,null,null,null,null,null,null,null,null,null,null,null,null,null,null,null,null,null,null,null,null,"S139","APOYO AL DESARROLLO AGROPECUARIO  SUSTENTABLE"]
[null,null,null,null,null,null,null,null,null,null,null,null,null,null,null,null,null,null,null,null,null,null,null,null,null,null,null,null,null,null,null,null,null,null,null,null,null,null,null,null,null,null,null,null,null,null,"S140","PREVENCIÓN DEL DELITO, TLALPAN"]
[null,null,null,null,null,null,null,null,null,null,null,null,null,null,null,null,null,null,null,null,null,null,null,null,null,null,null,null,null,null,null,null,null,null,null,null,null,null,null,null,null,null,null,null,null,null,"S144","ALIMENTOS A CENTROS DE DESARROLLO INFANTIL"]
[null,null,null,null,null,null,null,null,null,null,null,null,null,null,null,null,null,null,null,null,null,null,null,null,null,null,null,null,null,null,null,null,null,null,null,null,null,null,null,null,null,null,null,null,null,null,"S145","APOYO   ECONÓMICO  A   PERSONAS  QUE   PRESTAN  SUS  INMUEBLES COMO ESPACIOS  PARA CENTROS DE DESARROLLO INFANTIL"]
[null,null,null,null,null,null,null,null,null,null,null,null,null,null,null,null,null,null,null,null,null,null,null,null,null,null,null,null,null,null,null,null,null,null,null,null,null,null,null,null,null,null,null,null,null,null,"S146","AYUDA  A  PERSONAS  DE  ESCASOS  RECURSOS  Y PARA  TRATAMIENTOS MÉDICOS DE ENFERMEDADES CRÓNICO-DEGENERATIVAS, TERMINALES Y DISCAPACIDADES"]
[null,null,null,null,null,null,null,null,null,null,null,null,null,null,null,null,null,null,null,null,null,null,null,null,null,null,null,null,null,null,null,null,null,null,null,null,null,null,null,null,null,null,null,null,null,null,"S147","AYUDA  ECONÓMICA PARA PROMOVER  EL DEPORTE COMPETITIVO EN JÓVENES      "]
[null,null,null,null,null,null,null,null,null,null,null,null,null,null,null,null,null,null,null,null,null,null,null,null,null,null,null,null,null,null,null,null,null,null,null,null,null,null,null,null,null,null,null,null,null,null,"S148","ANIMALES DE CORRAL Y DE TRASPATIO"]
[null,null,null,null,null,null,null,null,null,null,null,null,null,null,null,null,null,null,null,null,null,null,null,null,null,null,null,null,null,null,null,null,null,null,null,null,null,null,null,null,null,null,null,null,null,null,"S149","ENTREGA  DE  SEMILLAS  Y  MATERIAL  VEGETATIVO    PARA FOMENTAR   LA PRODUCCIÓN AGRÍCOLA"]
[null,null,null,null,null,null,null,null,null,null,null,null,null,null,null,null,null,null,null,null,null,null,null,null,null,null,null,null,null,null,null,null,null,null,null,null,null,null,null,null,null,null,null,null,null,null,"S151","PROGRAMA DE APOYO A PERSONAS CON DISCAPACIDAD"]
[null,null,null,null,null,null,null,null,null,null,null,null,null,null,null,null,null,null,null,null,null,null,null,null,null,null,null,null,null,null,null,null,null,null,null,null,null,null,null,null,null,null,null,null,null,null,"S180","PROGRAMA DE DESARROLLO TURÍSTICO PRODETUR"]
[null,null,null,null,null,null,null,null,null,null,null,null,null,null,null,null,null,null,null,null,null,null,null,null,null,null,null,null,null,null,null,null,null,null,null,null,null,null,null,null,null,null,null,null,null,null,"S181","FONDO PARA EMPRENDEDORES DE MILPA ALTA FONEMA"]
[null,null,null,null,null,null,null,null,null,null,null,null,null,null,null,null,null,null,null,null,null,null,null,null,null,null,null,null,null,null,null,null,null,null,null,null,null,null,null,null,null,null,null,null,null,null,"S182","APOYO A ESTANCIAS INFANTILES"]
[null,null,null,null,null,null,null,null,null,null,null,null,null,null,null,null,null,null,null,null,null,null,null,null,null,null,null,null,null,null,null,null,null,null,null,null,null,null,null,null,null,null,null,null,null,null,"S184","COMPAÑÍA DE DANZA CLÁSICA, MODERNA Y FOLCLÓRICA DE LA ALCALDÍA IZTACALCO"]
[null,null,null,null,null,null,null,null,null,null,null,null,null,null,null,null,null,null,null,null,null,null,null,null,null,null,null,null,null,null,null,null,null,null,null,null,null,null,null,null,null,null,null,null,null,null,"S185","ESCUELAS DE MÚSICA DE LA  ALCALDÍA IZTACALCO "]
[null,null,null,null,null,null,null,null,null,null,null,null,null,null,null,null,null,null,null,null,null,null,null,null,null,null,null,null,null,null,null,null,null,null,null,null,null,null,null,null,null,null,null,null,null,null,"S186","PROGRAMA DE APOYO INTEGRAL A LA MUJER PARA LA EQUIDAD (PAIME)"]
[null,null,null,null,null,null,null,null,null,null,null,null,null,null,null,null,null,null,null,null,null,null,null,null,null,null,null,null,null,null,null,null,null,null,null,null,null,null,null,null,null,null,null,null,null,null,"S187","LA EMPLEADORA"]
[null,null,null,null,null,null,null,null,null,null,null,null,null,null,null,null,null,null,null,null,null,null,null,null,null,null,null,null,null,null,null,null,null,null,null,null,null,null,null,null,null,null,null,null,null,null,"S188","PA´QUE TE CUIDEMOS"]
[null,null,null,null,null,null,null,null,null,null,null,null,null,null,null,null,null,null,null,null,null,null,null,null,null,null,null,null,null,null,null,null,null,null,null,null,null,null,null,null,null,null,null,null,null,null,"S189","PROTECTORA DE LA MOVILIDAD"]
[null,null,null,null,null,null,null,null,null,null,null,null,null,null,null,null,null,null,null,null,null,null,null,null,null,null,null,null,null,null,null,null,null,null,null,null,null,null,null,null,null,null,null,null,null,null,"S196","OPERACIÓN DE LOS CENTROS DE ATENCIÓN Y CUIDADO INFANTIL DE LA ALCALDÍA DE COYOACÁN"]
[null,null,null,null,null,null,null,null,null,null,null,null,null,null,null,null,null,null,null,null,null,null,null,null,null,null,null,null,null,null,null,null,null,null,null,null,null,null,null,null,null,null,null,null,null,null,"S200","CULTIVANDO RAÍCES DE IDENTIDAD"]
[null,null,null,null,null,null,null,null,null,null,null,null,null,null,null,null,null,null,null,null,null,null,null,null,null,null,null,null,null,null,null,null,null,null,null,null,null,null,null,null,null,null,null,null,null,null,"S205","PREVENCIÓN DEL EMBARAZO ADOLESCENTE, TLALPAN"]
[null,null,null,null,null,null,null,null,null,null,null,null,null,null,null,null,null,null,null,null,null,null,null,null,null,null,null,null,null,null,null,null,null,null,null,null,null,null,null,null,null,null,null,null,null,null,"S206","FORMACIÓN MUSICAL, TLALPAN"]
[null,null,null,null,null,null,null,null,null,null,null,null,null,null,null,null,null,null,null,null,null,null,null,null,null,null,null,null,null,null,null,null,null,null,null,null,null,null,null,null,null,null,null,null,null,null,"S207","CULTIVANDO ARTE EN TLALPAN"]
[null,null,null,null,null,null,null,null,null,null,null,null,null,null,null,null,null,null,null,null,null,null,null,null,null,null,null,null,null,null,null,null,null,null,null,null,null,null,null,null,null,null,null,null,null,null,"S208","CULTIVANDO PAZ, ARTE Y CULTURA EN TLALPAN"]
[null,null,null,null,null,null,null,null,null,null,null,null,null,null,null,null,null,null,null,null,null,null,null,null,null,null,null,null,null,null,null,null,null,null,null,null,null,null,null,null,null,null,null,null,null,null,"S209","SERVIDORES DE LA EDUCACIÓN"]
[null,null,null,null,null,null,null,null,null,null,null,null,null,null,null,null,null,null,null,null,null,null,null,null,null,null,null,null,null,null,null,null,null,null,null,null,null,null,null,null,null,null,null,null,null,null,"S210","PROGRAMA UNIFORMES Y ÚTILES ESCOLARES GRATUITOS"]
[null,null,null,null,null,null,null,null,null,null,null,null,null,null,null,null,null,null,null,null,null,null,null,null,null,null,null,null,null,null,null,null,null,null,null,null,null,null,null,null,null,null,null,null,null,null,"S211","ATENCIÓN A MENORES Y MADRES EN SITUACIÓN DE VULNERABILIDAD"]
[null,null,null,null,null,null,null,null,null,null,null,null,null,null,null,null,null,null,null,null,null,null,null,null,null,null,null,null,null,null,null,null,null,null,null,null,null,null,null,null,null,null,null,null,null,null,"S212","NÚCLEOS URBANOS DE BIENESTAR EMOCIONAL (NUBE)"]
[null,null,null,null,null,null,null,null,null,null,null,null,null,null,null,null,null,null,null,null,null,null,null,null,null,null,null,null,null,null,null,null,null,null,null,null,null,null,null,null,null,null,null,null,null,null,"S216","APOYO PARA EL IMPULSO LABORAL DE PERSONAS EGRESADAS DEL SISTEMA DE JUSTICIA PENAL DE LA CIUDAD DE MÉXICO (ATENCIÓN PRIORITARIA A PERSONAS LIBERADAS EN SITUACIÓN DE VULNERABILIDAD)"]
[null,null,null,null,null,null,null,null,null,null,null,null,null,null,null,null,null,null,null,null,null,null,null,null,null,null,null,null,null,null,null,null,null,null,null,null,null,null,null,null,null,null,null,null,null,null,"U002","AGUA POTABLE, DRENAJE Y SANEAMIENTO"]
[null,null,null,null,null,null,null,null,null,null,null,null,null,null,null,null,null,null,null,null,null,null,null,null,null,null,null,null,null,null,null,null,null,null,null,null,null,null,null,null,null,null,null,null,null,null,"U007","FINANCIAMIENTO PARA EL ACCESO A LA VIVIENDA"]
[null,null,null,null,null,null,null,null,null,null,null,null,null,null,null,null,null,null,null,null,null,null,null,null,null,null,null,null,null,null,null,null,null,null,null,null,null,null,null,null,null,null,null,null,null,null,"U009","OTROS SUBSIDIOS"]
[null,null,null,null,null,null,null,null,null,null,null,null,null,null,null,null,null,null,null,null,null,null,null,null,null,null,null,null,null,null,null,null,null,null,null,null,null,null,null,null,null,null,null,null,null,null,"U010","PREVENCIÓN DE ENFERMEDADES Y PROMOCIÓN A LA SALUD"]
[null,null,null,null,null,null,null,null,null,null,null,null,null,null,null,null,null,null,null,null,null,null,null,null,null,null,null,null,null,null,null,null,null,null,null,null,null,null,null,null,null,null,null,null,null,null,"U011","PROGRAMA PARA LA RECONSTRUCCIÓN"]
[null,null,null,null,null,null,null,null,null,null,null,null,null,null,null,null,null,null,null,null,null,null,null,null,null,null,null,null,null,null,null,null,null,null,null,null,null,null,null,null,null,null,null,null,null,null,"U012","ASISTENCIA SOCIAL Y SERVICIOS ASISTENCIALES"]
[null,null,null,null,null,null,null,null,null,null,null,null,null,null,null,null,null,null,null,null,null,null,null,null,null,null,null,null,null,null,null,null,null,null,null,null,null,null,null,null,null,null,null,null,null,null,"U014","FINANCIAMIENTO Y PROMOCIÓN DE PROYECTOS CULTURALES Y ARTÍSTICOS"]
[null,null,null,null,null,null,null,null,null,null,null,null,null,null,null,null,null,null,null,null,null,null,null,null,null,null,null,null,null,null,null,null,null,null,null,null,null,null,null,null,null,null,null,null,null,null,"U017","APOYO A LA FORMACIÓN DE CAPITAL HUMANO EN EDUCACIÓN Y CIENCIA"]
[null,null,null,null,null,null,null,null,null,null,null,null,null,null,null,null,null,null,null,null,null,null,null,null,null,null,null,null,null,null,null,null,null,null,null,null,null,null,null,null,null,null,null,null,null,null,"U018","APOYO PARA LA ATENCIÓN Y PREVENCIÓN DE LAS ADICCIONES"]
[null,null,null,null,null,null,null,null,null,null,null,null,null,null,null,null,null,null,null,null,null,null,null,null,null,null,null,null,null,null,null,null,null,null,null,null,null,null,null,null,null,null,null,null,null,null,"U019","SÍ AL DESARME, SÍ A LA PAZ"]
[null,null,null,null,null,null,null,null,null,null,null,null,null,null,null,null,null,null,null,null,null,null,null,null,null,null,null,null,null,null,null,null,null,null,null,null,null,null,null,null,null,null,null,null,null,null,"U020","PROGRAMA DE ATENCIÓN A MENORES VULNERABLES"]
[null,null,null,null,null,null,null,null,null,null,null,null,null,null,null,null,null,null,null,null,null,null,null,null,null,null,null,null,null,null,null,null,null,null,null,null,null,null,null,null,null,null,null,null,null,null,"U021","PROGRAMA DE ATENCIÓN A PERSONAS VULNERABLES"]
[null,null,null,null,null,null,null,null,null,null,null,null,null,null,null,null,null,null,null,null,null,null,null,null,null,null,null,null,null,null,null,null,null,null,null,null,null,null,null,null,null,null,null,null,null,null,"U022","ACCIONES PARA MEJORAR EL SERVICIO DE TRANSPORTE PÚBLICO, ASÍ COMO LA INFRAESTRUCTURA ASOCIADA"]
[null,null,null,null,null,null,null,null,null,null,null,null,null,null,null,null,null,null,null,null,null,null,null,null,null,null,null,null,null,null,null,null,null,null,null,null,null,null,null,null,null,null,null,null,null,null,"U024","SEAMOS MEJORES ESTUDIANTES"]
[null,null,null,null,null,null,null,null,null,null,null,null,null,null,null,null,null,null,null,null,null,null,null,null,null,null,null,null,null,null,null,null,null,null,null,null,null,null,null,null,null,null,null,null,null,null,"U026","APOYOS ECONÓMICOS Y OTRAS AYUDAS SOCIALES"]
[null,null,null,null,null,null,null,null,null,null,null,null,null,null,null,null,null,null,null,null,null,null,null,null,null,null,null,null,null,null,null,null,null,null,null,null,null,null,null,null,null,null,null,null,null,null,"U027","CONVENIOS CON CASAS HOGAR DE NIÑAS Y NIÑOS"]
[null,null,null,null,null,null,null,null,null,null,null,null,null,null,null,null,null,null,null,null,null,null,null,null,null,null,null,null,null,null,null,null,null,null,null,null,null,null,null,null,null,null,null,null,null,null,"U029","CUIDADOS ALTERNATIVOS"]
[null,null,null,null,null,null,null,null,null,null,null,null,null,null,null,null,null,null,null,null,null,null,null,null,null,null,null,null,null,null,null,null,null,null,null,null,null,null,null,null,null,null,null,null,null,null,"U031","AYUDAS A COOPERATIVAS"]
[null,null,null,null,null,null,null,null,null,null,null,null,null,null,null,null,null,null,null,null,null,null,null,null,null,null,null,null,null,null,null,null,null,null,null,null,null,null,null,null,null,null,null,null,null,null,"U032","APOYO A PERSONAS QUE PERDIERON ALGÚN FAMILIAR EN EL SISMO DEL 19 DE SEPTIEMBRE DE 2017"]

{"sheet":"Hoja2","index":9,"n_rows":15,"n_cols":9,"rows_kept":15,"cut":false,"hidden":true,"merged":[]}
[]
[]
[]
[]
[]
[]
[]
[null,null,null,null,null,"Fin","Propósito","Componente","Actividad"]
[null,null,null,null,null,"Estratégico","Estratégico","Estratégico","Gestión"]
[null,null,null,null,null,null,null,"Gestión"]
[]
[null,null,null,null,null,"Eficacia","Eficacia","Eficacia","Eficacia"]
[null,null,null,null,null,null,"Eficiencia","Eficiencia","Eficiencia"]
[null,null,null,null,null,null,null,"Economía","Economía"]
[null,null,null,null,null,null,null,"Calidad"]